Unique Ref No,Vendor name,Subjective Mapping 1 (higher level),Subjective Mapping 2 (lower level),Subjective  Description,Net Amount,Capital/Revenue,GL Posting Date,Directorate
WC53-0001,1ST HAND CARE LTD,Third Party Payments,Private Contractor Fees,73372-DOMICILIARY CARE,"16,543.64",Revenue,02/02/2015,Social Care & Inclusion
WC53-0002,247 CARS (WILLENHALL) LIMITED,Transport,Hire,52000-WITH DRIVER-HIRE OF VEHICLES,296.00,Revenue,10/02/2015,Childrens
WC53-0003,247 CARS (WILLENHALL) LIMITED,Transport,Hire,52000-WITH DRIVER-HIRE OF VEHICLES,318.00,Revenue,10/02/2015,Childrens
WC53-0004,247 CARS (WILLENHALL) LIMITED,Transport,Hire,52000-WITH DRIVER-HIRE OF VEHICLES,320.00,Revenue,10/02/2015,Childrens
WC53-0005,247 CARS (WILLENHALL) LIMITED,Transport,Hire,52000-WITH DRIVER-HIRE OF VEHICLES,320.00,Revenue,10/02/2015,Childrens
WC53-0006,247 CARS (WILLENHALL) LIMITED,Transport,Hire,52000-WITH DRIVER-HIRE OF VEHICLES,336.00,Revenue,10/02/2015,Childrens
WC53-0007,247 CARS (WILLENHALL) LIMITED,Transport,Hire,52000-WITH DRIVER-HIRE OF VEHICLES,400.00,Revenue,18/02/2015,Childrens
WC53-0008,247 CARS (WILLENHALL) LIMITED,Transport,Hire,52000-WITH DRIVER-HIRE OF VEHICLES,432.00,Revenue,10/02/2015,Childrens
WC53-0009,247 CARS (WILLENHALL) LIMITED,Transport,Hire,52000-WITH DRIVER-HIRE OF VEHICLES,432.00,Revenue,10/02/2015,Childrens
WC53-0010,247 CARS (WILLENHALL) LIMITED,Transport,Hire,52000-WITH DRIVER-HIRE OF VEHICLES,560.00,Revenue,10/02/2015,Childrens
WC53-0011,247 CARS (WILLENHALL) LIMITED,Transport,Hire,52000-WITH DRIVER-HIRE OF VEHICLES,560.00,Revenue,10/02/2015,Childrens
WC53-0012,247 CARS (WILLENHALL) LIMITED,Transport,Hire,52000-WITH DRIVER-HIRE OF VEHICLES,562.40,Revenue,18/02/2015,Childrens
WC53-0013,247 CARS (WILLENHALL) LIMITED,Transport,Hire,52000-WITH DRIVER-HIRE OF VEHICLES,592.00,Revenue,10/02/2015,Childrens
WC53-0014,247 CARS (WILLENHALL) LIMITED,Transport,Hire,52000-WITH DRIVER-HIRE OF VEHICLES,680.00,Revenue,18/02/2015,Childrens
WC53-0015,247 CARS (WILLENHALL) LIMITED,Transport,Hire,52000-WITH DRIVER-HIRE OF VEHICLES,720.00,Revenue,20/02/2015,Childrens
WC53-0016,247 CARS (WILLENHALL) LIMITED,Transport,Hire,52000-WITH DRIVER-HIRE OF VEHICLES,992.00,Revenue,10/02/2015,Childrens
WC53-0017,247 CARS (WILLENHALL) LIMITED,Transport,Hire,52000-WITH DRIVER-HIRE OF VEHICLES,"1,000.00",Revenue,10/02/2015,Childrens
WC53-0018,247 CARS (WILLENHALL) LIMITED,Transport,Hire,52000-WITH DRIVER-HIRE OF VEHICLES,"1,000.00",Revenue,10/02/2015,Childrens
WC53-0019,247 CARS (WILLENHALL) LIMITED,Transport,Hire,52000-WITH DRIVER-HIRE OF VEHICLES,"1,080.00",Revenue,16/02/2015,Childrens
WC53-0020,247 CARS (WILLENHALL) LIMITED,Transport,Hire,52000-WITH DRIVER-HIRE OF VEHICLES,"1,166.50",Revenue,17/02/2015,Childrens
WC53-0021,2SIMPLE SOFTWARE LTD,Supplies & Services,Communications & Computing,63800-COMPUTER EQUIPMENT AND SUPPLIES,300.00,Revenue,01/02/2015,Childrens
WC53-0022,4 SIGHT EYECARE CENTRE 002,Employees,Other Staff Costs,34310-EYE TESTS-EMPLOYEES,500.00,Revenue,01/02/2015,Resources
WC53-0023,A 2 Z TAXIS (A2Z CARS),Transport,Hire,52000-WITH DRIVER-HIRE OF VEHICLES,"2,380.00",Revenue,24/02/2015,Childrens
WC53-0024,A D T FIRE AND SECURITY PLC,Supplies & Services,"Equip,Furniture & Materials",60008-MAINTENANCE-FURNITURE & EQUIPMENT,288.00,Revenue,12/02/2015,Childrens
WC53-0025,A D T FIRE AND SECURITY PLC,Premises,Premises-Repairs & Maintenance,"40000-REPAIRS,ALTERATIONS & MAINTENANCE-PREM",323.00,Revenue,11/02/2015,Resources
WC53-0026,A D T FIRE AND SECURITY PLC,Supplies & Services,"Equip,Furniture & Materials",60008-MAINTENANCE-FURNITURE & EQUIPMENT,404.68,Revenue,01/02/2015,Childrens
WC53-0027,A D T FIRE AND SECURITY PLC,Premises,Premises-Repairs & Maintenance,"40000-REPAIRS,ALTERATIONS & MAINTENANCE-PREM",523.21,Revenue,11/02/2015,Resources
WC53-0028,A D T FIRE AND SECURITY PLC,Third Party Payments,Private Contractor Fees,73025-PROFESSIONAL SERVICES-PRIV CONTRACTOR & OTHER AGENCIES,"3,036.41",Revenue,01/02/2015,Neighbourhood Services
WC53-0029,A D T FIRE AND SECURITY PLC,Supplies & Services,"Equip,Furniture & Materials",60008-MAINTENANCE-FURNITURE & EQUIPMENT,"4,050.00",Revenue,02/02/2015,Social Care & Inclusion
WC53-0030,A D T FIRE AND SECURITY PLC,Supplies & Services,"Equip,Furniture & Materials",60008-MAINTENANCE-FURNITURE & EQUIPMENT,"4,050.00",Revenue,03/02/2015,Social Care & Inclusion
WC53-0031,A D T FIRE AND SECURITY PLC,Supplies & Services,"Equip,Furniture & Materials",60008-MAINTENANCE-FURNITURE & EQUIPMENT,"4,050.00",Revenue,13/02/2015,Social Care & Inclusion
WC53-0032,A F BLAKEMORE & SON LTD,Supplies & Services,Provisions,61016-FOOD AND BEVERAGES-PROVISIONS,265.75,Revenue,02/02/2015,Social Care & Inclusion
WC53-0033,A F BLAKEMORE & SON LTD,Supplies & Services,Provisions,61002-DRY FOODS-PROVISIONS,303.73,Revenue,24/02/2015,Neighbourhood Services
WC53-0034,A F BLAKEMORE & SON LTD,Supplies & Services,"Equip,Furniture & Materials",60006-NEW-FURNITURE & EQUIPMENT,306.67,Revenue,04/02/2015,Neighbourhood Services
WC53-0035,A F BLAKEMORE & SON LTD,Supplies & Services,Provisions,61016-FOOD AND BEVERAGES-PROVISIONS,445.38,Revenue,10/02/2015,Social Care & Inclusion
WC53-0036,A F BLAKEMORE & SON LTD,Supplies & Services,Provisions,61008-CONFECTIONERY/SNACKS-PROVISIONS,746.54,Revenue,06/02/2015,Neighbourhood Services
WC53-0037,A F BLAKEMORE & SON LTD,Supplies & Services,Provisions,61305-CATERING,759.74,Revenue,01/02/2015,Social Care & Inclusion
WC53-0038,REDACTED,Third Party Payments,Private Contractor Fees,74006-HOLIDAY/CHRISTMAS ALLOWANCE-FOSTER CARERS-OTH AGENCY PROVISION,333.92,Revenue,16/02/2015,Childrens
WC53-0039,A KARIMS CHUCKERY PHARMACY,Supplies & Services,Services,63000-PROFESSIONAL FEES AND SERVICES,50.00,Revenue,17/02/2015,Neighbourhood Services
WC53-0040,A KARIMS CHUCKERY PHARMACY,Supplies & Services,Services,63000-PROFESSIONAL FEES AND SERVICES,106.47,Revenue,17/02/2015,Neighbourhood Services
WC53-0041,A KARIMS CHUCKERY PHARMACY,Supplies & Services,Services,63000-PROFESSIONAL FEES AND SERVICES,638.26,Revenue,17/02/2015,Neighbourhood Services
WC53-0042,A KARIMS CHUCKERY PHARMACY,Supplies & Services,Services,63000-PROFESSIONAL FEES AND SERVICES,"1,058.15",Revenue,17/02/2015,Neighbourhood Services
WC53-0043,REDACTED,Supplies & Services,Other Supplies & Services,62515-MISCELLANEOUS SUPPLIES,896.24,Revenue,02/02/2015,Childrens
WC53-0044,REDACTED,Third Party Payments,Private Contractor Fees,74006-HOLIDAY/CHRISTMAS ALLOWANCE-FOSTER CARERS-OTH AGENCY PROVISION,968.32,Revenue,02/02/2015,Childrens
WC53-0045,A Q DATA SERVICES,Supplies & Services,Services,63102-CONSULTANTS FEES - CORPORATE,276.00,Revenue,09/02/2015,Neighbourhood Services
WC53-0046,A WOOD & ASSOCIATES LTD,Supplies & Services,Services,63000-PROFESSIONAL FEES AND SERVICES,"1,100.00",Revenue,12/02/2015,Childrens
WC53-0047,A4E LTD#3,Transfer Payments,Transfer Payments,76423-DIRECT PAYMENTS SUPPORT,"2,148.00",Revenue,20/02/2015,Social Care & Inclusion
WC53-0048,A4E LTD#3,Transfer Payments,Transfer Payments,76423-DIRECT PAYMENTS SUPPORT,"2,775.00",Revenue,23/02/2015,Social Care & Inclusion
WC53-0049,AAINA ASIAN WOMENS GROUP,Supplies & Services,Other Supplies & Services,63115-HIRE OF ROOM (duplicate please use 63128)-SERVICES-FEES,640.00,Revenue,11/02/2015,Neighbourhood Services
WC53-0050,REDACTED,Transfer Payments,Transfer Payments,76422-DIRECT PAYMENTS TO SOCIAL SERVICES CLIENTS,345.24,Revenue,10/02/2015,Childrens
WC53-0051,ABACUS FOSTERING LTD,Third Party Payments,Private Contractor Fees,74037-INDEPENDENT FOSTER CARE-OTH AGENCY PROVISION,"3,200.00",Revenue,13/02/2015,Childrens
WC53-0052,REDACTED,Third Party Payments,Private Contractor Fees,74006-HOLIDAY/CHRISTMAS ALLOWANCE-FOSTER CARERS-OTH AGENCY PROVISION,639.40,Revenue,16/02/2015,Childrens
WC53-0053,ABBEY COURT NURSING & RESIDEN,Third Party Payments,Private Contractor Fees,73373-RESIDENTIAL & NURSING CARE PLACEMENTS,"1,494.00",Revenue,17/02/2015,Social Care & Inclusion
WC53-0054,ABBEY COURT NURSING & RESIDEN,Third Party Payments,Private Contractor Fees,73373-RESIDENTIAL & NURSING CARE PLACEMENTS,"1,494.00",Revenue,24/02/2015,Social Care & Inclusion
WC53-0055,ABBEY HEALTHCARE HOMES LTD,Third Party Payments,Private Contractor Fees,73373-RESIDENTIAL & NURSING CARE PLACEMENTS,"1,661.88",Revenue,04/02/2015,Social Care & Inclusion
WC53-0056,ABBEY HEALTHCARE HOMES LTD,Third Party Payments,Private Contractor Fees,73373-RESIDENTIAL & NURSING CARE PLACEMENTS,"1,661.88",Revenue,04/02/2015,Social Care & Inclusion
WC53-0057,ABBEY HEALTHCARE HOMES LTD,Third Party Payments,Private Contractor Fees,73373-RESIDENTIAL & NURSING CARE PLACEMENTS,"2,243.60",Revenue,10/02/2015,Social Care & Inclusion
WC53-0058,ABBEYMERE CARE CENTRE,Third Party Payments,Private Contractor Fees,73373-RESIDENTIAL & NURSING CARE PLACEMENTS,"1,528.87",Revenue,17/02/2015,Social Care & Inclusion
WC53-0059,ABC FOSTERING,Third Party Payments,Private Contractor Fees,74037-INDEPENDENT FOSTER CARE-OTH AGENCY PROVISION,"2,691.92",Revenue,10/02/2015,Childrens
WC53-0060,ABC FOSTERING,Third Party Payments,Private Contractor Fees,74037-INDEPENDENT FOSTER CARE-OTH AGENCY PROVISION,"2,833.60",Revenue,10/02/2015,Childrens
WC53-0061,ABC TEACHERS LIMITED,Employees,Agency,34305-AGENCY STAFF-EMPLOYEES,89.99,Revenue,02/02/2015,Childrens
WC53-0062,ABC TEACHERS LIMITED,Employees,Agency,34305-AGENCY STAFF-EMPLOYEES,231.98,Revenue,02/02/2015,Childrens
WC53-0063,ABC TEACHERS LIMITED,Employees,Agency,34305-AGENCY STAFF-EMPLOYEES,347.97,Revenue,01/02/2015,Childrens
WC53-0064,ABC TEACHERS LIMITED,Employees,Agency,34305-AGENCY STAFF-EMPLOYEES,347.97,Revenue,25/02/2015,Childrens
WC53-0065,ABC TEACHERS LIMITED,Employees,Agency,34305-AGENCY STAFF-EMPLOYEES,347.97,Revenue,25/02/2015,Childrens
WC53-0066,ABC TEACHERS LIMITED,Employees,Agency,34305-AGENCY STAFF-EMPLOYEES,463.96,Revenue,23/02/2015,Childrens
WC53-0067,ABC TEACHERS LIMITED,Employees,Agency,34305-AGENCY STAFF-EMPLOYEES,463.96,Revenue,23/02/2015,Childrens
WC53-0068,ABC TEACHERS LIMITED,Employees,Agency,34305-AGENCY STAFF-EMPLOYEES,463.96,Revenue,25/02/2015,Childrens
WC53-0069,ABC TEACHERS LIMITED,Employees,Agency,34305-AGENCY STAFF-EMPLOYEES,695.94,Revenue,02/02/2015,Childrens
WC53-0070,ABC TEACHERS LIMITED,Employees,Agency,34305-AGENCY STAFF-EMPLOYEES,927.92,Revenue,02/02/2015,Childrens
WC53-0071,ABC TEACHERS LIMITED,Employees,Agency,34305-AGENCY STAFF-EMPLOYEES,927.92,Revenue,25/02/2015,Childrens
WC53-0072,ABC TEACHERS LIMITED,Employees,Agency,34305-AGENCY STAFF-EMPLOYEES,"1,184.95",Revenue,01/02/2015,Childrens
WC53-0073,ABC TEACHERS LIMITED,Employees,Agency,34305-AGENCY STAFF-EMPLOYEES,"1,581.93",Revenue,01/02/2015,Childrens
WC53-0074,REDACTED,Transfer Payments,Transfer Payments,76422-DIRECT PAYMENTS TO SOCIAL SERVICES CLIENTS,"2,357.99",Revenue,10/02/2015,Social Care & Inclusion
WC53-0075,ABLEWELL CARS,Transport,Hire,52000-WITH DRIVER-HIRE OF VEHICLES,270.00,Revenue,02/02/2015,Childrens
WC53-0076,ABLEWELL CARS,Transport,Hire,52000-WITH DRIVER-HIRE OF VEHICLES,271.80,Revenue,24/02/2015,Childrens
WC53-0077,ABLEWELL CARS,Transport,Hire,52000-WITH DRIVER-HIRE OF VEHICLES,297.00,Revenue,24/02/2015,Childrens
WC53-0078,ABLEWELL CARS,Transport,Hire,52000-WITH DRIVER-HIRE OF VEHICLES,300.00,Revenue,10/02/2015,Childrens
WC53-0079,ABLEWELL CARS,Transport,Hire,52000-WITH DRIVER-HIRE OF VEHICLES,300.00,Revenue,24/02/2015,Childrens
WC53-0080,ABLEWELL CARS,Transport,Hire,52000-WITH DRIVER-HIRE OF VEHICLES,302.00,Revenue,02/02/2015,Childrens
WC53-0081,ABLEWELL CARS,Transport,Hire,52000-WITH DRIVER-HIRE OF VEHICLES,302.00,Revenue,10/02/2015,Childrens
WC53-0082,ABLEWELL CARS,Transport,Hire,52000-WITH DRIVER-HIRE OF VEHICLES,330.00,Revenue,02/02/2015,Childrens
WC53-0083,ABLEWELL CARS,Transport,Hire,52000-WITH DRIVER-HIRE OF VEHICLES,330.00,Revenue,02/02/2015,Childrens
WC53-0084,ABLEWELL CARS,Transport,Hire,52000-WITH DRIVER-HIRE OF VEHICLES,330.00,Revenue,10/02/2015,Childrens
WC53-0085,ABLEWELL CARS,Transport,Hire,52000-WITH DRIVER-HIRE OF VEHICLES,330.00,Revenue,10/02/2015,Childrens
WC53-0086,ABLEWELL CARS,Transport,Hire,52000-WITH DRIVER-HIRE OF VEHICLES,330.00,Revenue,24/02/2015,Childrens
WC53-0087,ABLEWELL CARS,Transport,Hire,52000-WITH DRIVER-HIRE OF VEHICLES,530.00,Revenue,02/02/2015,Childrens
WC53-0088,ABLEWELL CARS,Transport,Hire,52000-WITH DRIVER-HIRE OF VEHICLES,530.00,Revenue,10/02/2015,Childrens
WC53-0089,ABLEWELL CARS,Transport,Hire,52000-WITH DRIVER-HIRE OF VEHICLES,530.00,Revenue,24/02/2015,Childrens
WC53-0090,ACCORD HOUSING ASSOCIATION LTD#135,Third Party Payments,Private Contractor Fees,73372-DOMICILIARY CARE,354.28,Revenue,25/02/2015,Social Care & Inclusion
WC53-0091,ACCORD HOUSING ASSOCIATION LTD#135,Third Party Payments,Private Contractor Fees,73372-DOMICILIARY CARE,360.64,Revenue,25/02/2015,Social Care & Inclusion
WC53-0092,ACCORD HOUSING ASSOCIATION LTD#135,Third Party Payments,Private Contractor Fees,73374-SUPPORTED & OTHER ACCOMMODATION,412.75,Revenue,05/02/2015,Social Care & Inclusion
WC53-0093,ACCORD HOUSING ASSOCIATION LTD#135,Third Party Payments,Private Contractor Fees,73372-DOMICILIARY CARE,444.92,Revenue,25/02/2015,Social Care & Inclusion
WC53-0094,ACCORD HOUSING ASSOCIATION LTD#135,Third Party Payments,Private Contractor Fees,73372-DOMICILIARY CARE,463.60,Revenue,25/02/2015,Social Care & Inclusion
WC53-0095,ACCORD HOUSING ASSOCIATION LTD#135,Third Party Payments,Private Contractor Fees,73374-SUPPORTED & OTHER ACCOMMODATION,499.42,Revenue,05/02/2015,Social Care & Inclusion
WC53-0096,ACCORD HOUSING ASSOCIATION LTD#135,Third Party Payments,Private Contractor Fees,73372-DOMICILIARY CARE,502.32,Revenue,25/02/2015,Social Care & Inclusion
WC53-0097,ACCORD HOUSING ASSOCIATION LTD#135,Third Party Payments,Private Contractor Fees,73374-SUPPORTED & OTHER ACCOMMODATION,523.25,Revenue,05/02/2015,Social Care & Inclusion
WC53-0098,ACCORD HOUSING ASSOCIATION LTD#135,Third Party Payments,Private Contractor Fees,73374-SUPPORTED & OTHER ACCOMMODATION,626.84,Revenue,04/02/2015,Social Care & Inclusion
WC53-0099,ACCORD HOUSING ASSOCIATION LTD#135,Third Party Payments,Private Contractor Fees,73372-DOMICILIARY CARE,656.88,Revenue,25/02/2015,Social Care & Inclusion
WC53-0100,ACCORD HOUSING ASSOCIATION LTD#135,Third Party Payments,Private Contractor Fees,73374-SUPPORTED & OTHER ACCOMMODATION,657.08,Revenue,25/02/2015,Social Care & Inclusion
WC53-0101,ACCORD HOUSING ASSOCIATION LTD#135,Third Party Payments,Private Contractor Fees,73372-DOMICILIARY CARE,721.28,Revenue,25/02/2015,Social Care & Inclusion
WC53-0102,ACCORD HOUSING ASSOCIATION LTD#135,Third Party Payments,Private Contractor Fees,73372-DOMICILIARY CARE,775.76,Revenue,01/02/2015,Social Care & Inclusion
WC53-0103,ACCORD HOUSING ASSOCIATION LTD#135,Third Party Payments,Private Contractor Fees,73372-DOMICILIARY CARE,775.76,Revenue,01/02/2015,Social Care & Inclusion
WC53-0104,ACCORD HOUSING ASSOCIATION LTD#135,Third Party Payments,Private Contractor Fees,73372-DOMICILIARY CARE,775.76,Revenue,01/02/2015,Social Care & Inclusion
WC53-0105,ACCORD HOUSING ASSOCIATION LTD#135,Third Party Payments,Private Contractor Fees,73372-DOMICILIARY CARE,775.76,Revenue,02/02/2015,Social Care & Inclusion
WC53-0106,ACCORD HOUSING ASSOCIATION LTD#135,Third Party Payments,Private Contractor Fees,73372-DOMICILIARY CARE,775.76,Revenue,02/02/2015,Social Care & Inclusion
WC53-0107,ACCORD HOUSING ASSOCIATION LTD#135,Third Party Payments,Private Contractor Fees,73372-DOMICILIARY CARE,775.76,Revenue,25/02/2015,Social Care & Inclusion
WC53-0108,ACCORD HOUSING ASSOCIATION LTD#135,Third Party Payments,Private Contractor Fees,73372-DOMICILIARY CARE,811.20,Revenue,25/02/2015,Social Care & Inclusion
WC53-0109,ACCORD HOUSING ASSOCIATION LTD#135,Third Party Payments,Private Contractor Fees,73372-DOMICILIARY CARE,969.70,Revenue,02/02/2015,Social Care & Inclusion
WC53-0110,ACCORD HOUSING ASSOCIATION LTD#135,Third Party Payments,Private Contractor Fees,73372-DOMICILIARY CARE,"1,159.20",Revenue,25/02/2015,Social Care & Inclusion
WC53-0111,ACCORD HOUSING ASSOCIATION LTD#135,Third Party Payments,Private Contractor Fees,73372-DOMICILIARY CARE,"1,183.96",Revenue,25/02/2015,Social Care & Inclusion
WC53-0112,ACCORD HOUSING ASSOCIATION LTD#135,Third Party Payments,Private Contractor Fees,73372-DOMICILIARY CARE,"1,319.90",Revenue,19/02/2015,Social Care & Inclusion
WC53-0113,ACCORD HOUSING ASSOCIATION LTD#135,Third Party Payments,Private Contractor Fees,73372-DOMICILIARY CARE,"1,357.58",Revenue,02/02/2015,Social Care & Inclusion
WC53-0114,ACCORD HOUSING ASSOCIATION LTD#135,Third Party Payments,Private Contractor Fees,73374-SUPPORTED & OTHER ACCOMMODATION,"1,584.00",Revenue,25/02/2015,Social Care & Inclusion
WC53-0115,ACCORD HOUSING ASSOCIATION LTD#135,Third Party Payments,Private Contractor Fees,73372-DOMICILIARY CARE,"1,847.86",Revenue,19/02/2015,Social Care & Inclusion
WC53-0116,ACCORD HOUSING ASSOCIATION LTD#135,Third Party Payments,Private Contractor Fees,73373-RESIDENTIAL & NURSING CARE PLACEMENTS,"4,640.48",Revenue,10/02/2015,Social Care & Inclusion
WC53-0117,ACCORD HOUSING ASSOCIATION LTD#135,Third Party Payments,Private Contractor Fees,73373-RESIDENTIAL & NURSING CARE PLACEMENTS,"4,640.48",Revenue,10/02/2015,Social Care & Inclusion
WC53-0118,ACCORD HOUSING ASSOCIATION LTD#135,Third Party Payments,Private Contractor Fees,73373-RESIDENTIAL & NURSING CARE PLACEMENTS,"4,640.48",Revenue,10/02/2015,Social Care & Inclusion
WC53-0119,ACCORD HOUSING ASSOCIATION LTD#135,Third Party Payments,Private Contractor Fees,73373-RESIDENTIAL & NURSING CARE PLACEMENTS,"4,640.48",Revenue,17/02/2015,Social Care & Inclusion
WC53-0120,ACCORD HOUSING ASSOCIATION LTD#135,Third Party Payments,Private Contractor Fees,73373-RESIDENTIAL & NURSING CARE PLACEMENTS,"4,640.48",Revenue,24/02/2015,Social Care & Inclusion
WC53-0121,ACCORD HOUSING ASSOCIATION LTD#135,Third Party Payments,Private Contractor Fees,73373-RESIDENTIAL & NURSING CARE PLACEMENTS,"4,640.48",Revenue,24/02/2015,Social Care & Inclusion
WC53-0122,ACCORD HOUSING ASSOCIATION LTD#135,Third Party Payments,Private Contractor Fees,73373-RESIDENTIAL & NURSING CARE PLACEMENTS,"4,640.48",Revenue,24/02/2015,Social Care & Inclusion
WC53-0123,ACCORD HOUSING ASSOCIATION LTD#135,Third Party Payments,Private Contractor Fees,73373-RESIDENTIAL & NURSING CARE PLACEMENTS,"4,640.48",Revenue,24/02/2015,Social Care & Inclusion
WC53-0124,ACCORD HOUSING ASSOCIATION LTD#135,Third Party Payments,Private Contractor Fees,73373-RESIDENTIAL & NURSING CARE PLACEMENTS,"6,476.61",Revenue,10/02/2015,Social Care & Inclusion
WC53-0125,ACCORD HOUSING ASSOCIATION LTD#135,Third Party Payments,Private Contractor Fees,73373-RESIDENTIAL & NURSING CARE PLACEMENTS,"6,476.61",Revenue,10/02/2015,Social Care & Inclusion
WC53-0126,ACCORD HOUSING ASSOCIATION LTD#135,Third Party Payments,Private Contractor Fees,73373-RESIDENTIAL & NURSING CARE PLACEMENTS,"6,476.61",Revenue,10/02/2015,Social Care & Inclusion
WC53-0127,ACCORD HOUSING ASSOCIATION LTD#135,Third Party Payments,Private Contractor Fees,73373-RESIDENTIAL & NURSING CARE PLACEMENTS,"6,476.61",Revenue,24/02/2015,Social Care & Inclusion
WC53-0128,ACCORD HOUSING ASSOCIATION LTD#135,Third Party Payments,Private Contractor Fees,73373-RESIDENTIAL & NURSING CARE PLACEMENTS,"6,476.61",Revenue,24/02/2015,Social Care & Inclusion
WC53-0129,ACCORD HOUSING ASSOCIATION LTD#135,Third Party Payments,Private Contractor Fees,73373-RESIDENTIAL & NURSING CARE PLACEMENTS,"6,476.61",Revenue,24/02/2015,Social Care & Inclusion
WC53-0130,ACE CARE AGENCY,Third Party Payments,Private Contractor Fees,73372-DOMICILIARY CARE,283.29,Revenue,17/02/2015,Social Care & Inclusion
WC53-0131,ACE CARE AGENCY,Third Party Payments,Private Contractor Fees,73372-DOMICILIARY CARE,647.52,Revenue,17/02/2015,Social Care & Inclusion
WC53-0132,ACE CARE AGENCY,Third Party Payments,Private Contractor Fees,73372-DOMICILIARY CARE,939.68,Revenue,17/02/2015,Social Care & Inclusion
WC53-0133,ACE RADIO CARS,Transport,Hire,52000-WITH DRIVER-HIRE OF VEHICLES,"1,952.40",Revenue,20/02/2015,Childrens
WC53-0134,ACEPAY LTD (COTTAGE NUR HOME),Third Party Payments,Private Contractor Fees,73373-RESIDENTIAL & NURSING CARE PLACEMENTS,414.25,Revenue,04/02/2015,Social Care & Inclusion
WC53-0135,ACEPAY LTD (COTTAGE NUR HOME),Third Party Payments,Private Contractor Fees,73373-RESIDENTIAL & NURSING CARE PLACEMENTS,"1,518.91",Revenue,24/02/2015,Social Care & Inclusion
WC53-0136,ACEPAY LTD (COTTAGE NUR HOME),Third Party Payments,Private Contractor Fees,73373-RESIDENTIAL & NURSING CARE PLACEMENTS,"1,933.16",Revenue,04/02/2015,Social Care & Inclusion
WC53-0137,ACEPAY LTD (COTTAGE NUR HOME),Third Party Payments,Private Contractor Fees,73373-RESIDENTIAL & NURSING CARE PLACEMENTS,"1,933.16",Revenue,04/02/2015,Social Care & Inclusion
WC53-0138,ACEPAY LTD (COTTAGE NUR HOME),Third Party Payments,Private Contractor Fees,73373-RESIDENTIAL & NURSING CARE PLACEMENTS,"1,933.16",Revenue,04/02/2015,Social Care & Inclusion
WC53-0139,ACEPAY LTD (COTTAGE NUR HOME),Third Party Payments,Private Contractor Fees,73373-RESIDENTIAL & NURSING CARE PLACEMENTS,"1,933.16",Revenue,04/02/2015,Social Care & Inclusion
WC53-0140,ACEPAY LTD (COTTAGE NUR HOME),Third Party Payments,Private Contractor Fees,73373-RESIDENTIAL & NURSING CARE PLACEMENTS,"1,933.16",Revenue,24/02/2015,Social Care & Inclusion
WC53-0141,ACEPAY LTD (COTTAGE NUR HOME),Third Party Payments,Private Contractor Fees,73373-RESIDENTIAL & NURSING CARE PLACEMENTS,"1,933.16",Revenue,24/02/2015,Social Care & Inclusion
WC53-0142,ACEPAY LTD (COTTAGE NUR HOME),Third Party Payments,Private Contractor Fees,73373-RESIDENTIAL & NURSING CARE PLACEMENTS,"1,933.16",Revenue,24/02/2015,Social Care & Inclusion
WC53-0143,ACEPAY LTD (COTTAGE NUR HOME),Third Party Payments,Private Contractor Fees,73373-RESIDENTIAL & NURSING CARE PLACEMENTS,"1,979.20",Revenue,24/02/2015,Social Care & Inclusion
WC53-0144,ACEPAY LTD (COTTAGE NUR HOME),Third Party Payments,Private Contractor Fees,73373-RESIDENTIAL & NURSING CARE PLACEMENTS,"1,979.20",Revenue,24/02/2015,Social Care & Inclusion
WC53-0145,ACEPAY LTD (COTTAGE NUR HOME),Third Party Payments,Private Contractor Fees,73373-RESIDENTIAL & NURSING CARE PLACEMENTS,"1,979.20",Revenue,24/02/2015,Social Care & Inclusion
WC53-0146,ACEPAY LTD (COTTAGE NUR HOME),Third Party Payments,Private Contractor Fees,73373-RESIDENTIAL & NURSING CARE PLACEMENTS,"2,372.32",Revenue,24/02/2015,Social Care & Inclusion
WC53-0147,ACHIEVING FOR CHILDREN LTD,Transfer Payments,Transfer Payments,74009-ADOPTION ALLOWANCE,"29,700.00",Revenue,01/02/2015,Childrens
WC53-0148,ACORN CARE LTD,Third Party Payments,Private Contractor Fees,73373-RESIDENTIAL & NURSING CARE PLACEMENTS,"13,404.16",Revenue,17/02/2015,Social Care & Inclusion
WC53-0149,ACORN CARE LTD,Third Party Payments,Private Contractor Fees,73373-RESIDENTIAL & NURSING CARE PLACEMENTS,"14,840.32",Revenue,10/02/2015,Social Care & Inclusion
WC53-0150,ACORN REST HOME,Third Party Payments,Private Contractor Fees,73373-RESIDENTIAL & NURSING CARE PLACEMENTS,"1,460.40",Revenue,17/02/2015,Social Care & Inclusion
WC53-0151,ACTION FOR CHILDREN,Third Party Payments,Private Contractor Fees,74037-INDEPENDENT FOSTER CARE-OTH AGENCY PROVISION,"3,178.32",Revenue,19/02/2015,Childrens
WC53-0152,ACTIVE ASSISTANCE,Supplies & Services,Services,63000-PROFESSIONAL FEES AND SERVICES,"2,550.16",Revenue,17/02/2015,Childrens
WC53-0153,ACTIVE ASSISTANCE,Supplies & Services,Services,63000-PROFESSIONAL FEES AND SERVICES,"2,550.16",Revenue,17/02/2015,Childrens
WC53-0154,REDACTED,Supplies & Services,Services,63000-PROFESSIONAL FEES AND SERVICES,399.00,Revenue,20/02/2015,Neighbourhood Services
WC53-0155,REDACTED,Supplies & Services,Services,63000-PROFESSIONAL FEES AND SERVICES,426.00,Revenue,26/02/2015,Neighbourhood Services
WC53-0156,REDACTED,Supplies & Services,Services,63000-PROFESSIONAL FEES AND SERVICES,840.00,Revenue,26/02/2015,Neighbourhood Services
WC53-0157,REDACTED,Transfer Payments,Transfer Payments,76422-DIRECT PAYMENTS TO SOCIAL SERVICES CLIENTS,487.60,Revenue,10/02/2015,Childrens
WC53-0158,REDACTED,Transfer Payments,Transfer Payments,76422-DIRECT PAYMENTS TO SOCIAL SERVICES CLIENTS,812.00,Revenue,10/02/2015,Social Care & Inclusion
WC53-0159,ADFLOOR INDUSTRIAL LIMITED,Premises,Premises-Repairs & Maintenance,40216-OTHER-PLAN MTCE,"2,417.40",Revenue,20/02/2015,Neighbourhood Services
WC53-0160,ADFLOOR INDUSTRIAL LIMITED,Supplies & Services,Services,63000-PROFESSIONAL FEES AND SERVICES,"3,519.00",Revenue,20/02/2015,Neighbourhood Services
WC53-0161,ADFLOOR INDUSTRIAL LIMITED,Supplies & Services,Services,63000-PROFESSIONAL FEES AND SERVICES,"12,998.88",Revenue,20/02/2015,Neighbourhood Services
WC53-0162,REDACTED,Transfer Payments,Transfer Payments,76422-DIRECT PAYMENTS TO SOCIAL SERVICES CLIENTS,860.00,Revenue,10/02/2015,Social Care & Inclusion
WC53-0163,ADMIRAL SELF STORAGE LTD,Supplies & Services,"Equip,Furniture & Materials",60009-LEASING/HIRE/RENTAL-EQUIPMENT,915.12,Revenue,25/02/2015,Neighbourhood Services
WC53-0164,ADMIRAL SELF STORAGE LTD,Supplies & Services,"Equip,Furniture & Materials",60009-LEASING/HIRE/RENTAL-EQUIPMENT,"1,290.54",Revenue,25/02/2015,Neighbourhood Services
WC53-0165,ADOPTION UK,Supplies & Services,Communications & Computing,68001-PUBLICITY & ADVERTISING (NOT STAFF ADVERTISING),424.13,Revenue,02/02/2015,Childrens
WC53-0166,ADOPTION UK,Supplies & Services,Communications & Computing,68001-PUBLICITY & ADVERTISING (NOT STAFF ADVERTISING),435.00,Revenue,02/02/2015,Childrens
WC53-0167,ADOPTION UK,Supplies & Services,Communications & Computing,68001-PUBLICITY & ADVERTISING (NOT STAFF ADVERTISING),435.00,Revenue,02/02/2015,Childrens
WC53-0168,REDACTED,Third Party Payments,Private Contractor Fees,74006-HOLIDAY/CHRISTMAS ALLOWANCE-FOSTER CARERS-OTH AGENCY PROVISION,681.52,Revenue,16/02/2015,Childrens
WC53-0169,ADS ELECTRICAL & HIGHWAY SERVICES LTD,Supplies & Services,Services,63000-PROFESSIONAL FEES AND SERVICES,348.00,Revenue,05/02/2015,Neighbourhood Services
WC53-0170,ADVANCE HEALTH CARE (UK) LTD,Third Party Payments,Private Contractor Fees,73372-DOMICILIARY CARE,562.25,Revenue,04/02/2015,Social Care & Inclusion
WC53-0171,ADVANCE HEALTH CARE (UK) LTD,Third Party Payments,Private Contractor Fees,73372-DOMICILIARY CARE,630.56,Revenue,04/02/2015,Social Care & Inclusion
WC53-0172,ADVANCE HEALTH CARE (UK) LTD,Third Party Payments,Private Contractor Fees,73372-DOMICILIARY CARE,659.04,Revenue,04/02/2015,Social Care & Inclusion
WC53-0173,ADVANCE HEALTH CARE (UK) LTD,Third Party Payments,Private Contractor Fees,73372-DOMICILIARY CARE,735.58,Revenue,04/02/2015,Social Care & Inclusion
WC53-0174,ADVANCE HEALTH CARE (UK) LTD,Third Party Payments,Private Contractor Fees,73372-DOMICILIARY CARE,865.83,Revenue,04/02/2015,Social Care & Inclusion
WC53-0175,ADVANCE HEALTH CARE (UK) LTD,Third Party Payments,Private Contractor Fees,73372-DOMICILIARY CARE,946.71,Revenue,04/02/2015,Social Care & Inclusion
WC53-0176,ADVANCE HEALTH CARE (UK) LTD,Third Party Payments,Private Contractor Fees,73372-DOMICILIARY CARE,"1,620.22",Revenue,04/02/2015,Social Care & Inclusion
WC53-0177,ADVANCE HEALTH CARE (UK) LTD,Third Party Payments,Private Contractor Fees,73372-DOMICILIARY CARE,"1,844.72",Revenue,04/02/2015,Social Care & Inclusion
WC53-0178,ADVANCE HEALTH CARE (UK) LTD,Third Party Payments,Private Contractor Fees,73372-DOMICILIARY CARE,"1,883.80",Revenue,04/02/2015,Social Care & Inclusion
WC53-0179,ADVANCE HEALTH CARE (UK) LTD,Third Party Payments,Private Contractor Fees,73372-DOMICILIARY CARE,"2,242.90",Revenue,04/02/2015,Social Care & Inclusion
WC53-0180,ADVANCE HEALTH CARE (UK) LTD,Employees,Agency,34305-AGENCY STAFF-EMPLOYEES,"2,398.50",Revenue,05/02/2015,Social Care & Inclusion
WC53-0181,ADVANCE HEALTH CARE (UK) LTD,Employees,Agency,34305-AGENCY STAFF-EMPLOYEES,"2,990.00",Revenue,05/02/2015,Social Care & Inclusion
WC53-0182,ADVANCE HEALTH CARE (UK) LTD,Employees,Agency,34305-AGENCY STAFF-EMPLOYEES,"3,103.75",Revenue,05/02/2015,Social Care & Inclusion
WC53-0183,ADVANCE HEALTH CARE (UK) LTD,Employees,Agency,34305-AGENCY STAFF-EMPLOYEES,"3,536.00",Revenue,05/02/2015,Social Care & Inclusion
WC53-0184,ADVANCE HEALTH CARE (UK) LTD,Employees,Agency,34305-AGENCY STAFF-EMPLOYEES,"3,536.00",Revenue,05/02/2015,Social Care & Inclusion
WC53-0185,ADVANCE HEALTH CARE (UK) LTD,Third Party Payments,Private Contractor Fees,73372-DOMICILIARY CARE,"29,814.83",Revenue,02/02/2015,Social Care & Inclusion
WC53-0186,ADVANCED CONTRACTS (MIDLANDS) LTD,Third Party Payments,Private Contractor Fees,73025-PROFESSIONAL SERVICES-PRIV CONTRACTOR & OTHER AGENCIES,280.31,Revenue,13/02/2015,Regeneration
WC53-0187,ADVANCED CONTRACTS (MIDLANDS) LTD,Third Party Payments,Private Contractor Fees,73025-PROFESSIONAL SERVICES-PRIV CONTRACTOR & OTHER AGENCIES,342.00,Revenue,13/02/2015,Regeneration
WC53-0188,ADVANCED CONTRACTS (MIDLANDS) LTD,Premises,Premises-Repairs & Maintenance,"40000-REPAIRS,ALTERATIONS & MAINTENANCE-PREM",380.33,Revenue,13/02/2015,Regeneration
WC53-0189,ADVANCED CONTRACTS (MIDLANDS) LTD,Third Party Payments,Private Contractor Fees,73025-PROFESSIONAL SERVICES-PRIV CONTRACTOR & OTHER AGENCIES,386.90,Revenue,13/02/2015,Regeneration
WC53-0190,ADVANCED CONTRACTS (MIDLANDS) LTD,Third Party Payments,Private Contractor Fees,73025-PROFESSIONAL SERVICES-PRIV CONTRACTOR & OTHER AGENCIES,388.00,Revenue,04/02/2015,Regeneration
WC53-0191,ADVANCED CONTRACTS (MIDLANDS) LTD,Premises,Premises-Repairs & Maintenance,"40000-REPAIRS,ALTERATIONS & MAINTENANCE-PREM",436.00,Revenue,25/02/2015,Regeneration
WC53-0192,ADVANCED CONTRACTS (MIDLANDS) LTD,Premises,Premises-Repairs & Maintenance,"40000-REPAIRS,ALTERATIONS & MAINTENANCE-PREM",453.80,Revenue,13/02/2015,Regeneration
WC53-0193,ADVANCED CONTRACTS (MIDLANDS) LTD,Premises,Premises-Repairs & Maintenance,"40000-REPAIRS,ALTERATIONS & MAINTENANCE-PREM",460.00,Revenue,25/02/2015,Regeneration
WC53-0194,ADVANCED CONTRACTS (MIDLANDS) LTD,Premises,Premises-Repairs & Maintenance,"40000-REPAIRS,ALTERATIONS & MAINTENANCE-PREM",650.00,Revenue,13/02/2015,Regeneration
WC53-0195,ADVANCED CONTRACTS (MIDLANDS) LTD,Premises,Premises-Repairs & Maintenance,"40000-REPAIRS,ALTERATIONS & MAINTENANCE-PREM",735.00,Revenue,25/02/2015,Regeneration
WC53-0196,ADVANCED CONTRACTS (MIDLANDS) LTD,Premises,Premises-Repairs & Maintenance,"40000-REPAIRS,ALTERATIONS & MAINTENANCE-PREM",745.00,Revenue,25/02/2015,Regeneration
WC53-0197,ADVANCED CONTRACTS (MIDLANDS) LTD,Premises,Premises-Repairs & Maintenance,"40000-REPAIRS,ALTERATIONS & MAINTENANCE-PREM",893.90,Revenue,09/02/2015,Regeneration
WC53-0198,ADVANCED CONTRACTS (MIDLANDS) LTD,Premises,Premises-Repairs & Maintenance,"40000-REPAIRS,ALTERATIONS & MAINTENANCE-PREM",990.00,Revenue,13/02/2015,Regeneration
WC53-0199,ADVANCED CONTRACTS (MIDLANDS) LTD,Third Party Payments,Private Contractor Fees,73025-PROFESSIONAL SERVICES-PRIV CONTRACTOR & OTHER AGENCIES,"1,032.00",Revenue,13/02/2015,Regeneration
WC53-0200,ADVANCED CONTRACTS (MIDLANDS) LTD,Premises,Premises-Repairs & Maintenance,"40000-REPAIRS,ALTERATIONS & MAINTENANCE-PREM","2,155.00",Revenue,01/02/2015,Regeneration
WC53-0201,ADVENTURELAND DAY NURSERY,Employees,Other Staff Costs,32000-MISC FEES AND EXPENSES,290.80,Revenue,11/02/2015,Childrens
WC53-0202,ADVENTURELAND DAY NURSERY,Supplies & Services,Other Supplies & Services,63120-CRECHE FACILITIES-SERVICES-FEES,360.00,Revenue,04/02/2015,Childrens
WC53-0203,ADVENTURELAND DAY NURSERY,Supplies & Services,Other Supplies & Services,63120-CRECHE FACILITIES-SERVICES-FEES,360.00,Revenue,13/02/2015,Childrens
WC53-0204,AEBI SCHMIDT UK LIMITED,Third Party Payments,Private Contractor Fees,73025-PROFESSIONAL SERVICES-PRIV CONTRACTOR & OTHER AGENCIES,284.38,Revenue,06/02/2015,Neighbourhood Services
WC53-0205,AEBI SCHMIDT UK LIMITED,Capital,Capital,01018-VEHICLES LEASING,"100,430.00",Capital,03/02/2015,Leasing
WC53-0206,AGE UK TRAINING,Third Party Payments,Grants to Other Orgs,66500-GRANTS TO OTHER ORGS,"2,250.00",Revenue,06/02/2015,Regeneration
WC53-0207,AGE UK WALSALL,Transfer Payments,Transfer Payments,76423-DIRECT PAYMENTS SUPPORT,"6,205.00",Revenue,18/02/2015,Social Care & Inclusion
WC53-0208,AGINCARE UK LTD,Third Party Payments,Private Contractor Fees,73372-DOMICILIARY CARE,308.00,Revenue,05/02/2015,Social Care & Inclusion
WC53-0209,AGINCARE UK LTD,Third Party Payments,Private Contractor Fees,73372-DOMICILIARY CARE,"2,036.88",Revenue,06/02/2015,Social Care & Inclusion
WC53-0210,AGROVISTA UK LTD,Supplies & Services,"Equip,Furniture & Materials",60500-GENERAL MATERIALS,861.00,Revenue,03/02/2015,Neighbourhood Services
WC53-0211,REDACTED,Transfer Payments,Transfer Payments,76422-DIRECT PAYMENTS TO SOCIAL SERVICES CLIENTS,"1,882.00",Revenue,10/02/2015,Social Care & Inclusion
WC53-0212,AIREY CONSULTANCY SERVICES LTD,Supplies & Services,Subscriptions,64500-PUBLICATIONS/ORGANISATIONS-SUBSCRIPTIONS,"1,415.00",Revenue,25/02/2015,Resources
WC53-0213,REDACTED,Transfer Payments,Transfer Payments,76422-DIRECT PAYMENTS TO SOCIAL SERVICES CLIENTS,936.52,Revenue,10/02/2015,Social Care & Inclusion
WC53-0214,REDACTED,Capital,Capital,01045-PRIVATE GRANTS,"12,614.09",Capital,18/02/2015,Resources
WC53-0215,REDACTED,Transfer Payments,Transfer Payments,76422-DIRECT PAYMENTS TO SOCIAL SERVICES CLIENTS,667.80,Revenue,10/02/2015,Social Care & Inclusion
WC53-0216,ALDER COPPICE PRIMARY SCHOOL,Transfer Payments,Transfer Payments,77300-ISB-FORMULA ALLOCATION,420.00,Revenue,19/02/2015,Childrens
WC53-0217,ALDER COPPICE PRIMARY SCHOOL,Transfer Payments,Transfer Payments,77300-ISB-FORMULA ALLOCATION,550.00,Revenue,19/02/2015,Childrens
WC53-0218,ALDERGROVE MANOR CARE HOME,Third Party Payments,Private Contractor Fees,73373-RESIDENTIAL & NURSING CARE PLACEMENTS,"1,784.48",Revenue,10/02/2015,Social Care & Inclusion
WC53-0219,ALDRIDGE & BARONS LIMITED,Transport,Hire,52001-HIRE OF VEHICLES,"1,220.00",Revenue,12/02/2015,Social Care & Inclusion
WC53-0220,ALDRIDGE & BARONS LIMITED,Transport,Hire,52001-HIRE OF VEHICLES,"2,206.28",Revenue,12/02/2015,Social Care & Inclusion
WC53-0221,ALDRIDGE & BARONS LIMITED,Transport,Hire,52001-HIRE OF VEHICLES,"2,864.20",Revenue,12/02/2015,Social Care & Inclusion
WC53-0222,ALDRIDGE & BARONS LIMITED,Transport,Hire,52001-HIRE OF VEHICLES,"3,557.76",Revenue,12/02/2015,Social Care & Inclusion
WC53-0223,ALDRIDGE METHODIST CHURCH 001,Supplies & Services,Other Supplies & Services,62515-MISCELLANEOUS SUPPLIES,250.00,Revenue,18/02/2015,Neighbourhood Services
WC53-0224,ALDRIDGE PAINTING & DECORATING LTD,Supplies & Services,"Equip,Furniture & Materials",60008-MAINTENANCE-FURNITURE & EQUIPMENT,"2,575.00",Revenue,06/02/2015,Neighbourhood Services
WC53-0225,ALDRIDGE SCHOOL A SCIENCE COLLEGE.,Transfer Payments,Transfer Payments,77300-ISB-FORMULA ALLOCATION,545.00,Revenue,17/02/2015,Childrens
WC53-0226,ALDRIDGE SCHOOL A SCIENCE COLLEGE.,Transfer Payments,Transfer Payments,77300-ISB-FORMULA ALLOCATION,560.00,Revenue,18/02/2015,Childrens
WC53-0227,ALDRIDGE SCHOOL A SCIENCE COLLEGE.,Transfer Payments,Transfer Payments,77300-ISB-FORMULA ALLOCATION,560.00,Revenue,18/02/2015,Childrens
WC53-0228,ALDRIDGE SCHOOL A SCIENCE COLLEGE.,Transfer Payments,Transfer Payments,77300-ISB-FORMULA ALLOCATION,560.00,Revenue,18/02/2015,Childrens
WC53-0229,ALDRIDGE SCHOOL A SCIENCE COLLEGE.,Transfer Payments,Transfer Payments,77300-ISB-FORMULA ALLOCATION,680.00,Revenue,17/02/2015,Childrens
WC53-0230,ALDRIDGE SCHOOL A SCIENCE COLLEGE.,Transfer Payments,Transfer Payments,77300-ISB-FORMULA ALLOCATION,680.00,Revenue,17/02/2015,Childrens
WC53-0231,ALDRIDGE SCHOOL A SCIENCE COLLEGE.,Transfer Payments,Transfer Payments,77300-ISB-FORMULA ALLOCATION,680.00,Revenue,17/02/2015,Childrens
WC53-0232,ALDRIDGE SCHOOL A SCIENCE COLLEGE.,Transfer Payments,Transfer Payments,77300-ISB-FORMULA ALLOCATION,680.00,Revenue,17/02/2015,Childrens
WC53-0233,ALDRIDGE SCHOOL A SCIENCE COLLEGE.,Transfer Payments,Transfer Payments,77300-ISB-FORMULA ALLOCATION,900.00,Revenue,18/02/2015,Childrens
WC53-0234,ALDRIDGE SCHOOL A SCIENCE COLLEGE.,Transfer Payments,Transfer Payments,77300-ISB-FORMULA ALLOCATION,"1,400.00",Revenue,17/02/2015,Childrens
WC53-0235,REDACTED,Transfer Payments,Transfer Payments,76422-DIRECT PAYMENTS TO SOCIAL SERVICES CLIENTS,"1,204.00",Revenue,10/02/2015,Social Care & Inclusion
WC53-0236,ALEXANDRA HOUSE CARE SERVICES LTD T/A STONEBRIDGE NURSING HOME,Third Party Payments,Private Contractor Fees,73373-RESIDENTIAL & NURSING CARE PLACEMENTS,"6,960.84",Revenue,17/02/2015,Social Care & Inclusion
WC53-0237,REDACTED,Transfer Payments,Transfer Payments,76422-DIRECT PAYMENTS TO SOCIAL SERVICES CLIENTS,582.66,Revenue,10/02/2015,Childrens
WC53-0238,ALFORD PRIMARY SCHOOL,Transfer Payments,Transfer Payments,77300-ISB-FORMULA ALLOCATION,"4,844.00",Revenue,17/02/2015,Childrens
WC53-0239,REDACTED,Transfer Payments,Transfer Payments,76422-DIRECT PAYMENTS TO SOCIAL SERVICES CLIENTS,854.00,Revenue,10/02/2015,Social Care & Inclusion
WC53-0240,REDACTED,Transfer Payments,Transfer Payments,76010-ACCOMMODATION AND RELATED COSTS-ASSISTANCE TO S/S CLIENTS,"2,010.38",Revenue,16/02/2015,Childrens
WC53-0241,REDACTED,Transfer Payments,Transfer Payments,76422-DIRECT PAYMENTS TO SOCIAL SERVICES CLIENTS,328.80,Revenue,10/02/2015,Social Care & Inclusion
WC53-0242,REDACTED,Third Party Payments,Private Contractor Fees,74006-HOLIDAY/CHRISTMAS ALLOWANCE-FOSTER CARERS-OTH AGENCY PROVISION,968.32,Revenue,02/02/2015,Childrens
WC53-0243,REDACTED,Supplies & Services,Other Supplies & Services,62515-MISCELLANEOUS SUPPLIES,"1,428.44",Revenue,02/02/2015,Childrens
WC53-0244,REDACTED,Third Party Payments,Private Contractor Fees,74006-HOLIDAY/CHRISTMAS ALLOWANCE-FOSTER CARERS-OTH AGENCY PROVISION,542.80,Revenue,16/02/2015,Childrens
WC53-0245,ALL SAINTS C OF E PRIMARY SCHOOL,Transfer Payments,Transfer Payments,77300-ISB-FORMULA ALLOCATION,738.09,Revenue,17/02/2015,Childrens
WC53-0246,ALLSORTS OFFICE SUPPLIES LTD,Capital,Capital,01044-PURCHASE OF FURNITURE & EQUIPMENT,280.00,Capital,06/02/2015,Regeneration
WC53-0247,ALLSORTS OFFICE SUPPLIES LTD,Capital,Capital,01044-PURCHASE OF FURNITURE & EQUIPMENT,"1,376.00",Capital,04/02/2015,Regeneration
WC53-0248,ALMA COURT,Third Party Payments,Private Contractor Fees,73373-RESIDENTIAL & NURSING CARE PLACEMENTS,"5,580.00",Revenue,17/02/2015,Social Care & Inclusion
WC53-0249,ALPHA HEALTH CARE LTD,Third Party Payments,Private Contractor Fees,73373-RESIDENTIAL & NURSING CARE PLACEMENTS,"1,375.60",Revenue,24/02/2015,Social Care & Inclusion
WC53-0250,ALPHA HEALTH CARE LTD,Third Party Payments,Private Contractor Fees,73373-RESIDENTIAL & NURSING CARE PLACEMENTS,"1,375.60",Revenue,24/02/2015,Social Care & Inclusion
WC53-0251,ALPHA HEALTH CARE LTD,Third Party Payments,Private Contractor Fees,73373-RESIDENTIAL & NURSING CARE PLACEMENTS,"1,382.00",Revenue,24/02/2015,Social Care & Inclusion
WC53-0252,ALPHA HEALTH CARE LTD,Third Party Payments,Private Contractor Fees,73373-RESIDENTIAL & NURSING CARE PLACEMENTS,"1,460.40",Revenue,24/02/2015,Social Care & Inclusion
WC53-0253,ALPHA HEALTH CARE LTD,Third Party Payments,Private Contractor Fees,73373-RESIDENTIAL & NURSING CARE PLACEMENTS,"1,460.40",Revenue,24/02/2015,Social Care & Inclusion
WC53-0254,ALPHA HEALTH CARE LTD,Third Party Payments,Private Contractor Fees,73373-RESIDENTIAL & NURSING CARE PLACEMENTS,"1,470.60",Revenue,24/02/2015,Social Care & Inclusion
WC53-0255,ALPHA HEALTH CARE LTD,Third Party Payments,Private Contractor Fees,73373-RESIDENTIAL & NURSING CARE PLACEMENTS,"1,476.84",Revenue,24/02/2015,Social Care & Inclusion
WC53-0256,ALPHA HEALTH CARE LTD,Third Party Payments,Private Contractor Fees,73373-RESIDENTIAL & NURSING CARE PLACEMENTS,"1,476.84",Revenue,24/02/2015,Social Care & Inclusion
WC53-0257,ALPHA HEALTH CARE LTD,Third Party Payments,Private Contractor Fees,73373-RESIDENTIAL & NURSING CARE PLACEMENTS,"1,489.60",Revenue,24/02/2015,Social Care & Inclusion
WC53-0258,ALPHA HEALTH CARE LTD,Third Party Payments,Private Contractor Fees,73373-RESIDENTIAL & NURSING CARE PLACEMENTS,"1,489.60",Revenue,24/02/2015,Social Care & Inclusion
WC53-0259,ALPHA HEALTH CARE LTD,Third Party Payments,Private Contractor Fees,73373-RESIDENTIAL & NURSING CARE PLACEMENTS,"1,489.60",Revenue,24/02/2015,Social Care & Inclusion
WC53-0260,ALPHA HEALTH CARE LTD,Third Party Payments,Private Contractor Fees,73373-RESIDENTIAL & NURSING CARE PLACEMENTS,"1,489.60",Revenue,24/02/2015,Social Care & Inclusion
WC53-0261,ALPHA HEALTH CARE LTD,Third Party Payments,Private Contractor Fees,73373-RESIDENTIAL & NURSING CARE PLACEMENTS,"1,489.60",Revenue,24/02/2015,Social Care & Inclusion
WC53-0262,ALPHA HEALTH CARE LTD,Third Party Payments,Private Contractor Fees,73373-RESIDENTIAL & NURSING CARE PLACEMENTS,"1,489.60",Revenue,24/02/2015,Social Care & Inclusion
WC53-0263,ALPHA HEALTH CARE LTD,Third Party Payments,Private Contractor Fees,73373-RESIDENTIAL & NURSING CARE PLACEMENTS,"1,489.60",Revenue,24/02/2015,Social Care & Inclusion
WC53-0264,ALPHA HEALTH CARE LTD,Third Party Payments,Private Contractor Fees,73373-RESIDENTIAL & NURSING CARE PLACEMENTS,"1,489.60",Revenue,24/02/2015,Social Care & Inclusion
WC53-0265,ALPHA HEALTH CARE LTD,Third Party Payments,Private Contractor Fees,73373-RESIDENTIAL & NURSING CARE PLACEMENTS,"1,489.60",Revenue,24/02/2015,Social Care & Inclusion
WC53-0266,ALPHA HEALTH CARE LTD,Third Party Payments,Private Contractor Fees,73373-RESIDENTIAL & NURSING CARE PLACEMENTS,"1,489.64",Revenue,24/02/2015,Social Care & Inclusion
WC53-0267,ALPHA HEALTH CARE LTD,Third Party Payments,Private Contractor Fees,73373-RESIDENTIAL & NURSING CARE PLACEMENTS,"1,534.12",Revenue,17/02/2015,Social Care & Inclusion
WC53-0268,ALPHA HEALTH CARE LTD,Third Party Payments,Private Contractor Fees,73373-RESIDENTIAL & NURSING CARE PLACEMENTS,"1,534.12",Revenue,24/02/2015,Social Care & Inclusion
WC53-0269,ALPHA HEALTH CARE LTD,Third Party Payments,Private Contractor Fees,73373-RESIDENTIAL & NURSING CARE PLACEMENTS,"1,534.12",Revenue,24/02/2015,Social Care & Inclusion
WC53-0270,ALPHA HEALTH CARE LTD,Third Party Payments,Private Contractor Fees,73373-RESIDENTIAL & NURSING CARE PLACEMENTS,"1,534.12",Revenue,24/02/2015,Social Care & Inclusion
WC53-0271,ALPHA HEALTH CARE LTD,Third Party Payments,Private Contractor Fees,73373-RESIDENTIAL & NURSING CARE PLACEMENTS,"1,590.32",Revenue,24/02/2015,Social Care & Inclusion
WC53-0272,ALPHA HEALTH CARE LTD,Third Party Payments,Private Contractor Fees,73373-RESIDENTIAL & NURSING CARE PLACEMENTS,"1,937.56",Revenue,24/02/2015,Social Care & Inclusion
WC53-0273,ALPHA HEALTH CARE LTD,Third Party Payments,Private Contractor Fees,73373-RESIDENTIAL & NURSING CARE PLACEMENTS,"2,008.20",Revenue,24/02/2015,Social Care & Inclusion
WC53-0274,ALPHA HEALTH CARE LTD,Third Party Payments,Private Contractor Fees,73373-RESIDENTIAL & NURSING CARE PLACEMENTS,"2,109.44",Revenue,24/02/2015,Social Care & Inclusion
WC53-0275,ALPHA HEALTH CARE LTD,Third Party Payments,Private Contractor Fees,73373-RESIDENTIAL & NURSING CARE PLACEMENTS,"4,575.20",Revenue,10/02/2015,Social Care & Inclusion
WC53-0276,ALPHA HEALTH CARE LTD,Third Party Payments,Private Contractor Fees,73373-RESIDENTIAL & NURSING CARE PLACEMENTS,"5,426.72",Revenue,24/02/2015,Social Care & Inclusion
WC53-0277,ALPHA HEALTH CARE LTD,Third Party Payments,Private Contractor Fees,73373-RESIDENTIAL & NURSING CARE PLACEMENTS,"5,600.00",Revenue,24/02/2015,Social Care & Inclusion
WC53-0278,ALPHABIOLABS,Supplies & Services,Services,63000-PROFESSIONAL FEES AND SERVICES,274.75,Revenue,10/02/2015,Childrens
WC53-0279,REDACTED,Third Party Payments,Private Contractor Fees,74006-HOLIDAY/CHRISTMAS ALLOWANCE-FOSTER CARERS-OTH AGENCY PROVISION,"1,493.76",Revenue,16/02/2015,Childrens
WC53-0280,REDACTED,Supplies & Services,Other Supplies & Services,62515-MISCELLANEOUS SUPPLIES,350.40,Revenue,02/02/2015,Childrens
WC53-0281,REDACTED,Third Party Payments,Private Contractor Fees,74006-HOLIDAY/CHRISTMAS ALLOWANCE-FOSTER CARERS-OTH AGENCY PROVISION,561.32,Revenue,02/02/2015,Childrens
WC53-0282,REDACTED,Transfer Payments,Transfer Payments,76422-DIRECT PAYMENTS TO SOCIAL SERVICES CLIENTS,654.50,Revenue,10/02/2015,Social Care & Inclusion
WC53-0283,REDACTED,Transfer Payments,Transfer Payments,76422-DIRECT PAYMENTS TO SOCIAL SERVICES CLIENTS,378.25,Revenue,10/02/2015,Childrens
WC53-0284,AMEY LG LIMITED,Supplies & Services,"Equip,Furniture & Materials",60008-MAINTENANCE-FURNITURE & EQUIPMENT,603.02,Revenue,19/02/2015,Social Care & Inclusion
WC53-0285,AMEY LG LIMITED,Capital,Capital,01006-SITE WORKS MAIN CONTRACTORS,813.27,Capital,06/02/2015,Regeneration
WC53-0286,AMEY LG LIMITED,Third Party Payments,Private Contractor Fees,73025-PROFESSIONAL SERVICES-PRIV CONTRACTOR & OTHER AGENCIES,"1,162.97",Revenue,02/02/2015,Neighbourhood Services
WC53-0287,AMEY LG LIMITED,Capital,Capital,01009-SITE WORKS - OTHER CONTRACTORS,"5,255.40",Capital,03/02/2015,Regeneration
WC53-0288,AMEY LG LIMITED,Third Party Payments,Private Contractor Fees,73025-PROFESSIONAL SERVICES-PRIV CONTRACTOR & OTHER AGENCIES,"8,727.68",Revenue,25/02/2015,Neighbourhood Services
WC53-0289,AMG NURSING CARE SERVICES,Supplies & Services,Services,63000-PROFESSIONAL FEES AND SERVICES,"1,088.88",Revenue,04/02/2015,Childrens
WC53-0290,AMG NURSING CARE SERVICES,Supplies & Services,Services,63000-PROFESSIONAL FEES AND SERVICES,"2,229.76",Revenue,01/02/2015,Childrens
WC53-0291,AMG NURSING CARE SERVICES,Supplies & Services,Services,63000-PROFESSIONAL FEES AND SERVICES,"2,229.76",Revenue,04/02/2015,Childrens
WC53-0292,AMG NURSING CARE SERVICES,Supplies & Services,Services,63000-PROFESSIONAL FEES AND SERVICES,"2,229.76",Revenue,23/02/2015,Childrens
WC53-0293,AMG NURSING CARE SERVICES,Supplies & Services,Services,63000-PROFESSIONAL FEES AND SERVICES,"2,229.76",Revenue,24/02/2015,Childrens
WC53-0294,AMG NURSING CARE SERVICES,Third Party Payments,Private Contractor Fees,73372-DOMICILIARY CARE,"5,862.13",Revenue,23/02/2015,Social Care & Inclusion
WC53-0295,REDACTED,Transfer Payments,Transfer Payments,76422-DIRECT PAYMENTS TO SOCIAL SERVICES CLIENTS,"1,485.40",Revenue,10/02/2015,Social Care & Inclusion
WC53-0296,REDACTED,Transfer Payments,Transfer Payments,76422-DIRECT PAYMENTS TO SOCIAL SERVICES CLIENTS,891.24,Revenue,10/02/2015,Social Care & Inclusion
WC53-0297,REDACTED,Third Party Payments,Private Contractor Fees,74006-HOLIDAY/CHRISTMAS ALLOWANCE-FOSTER CARERS-OTH AGENCY PROVISION,417.56,Revenue,16/02/2015,Childrens
WC53-0298,REDACTED,Transfer Payments,Transfer Payments,76422-DIRECT PAYMENTS TO SOCIAL SERVICES CLIENTS,569.50,Revenue,10/02/2015,Social Care & Inclusion
WC53-0299,REDACTED,Supplies & Services,Other Supplies & Services,62515-MISCELLANEOUS SUPPLIES,350.40,Revenue,02/02/2015,Childrens
WC53-0300,REDACTED,Supplies & Services,Other Supplies & Services,62515-MISCELLANEOUS SUPPLIES,914.24,Revenue,02/02/2015,Childrens
WC53-0301,REDACTED,Third Party Payments,Private Contractor Fees,74006-HOLIDAY/CHRISTMAS ALLOWANCE-FOSTER CARERS-OTH AGENCY PROVISION,"1,278.80",Revenue,02/02/2015,Childrens
WC53-0302,REDACTED,Transfer Payments,Transfer Payments,76422-DIRECT PAYMENTS TO SOCIAL SERVICES CLIENTS,378.00,Revenue,10/02/2015,Social Care & Inclusion
WC53-0303,REDACTED,Third Party Payments,Private Contractor Fees,74006-HOLIDAY/CHRISTMAS ALLOWANCE-FOSTER CARERS-OTH AGENCY PROVISION,886.32,Revenue,02/02/2015,Childrens
WC53-0304,REDACTED,Supplies & Services,Other Supplies & Services,62515-MISCELLANEOUS SUPPLIES,896.24,Revenue,02/02/2015,Childrens
WC53-0305,ANDREWS ELECTRICAL LTD,Capital,Capital,01006-SITE WORKS MAIN CONTRACTORS,"4,976.27",Capital,16/02/2015,Childrens
WC53-0306,ANGEL COURT RESIDENTIAL CARE HOME,Third Party Payments,Private Contractor Fees,73373-RESIDENTIAL & NURSING CARE PLACEMENTS,521.57,Revenue,24/02/2015,Social Care & Inclusion
WC53-0307,ANGEL COURT RESIDENTIAL CARE HOME,Third Party Payments,Private Contractor Fees,73373-RESIDENTIAL & NURSING CARE PLACEMENTS,625.89,Revenue,24/02/2015,Social Care & Inclusion
WC53-0308,ANGEL COURT RESIDENTIAL CARE HOME,Third Party Payments,Private Contractor Fees,73373-RESIDENTIAL & NURSING CARE PLACEMENTS,"1,669.03",Revenue,24/02/2015,Social Care & Inclusion
WC53-0309,ANGEL COURT RESIDENTIAL CARE HOME,Third Party Payments,Private Contractor Fees,73373-RESIDENTIAL & NURSING CARE PLACEMENTS,"3,232.61",Revenue,24/02/2015,Social Care & Inclusion
WC53-0310,ANGEL COURT RESIDENTIAL CARE HOME,Third Party Payments,Private Contractor Fees,73373-RESIDENTIAL & NURSING CARE PLACEMENTS,"3,534.85",Revenue,24/02/2015,Social Care & Inclusion
WC53-0311,ANGEL COURT RESIDENTIAL CARE HOME,Third Party Payments,Private Contractor Fees,73373-RESIDENTIAL & NURSING CARE PLACEMENTS,"5,528.66",Revenue,24/02/2015,Social Care & Inclusion
WC53-0312,REDACTED,Third Party Payments,Private Contractor Fees,74006-HOLIDAY/CHRISTMAS ALLOWANCE-FOSTER CARERS-OTH AGENCY PROVISION,"1,918.20",Revenue,16/02/2015,Childrens
WC53-0313,REDACTED,Third Party Payments,Private Contractor Fees,74006-HOLIDAY/CHRISTMAS ALLOWANCE-FOSTER CARERS-OTH AGENCY PROVISION,796.00,Revenue,16/02/2015,Childrens
WC53-0314,ANGLIA STAIRLIFTS LTD,Capital,Capital,01045-PRIVATE GRANTS,"3,695.00",Capital,11/02/2015,Resources
WC53-0315,ANGLIA STAIRLIFTS LTD,Capital,Capital,01045-PRIVATE GRANTS,"3,715.00",Capital,01/02/2015,Resources
WC53-0316,ANGLIA STAIRLIFTS LTD,Capital,Capital,01045-PRIVATE GRANTS,"3,805.00",Capital,01/02/2015,Resources
WC53-0317,ANGLIA STAIRLIFTS LTD,Capital,Capital,01045-PRIVATE GRANTS,"3,890.00",Capital,11/02/2015,Resources
WC53-0318,ANGLIA STAIRLIFTS LTD,Capital,Capital,01045-PRIVATE GRANTS,"3,936.00",Capital,24/02/2015,Resources
WC53-0319,ANGLIA STAIRLIFTS LTD,Capital,Capital,01045-PRIVATE GRANTS,"3,975.00",Capital,17/02/2015,Resources
WC53-0320,ANGLIA STAIRLIFTS LTD,Capital,Capital,01006-SITE WORKS MAIN CONTRACTORS,"3,985.00",Capital,19/02/2015,Resources
WC53-0321,ANGLIA STAIRLIFTS LTD,Capital,Capital,01045-PRIVATE GRANTS,"4,115.00",Capital,11/02/2015,Resources
WC53-0322,ANGLIA STAIRLIFTS LTD,Capital,Capital,01045-PRIVATE GRANTS,"4,165.00",Capital,01/02/2015,Resources
WC53-0323,ANGLIA STAIRLIFTS LTD,Capital,Capital,01045-PRIVATE GRANTS,"4,225.00",Capital,25/02/2015,Resources
WC53-0324,ANGLIA STAIRLIFTS LTD,Capital,Capital,01045-PRIVATE GRANTS,"4,825.00",Capital,24/02/2015,Resources
WC53-0325,ANGLIA STAIRLIFTS LTD,Capital,Capital,01045-PRIVATE GRANTS,"4,895.00",Capital,25/02/2015,Resources
WC53-0326,ANGLIA STAIRLIFTS LTD,Capital,Capital,01045-PRIVATE GRANTS,"5,195.00",Capital,01/02/2015,Resources
WC53-0327,ANGLIA STAIRLIFTS LTD,Capital,Capital,01045-PRIVATE GRANTS,"5,249.00",Capital,25/02/2015,Resources
WC53-0328,REDACTED,Supplies & Services,Other Supplies & Services,62515-MISCELLANEOUS SUPPLIES,459.44,Revenue,02/02/2015,Childrens
WC53-0329,REDACTED,Third Party Payments,Private Contractor Fees,74006-HOLIDAY/CHRISTMAS ALLOWANCE-FOSTER CARERS-OTH AGENCY PROVISION,"1,435.40",Revenue,02/02/2015,Childrens
WC53-0330,REDACTED,Transfer Payments,Transfer Payments,76422-DIRECT PAYMENTS TO SOCIAL SERVICES CLIENTS,318.00,Revenue,10/02/2015,Social Care & Inclusion
WC53-0331,REDACTED,Supplies & Services,Services,63000-PROFESSIONAL FEES AND SERVICES,500.00,Revenue,04/02/2015,Neighbourhood Services
WC53-0332,REDACTED,Third Party Payments,Private Contractor Fees,73374-SUPPORTED & OTHER ACCOMMODATION,906.06,Revenue,13/02/2015,Social Care & Inclusion
WC53-0333,REDACTED,Transfer Payments,Transfer Payments,76422-DIRECT PAYMENTS TO SOCIAL SERVICES CLIENTS,625.82,Revenue,10/02/2015,Social Care & Inclusion
WC53-0334,ANSON COURT RESIDENTIAL HOME,Third Party Payments,Private Contractor Fees,73373-RESIDENTIAL & NURSING CARE PLACEMENTS,"-1,424.54",Revenue,24/02/2015,Social Care & Inclusion
WC53-0335,ANSON COURT RESIDENTIAL HOME,Third Party Payments,Private Contractor Fees,73373-RESIDENTIAL & NURSING CARE PLACEMENTS,-383.53,Revenue,17/02/2015,Social Care & Inclusion
WC53-0336,ANSON COURT RESIDENTIAL HOME,Third Party Payments,Private Contractor Fees,73373-RESIDENTIAL & NURSING CARE PLACEMENTS,"1,532.52",Revenue,17/02/2015,Social Care & Inclusion
WC53-0337,ANSON COURT RESIDENTIAL HOME,Third Party Payments,Private Contractor Fees,73373-RESIDENTIAL & NURSING CARE PLACEMENTS,"1,534.12",Revenue,17/02/2015,Social Care & Inclusion
WC53-0338,ANSON COURT RESIDENTIAL HOME,Third Party Payments,Private Contractor Fees,73373-RESIDENTIAL & NURSING CARE PLACEMENTS,"1,534.12",Revenue,17/02/2015,Social Care & Inclusion
WC53-0339,ANSON COURT RESIDENTIAL HOME,Third Party Payments,Private Contractor Fees,73373-RESIDENTIAL & NURSING CARE PLACEMENTS,"1,534.12",Revenue,17/02/2015,Social Care & Inclusion
WC53-0340,ANSON COURT RESIDENTIAL HOME,Third Party Payments,Private Contractor Fees,73373-RESIDENTIAL & NURSING CARE PLACEMENTS,"1,534.12",Revenue,17/02/2015,Social Care & Inclusion
WC53-0341,ANSON COURT RESIDENTIAL HOME,Third Party Payments,Private Contractor Fees,73373-RESIDENTIAL & NURSING CARE PLACEMENTS,"1,534.12",Revenue,17/02/2015,Social Care & Inclusion
WC53-0342,ANSON COURT RESIDENTIAL HOME,Third Party Payments,Private Contractor Fees,73373-RESIDENTIAL & NURSING CARE PLACEMENTS,"1,534.12",Revenue,17/02/2015,Social Care & Inclusion
WC53-0343,ANSON COURT RESIDENTIAL HOME,Third Party Payments,Private Contractor Fees,73373-RESIDENTIAL & NURSING CARE PLACEMENTS,"1,534.12",Revenue,17/02/2015,Social Care & Inclusion
WC53-0344,ANSON COURT RESIDENTIAL HOME,Third Party Payments,Private Contractor Fees,73373-RESIDENTIAL & NURSING CARE PLACEMENTS,"1,534.12",Revenue,17/02/2015,Social Care & Inclusion
WC53-0345,ANSON COURT RESIDENTIAL HOME,Third Party Payments,Private Contractor Fees,73373-RESIDENTIAL & NURSING CARE PLACEMENTS,"1,534.12",Revenue,24/02/2015,Social Care & Inclusion
WC53-0346,ANSON COURT RESIDENTIAL HOME,Third Party Payments,Private Contractor Fees,73373-RESIDENTIAL & NURSING CARE PLACEMENTS,"1,534.72",Revenue,17/02/2015,Social Care & Inclusion
WC53-0347,ANSON COURT RESIDENTIAL HOME,Third Party Payments,Private Contractor Fees,73373-RESIDENTIAL & NURSING CARE PLACEMENTS,"1,612.92",Revenue,17/02/2015,Social Care & Inclusion
WC53-0348,ANSON COURT RESIDENTIAL HOME,Third Party Payments,Private Contractor Fees,73373-RESIDENTIAL & NURSING CARE PLACEMENTS,"1,614.12",Revenue,17/02/2015,Social Care & Inclusion
WC53-0349,ANSON COURT RESIDENTIAL HOME,Third Party Payments,Private Contractor Fees,73373-RESIDENTIAL & NURSING CARE PLACEMENTS,"1,614.12",Revenue,17/02/2015,Social Care & Inclusion
WC53-0350,ANSON COURT RESIDENTIAL HOME,Third Party Payments,Private Contractor Fees,73373-RESIDENTIAL & NURSING CARE PLACEMENTS,"1,614.72",Revenue,17/02/2015,Social Care & Inclusion
WC53-0351,ANSON COURT RESIDENTIAL HOME,Third Party Payments,Private Contractor Fees,73373-RESIDENTIAL & NURSING CARE PLACEMENTS,"3,287.40",Revenue,04/02/2015,Social Care & Inclusion
WC53-0352,ANTALIS DOCUMENT SUPPLIES,Supplies & Services,"Equip,Furniture & Materials",60500-GENERAL MATERIALS,260.00,Revenue,10/02/2015,Resources
WC53-0353,REDACTED,Third Party Payments,Private Contractor Fees,74006-HOLIDAY/CHRISTMAS ALLOWANCE-FOSTER CARERS-OTH AGENCY PROVISION,"1,364.56",Revenue,16/02/2015,Childrens
WC53-0354,REDACTED,Third Party Payments,Private Contractor Fees,74006-HOLIDAY/CHRISTMAS ALLOWANCE-FOSTER CARERS-OTH AGENCY PROVISION,561.32,Revenue,16/02/2015,Childrens
WC53-0355,APCOA PARKING SERVICES (UK) LTD,Third Party Payments,Private Contractor Fees,73025-PROFESSIONAL SERVICES-PRIV CONTRACTOR & OTHER AGENCIES,"45,997.64",Revenue,16/02/2015,Neighbourhood Services
WC53-0356,APIC UK LTD,Capital,Capital,01006-SITE WORKS MAIN CONTRACTORS,"35,486.25",Capital,02/02/2015,Childrens
WC53-0357,APPLE TRANSCRIPTION LIMITED,Supplies & Services,Services,63000-PROFESSIONAL FEES AND SERVICES,255.15,Revenue,11/02/2015,Childrens
WC53-0358,ARBORETUM DAY CENTRE,Third Party Payments,Private Contractor Fees,73372-DOMICILIARY CARE,-394.94,Revenue,01/02/2015,Social Care & Inclusion
WC53-0359,ARBORETUM DAY CENTRE,Third Party Payments,Private Contractor Fees,73372-DOMICILIARY CARE,564.20,Revenue,01/02/2015,Social Care & Inclusion
WC53-0360,ARBORETUM NURSING HOME.,Third Party Payments,Private Contractor Fees,73373-RESIDENTIAL & NURSING CARE PLACEMENTS,"1,933.16",Revenue,17/02/2015,Social Care & Inclusion
WC53-0361,ARBORETUM NURSING HOME.,Third Party Payments,Private Contractor Fees,73373-RESIDENTIAL & NURSING CARE PLACEMENTS,"1,933.16",Revenue,17/02/2015,Social Care & Inclusion
WC53-0362,ARBORETUM NURSING HOME.,Third Party Payments,Private Contractor Fees,73373-RESIDENTIAL & NURSING CARE PLACEMENTS,"1,978.20",Revenue,17/02/2015,Social Care & Inclusion
WC53-0363,ARBORETUM NURSING HOME.,Third Party Payments,Private Contractor Fees,73373-RESIDENTIAL & NURSING CARE PLACEMENTS,"1,990.76",Revenue,17/02/2015,Social Care & Inclusion
WC53-0364,ARBORETUM NURSING HOME.,Third Party Payments,Private Contractor Fees,73373-RESIDENTIAL & NURSING CARE PLACEMENTS,"1,990.76",Revenue,17/02/2015,Social Care & Inclusion
WC53-0365,ARBORETUM NURSING HOME.,Third Party Payments,Private Contractor Fees,73373-RESIDENTIAL & NURSING CARE PLACEMENTS,"1,990.76",Revenue,17/02/2015,Social Care & Inclusion
WC53-0366,ARBURY WALSALL,Supplies & Services,"Equip,Furniture & Materials",60500-GENERAL MATERIALS,251.08,Revenue,20/02/2015,Neighbourhood Services
WC53-0367,ARBURY WALSALL,Supplies & Services,"Equip,Furniture & Materials",60500-GENERAL MATERIALS,595.70,Revenue,13/02/2015,Neighbourhood Services
WC53-0368,ARCANE DIRECT MARKETING,Supplies & Services,Subscriptions,64500-PUBLICATIONS/ORGANISATIONS-SUBSCRIPTIONS,347.08,Revenue,04/02/2015,Neighbourhood Services
WC53-0369,ARCANE DIRECT MARKETING,Supplies & Services,Subscriptions,64500-PUBLICATIONS/ORGANISATIONS-SUBSCRIPTIONS,968.55,Revenue,04/02/2015,Neighbourhood Services
WC53-0370,ARGUS FIRE PROTECTION LIMITED,Capital,Capital,01006-SITE WORKS MAIN CONTRACTORS,475.00,Capital,04/02/2015,Regeneration
WC53-0371,ARJOHUNTLEIGH UK,Supplies & Services,"Equip,Furniture & Materials",60008-MAINTENANCE-FURNITURE & EQUIPMENT,374.00,Revenue,04/02/2015,Neighbourhood Services
WC53-0372,REDACTED,Transfer Payments,Transfer Payments,76422-DIRECT PAYMENTS TO SOCIAL SERVICES CLIENTS,600.00,Revenue,10/02/2015,Social Care & Inclusion
WC53-0373,ARTREACH EVENTS LTD,Supplies & Services,Services,63000-PROFESSIONAL FEES AND SERVICES,"3,300.00",Revenue,23/02/2015,Neighbourhood Services
WC53-0374,ASA AWARDS,Supplies & Services,"Equip,Furniture & Materials",60006-NEW-FURNITURE & EQUIPMENT,279.40,Revenue,11/02/2015,Neighbourhood Services
WC53-0375,ASA AWARDS,Supplies & Services,"Equip,Furniture & Materials",60006-NEW-FURNITURE & EQUIPMENT,414.50,Revenue,06/02/2015,Neighbourhood Services
WC53-0376,ASH GRANGE CARE HOME,Third Party Payments,Private Contractor Fees,73373-RESIDENTIAL & NURSING CARE PLACEMENTS,"-1,864.12",Revenue,04/02/2015,Social Care & Inclusion
WC53-0377,ASH GRANGE CARE HOME,Third Party Payments,Private Contractor Fees,73373-RESIDENTIAL & NURSING CARE PLACEMENTS,"-1,729.96",Revenue,04/02/2015,Social Care & Inclusion
WC53-0378,ASH GRANGE CARE HOME,Third Party Payments,Private Contractor Fees,73373-RESIDENTIAL & NURSING CARE PLACEMENTS,"-1,245.57",Revenue,04/02/2015,Social Care & Inclusion
WC53-0379,ASH GRANGE CARE HOME,Third Party Payments,Private Contractor Fees,73373-RESIDENTIAL & NURSING CARE PLACEMENTS,-678.04,Revenue,10/02/2015,Social Care & Inclusion
WC53-0380,ASH GRANGE CARE HOME,Third Party Payments,Private Contractor Fees,73373-RESIDENTIAL & NURSING CARE PLACEMENTS,-414.25,Revenue,04/02/2015,Social Care & Inclusion
WC53-0381,ASH GRANGE CARE HOME,Third Party Payments,Private Contractor Fees,73373-RESIDENTIAL & NURSING CARE PLACEMENTS,"1,199.61",Revenue,10/02/2015,Social Care & Inclusion
WC53-0382,ASH GRANGE CARE HOME,Third Party Payments,Private Contractor Fees,73373-RESIDENTIAL & NURSING CARE PLACEMENTS,"1,460.40",Revenue,10/02/2015,Social Care & Inclusion
WC53-0383,ASH GRANGE CARE HOME,Third Party Payments,Private Contractor Fees,73373-RESIDENTIAL & NURSING CARE PLACEMENTS,"1,460.40",Revenue,10/02/2015,Social Care & Inclusion
WC53-0384,ASH GRANGE CARE HOME,Third Party Payments,Private Contractor Fees,73373-RESIDENTIAL & NURSING CARE PLACEMENTS,"1,460.40",Revenue,10/02/2015,Social Care & Inclusion
WC53-0385,ASH GRANGE CARE HOME,Third Party Payments,Private Contractor Fees,73373-RESIDENTIAL & NURSING CARE PLACEMENTS,"1,460.40",Revenue,10/02/2015,Social Care & Inclusion
WC53-0386,ASH GRANGE CARE HOME,Third Party Payments,Private Contractor Fees,73373-RESIDENTIAL & NURSING CARE PLACEMENTS,"1,799.16",Revenue,04/02/2015,Social Care & Inclusion
WC53-0387,ASH GRANGE CARE HOME,Third Party Payments,Private Contractor Fees,73373-RESIDENTIAL & NURSING CARE PLACEMENTS,"1,937.56",Revenue,10/02/2015,Social Care & Inclusion
WC53-0388,ASH GRANGE CARE HOME,Third Party Payments,Private Contractor Fees,73373-RESIDENTIAL & NURSING CARE PLACEMENTS,"1,937.56",Revenue,10/02/2015,Social Care & Inclusion
WC53-0389,ASH GRANGE CARE HOME,Third Party Payments,Private Contractor Fees,73373-RESIDENTIAL & NURSING CARE PLACEMENTS,"1,937.56",Revenue,10/02/2015,Social Care & Inclusion
WC53-0390,ASH GRANGE CARE HOME,Third Party Payments,Private Contractor Fees,73373-RESIDENTIAL & NURSING CARE PLACEMENTS,"1,937.56",Revenue,10/02/2015,Social Care & Inclusion
WC53-0391,ASH GRANGE CARE HOME,Third Party Payments,Private Contractor Fees,73373-RESIDENTIAL & NURSING CARE PLACEMENTS,"1,937.56",Revenue,10/02/2015,Social Care & Inclusion
WC53-0392,ASH GRANGE CARE HOME,Third Party Payments,Private Contractor Fees,73373-RESIDENTIAL & NURSING CARE PLACEMENTS,"1,937.56",Revenue,10/02/2015,Social Care & Inclusion
WC53-0393,ASH GRANGE CARE HOME,Third Party Payments,Private Contractor Fees,73373-RESIDENTIAL & NURSING CARE PLACEMENTS,"1,937.56",Revenue,10/02/2015,Social Care & Inclusion
WC53-0394,ASH GRANGE CARE HOME,Third Party Payments,Private Contractor Fees,73373-RESIDENTIAL & NURSING CARE PLACEMENTS,"1,937.56",Revenue,10/02/2015,Social Care & Inclusion
WC53-0395,ASH GRANGE CARE HOME,Third Party Payments,Private Contractor Fees,73373-RESIDENTIAL & NURSING CARE PLACEMENTS,"1,937.56",Revenue,17/02/2015,Social Care & Inclusion
WC53-0396,ASH GRANGE CARE HOME,Third Party Payments,Private Contractor Fees,73373-RESIDENTIAL & NURSING CARE PLACEMENTS,"2,012.64",Revenue,10/02/2015,Social Care & Inclusion
WC53-0397,ASH GRANGE CARE HOME,Third Party Payments,Private Contractor Fees,73373-RESIDENTIAL & NURSING CARE PLACEMENTS,"2,012.64",Revenue,10/02/2015,Social Care & Inclusion
WC53-0398,ASH GRANGE CARE HOME,Third Party Payments,Private Contractor Fees,73373-RESIDENTIAL & NURSING CARE PLACEMENTS,"2,070.60",Revenue,10/02/2015,Social Care & Inclusion
WC53-0399,ASH GRANGE CARE HOME,Third Party Payments,Private Contractor Fees,73373-RESIDENTIAL & NURSING CARE PLACEMENTS,"2,864.40",Revenue,10/02/2015,Social Care & Inclusion
WC53-0400,ASH GRANGE CARE HOME,Third Party Payments,Private Contractor Fees,73019-PSE'S-PRIV CONTRACTOR FEES,"14,700.00",Revenue,17/02/2015,Social Care & Inclusion
WC53-0401,ASHBOURNE LODGE,Third Party Payments,Private Contractor Fees,73373-RESIDENTIAL & NURSING CARE PLACEMENTS,"2,430.37",Revenue,24/02/2015,Social Care & Inclusion
WC53-0402,ASKEWS AND HOLTS LIBRARY SERVICES LTD,Supplies & Services,"Equip,Furniture & Materials",60501-LIBRARY BOOKS,251.37,Revenue,01/02/2015,Neighbourhood Services
WC53-0403,ASKEWS AND HOLTS LIBRARY SERVICES LTD,Supplies & Services,"Equip,Furniture & Materials",60501-LIBRARY BOOKS,279.01,Revenue,10/02/2015,Neighbourhood Services
WC53-0404,ASKEWS AND HOLTS LIBRARY SERVICES LTD,Supplies & Services,"Equip,Furniture & Materials",60501-LIBRARY BOOKS,287.56,Revenue,01/02/2015,Neighbourhood Services
WC53-0405,ASKEWS AND HOLTS LIBRARY SERVICES LTD,Supplies & Services,"Equip,Furniture & Materials",60501-LIBRARY BOOKS,298.83,Revenue,02/02/2015,Neighbourhood Services
WC53-0406,ASKEWS AND HOLTS LIBRARY SERVICES LTD,Supplies & Services,"Equip,Furniture & Materials",60501-LIBRARY BOOKS,298.83,Revenue,20/02/2015,Neighbourhood Services
WC53-0407,ASKEWS AND HOLTS LIBRARY SERVICES LTD,Supplies & Services,"Equip,Furniture & Materials",60501-LIBRARY BOOKS,325.24,Revenue,02/02/2015,Neighbourhood Services
WC53-0408,ASKEWS AND HOLTS LIBRARY SERVICES LTD,Supplies & Services,"Equip,Furniture & Materials",60501-LIBRARY BOOKS,325.55,Revenue,23/02/2015,Neighbourhood Services
WC53-0409,ASKEWS AND HOLTS LIBRARY SERVICES LTD,Supplies & Services,"Equip,Furniture & Materials",60501-LIBRARY BOOKS,330.87,Revenue,23/02/2015,Neighbourhood Services
WC53-0410,ASKEWS AND HOLTS LIBRARY SERVICES LTD,Supplies & Services,"Equip,Furniture & Materials",60501-LIBRARY BOOKS,355.90,Revenue,10/02/2015,Neighbourhood Services
WC53-0411,ASKEWS AND HOLTS LIBRARY SERVICES LTD,Supplies & Services,"Equip,Furniture & Materials",60501-LIBRARY BOOKS,560.18,Revenue,02/02/2015,Neighbourhood Services
WC53-0412,ASKEWS AND HOLTS LIBRARY SERVICES LTD,Supplies & Services,"Equip,Furniture & Materials",60501-LIBRARY BOOKS,573.53,Revenue,17/02/2015,Neighbourhood Services
WC53-0413,ASKEWS AND HOLTS LIBRARY SERVICES LTD,Supplies & Services,"Equip,Furniture & Materials",60501-LIBRARY BOOKS,683.73,Revenue,02/02/2015,Neighbourhood Services
WC53-0414,ASKEWS AND HOLTS LIBRARY SERVICES LTD,Supplies & Services,"Equip,Furniture & Materials",60501-LIBRARY BOOKS,"1,522.15",Revenue,04/02/2015,Neighbourhood Services
WC53-0415,REDACTED,Transfer Payments,Transfer Payments,76422-DIRECT PAYMENTS TO SOCIAL SERVICES CLIENTS,493.00,Revenue,10/02/2015,Social Care & Inclusion
WC53-0416,ASN FIRST AID & HYGIENE LTD,Supplies & Services,"Equip,Furniture & Materials",61502-PROTECTIVE CLOTHING & UNIFORM,330.00,Revenue,18/02/2015,Social Care & Inclusion
WC53-0417,ASN FIRST AID & HYGIENE LTD,Supplies & Services,"Equip,Furniture & Materials",61502-PROTECTIVE CLOTHING & UNIFORM,702.50,Revenue,25/02/2015,Social Care & Inclusion
WC53-0418,ASSOCIATION OF ACCOUNTING TECHNICIANS.,Supplies & Services,Other Supplies & Services,63013-EXAMINATIONS-SERVICES,434.00,Revenue,18/02/2015,Neighbourhood Services
WC53-0419,ASSOCIATION OF BUILDING CLEANING DIRECT SERVICE PROVIDERS,Supplies & Services,Subscriptions,64500-PUBLICATIONS/ORGANISATIONS-SUBSCRIPTIONS,299.00,Revenue,19/02/2015,Regeneration
WC53-0420,ASSOCIATION OF ELECTORAL ADMINISTRATORS,Employees,Training,30030-EXTERNAL TRAINING,"2,837.80",Revenue,03/02/2015,Resources
WC53-0421,ASSOCIATION OF TOWN CENTRE MANAGEMENT,Supplies & Services,Subscriptions,64500-PUBLICATIONS/ORGANISATIONS-SUBSCRIPTIONS,795.00,Revenue,25/02/2015,Regeneration
WC53-0422,ASTECH CONSULTANTS LTD,Supplies & Services,Communications & Computing,63800-COMPUTER EQUIPMENT AND SUPPLIES,380.00,Revenue,05/02/2015,Resources
WC53-0423,ASTON CHILDRENS CARE,Third Party Payments,Private Contractor Fees,74036-EXTERNAL RESIDENTIAL CARE-OTH AGENCY PROVISION,"15,085.40",Revenue,11/02/2015,Childrens
WC53-0424,ATHWAL NEWS LTD,Supplies & Services,"Equip,Furniture & Materials",60501-LIBRARY BOOKS,574.93,Revenue,06/02/2015,Neighbourhood Services
WC53-0425,ATKINS LIMITED,Employees,Training,30030-EXTERNAL TRAINING,825.00,Revenue,20/02/2015,Regeneration
WC53-0426,AURORA GRAPHICS & DISPLAYS LTD,Supplies & Services,"Printing, Stationery & Office Exp",62008-OUTWORK-PRINT ROOM,"1,057.50",Revenue,01/02/2015,Resources
WC53-0427,AURORA GRAPHICS & DISPLAYS LTD,Supplies & Services,"Printing, Stationery & Office Exp",62008-OUTWORK-PRINT ROOM,"2,448.68",Revenue,25/02/2015,Resources
WC53-0428,AUTISM WEST MIDLANDS,Third Party Payments,Private Contractor Fees,73373-RESIDENTIAL & NURSING CARE PLACEMENTS,"7,314.45",Revenue,04/02/2015,Social Care & Inclusion
WC53-0429,AUTISM WEST MIDLANDS 001,Third Party Payments,Private Contractor Fees,73373-RESIDENTIAL & NURSING CARE PLACEMENTS,"4,924.75",Revenue,04/02/2015,Social Care & Inclusion
WC53-0430,AVANTGARDE PHARMA LTD T/A AL-SHAFA PHARMACY,Supplies & Services,Services,63000-PROFESSIONAL FEES AND SERVICES,812.48,Revenue,17/02/2015,Neighbourhood Services
WC53-0431,AXIELL ALM LIMITED,Supplies & Services,Services,63000-PROFESSIONAL FEES AND SERVICES,971.49,Revenue,12/02/2015,Neighbourhood Services
WC53-0432,AXIOMATIC TECHNOLOGY LTD,Supplies & Services,Services,63000-PROFESSIONAL FEES AND SERVICES,689.00,Revenue,13/02/2015,Neighbourhood Services
WC53-0433,REDACTED,Transfer Payments,Transfer Payments,76422-DIRECT PAYMENTS TO SOCIAL SERVICES CLIENTS,"2,024.00",Revenue,10/02/2015,Childrens
WC53-0434,REDACTED,Transfer Payments,Transfer Payments,76422-DIRECT PAYMENTS TO SOCIAL SERVICES CLIENTS,"2,652.00",Revenue,10/02/2015,Social Care & Inclusion
WC53-0435,REDACTED,Third Party Payments,Private Contractor Fees,74006-HOLIDAY/CHRISTMAS ALLOWANCE-FOSTER CARERS-OTH AGENCY PROVISION,909.72,Revenue,02/02/2015,Childrens
WC53-0436,REDACTED,Supplies & Services,Other Supplies & Services,62515-MISCELLANEOUS SUPPLIES,"1,123.93",Revenue,02/02/2015,Childrens
WC53-0437,REDACTED,Supplies & Services,Other Supplies & Services,62515-MISCELLANEOUS SUPPLIES,"1,475.36",Revenue,02/02/2015,Childrens
WC53-0438,REDACTED,Third Party Payments,Private Contractor Fees,74006-HOLIDAY/CHRISTMAS ALLOWANCE-FOSTER CARERS-OTH AGENCY PROVISION,"1,936.64",Revenue,02/02/2015,Childrens
WC53-0439,B&Q WAREHOUSE PLC,Supplies & Services,"Equip,Furniture & Materials",60512-LOOSE TOOLS & CONSUMABLES,317.25,Revenue,11/02/2015,Neighbourhood Services
WC53-0440,BAART HARRIES NEWALL,Capital,Capital,01002-PROJECT FEES,"3,545.50",Capital,20/02/2015,Regeneration
WC53-0441,BAART HARRIES NEWALL,Capital,Capital,01002-PROJECT FEES,"9,041.00",Capital,20/02/2015,Regeneration
WC53-0442,BAART HARRIES NEWALL,Capital,Capital,01002-PROJECT FEES,"10,332.00",Capital,20/02/2015,Regeneration
WC53-0443,REDACTED,Transfer Payments,Transfer Payments,76422-DIRECT PAYMENTS TO SOCIAL SERVICES CLIENTS,863.20,Revenue,10/02/2015,Social Care & Inclusion
WC53-0444,BACHES SOLICITORS,Third Party Payments,Private Contractor Fees,73014-LEGAL FEES-PRIV CONTRACTOR FEES,756.81,Revenue,04/02/2015,Childrens
WC53-0445,REDACTED,Transfer Payments,Transfer Payments,76422-DIRECT PAYMENTS TO SOCIAL SERVICES CLIENTS,"2,849.92",Revenue,10/02/2015,Social Care & Inclusion
WC53-0446,REDACTED,Transfer Payments,Transfer Payments,76422-DIRECT PAYMENTS TO SOCIAL SERVICES CLIENTS,620.00,Revenue,10/02/2015,Social Care & Inclusion
WC53-0447,REDACTED,Transfer Payments,Transfer Payments,76422-DIRECT PAYMENTS TO SOCIAL SERVICES CLIENTS,"1,140.04",Revenue,10/02/2015,Social Care & Inclusion
WC53-0448,REDACTED,Transfer Payments,Transfer Payments,76422-DIRECT PAYMENTS TO SOCIAL SERVICES CLIENTS,450.26,Revenue,10/02/2015,Social Care & Inclusion
WC53-0449,REDACTED,Transfer Payments,Transfer Payments,76422-DIRECT PAYMENTS TO SOCIAL SERVICES CLIENTS,"1,314.88",Revenue,10/02/2015,Social Care & Inclusion
WC53-0450,REDACTED,Transfer Payments,Transfer Payments,76422-DIRECT PAYMENTS TO SOCIAL SERVICES CLIENTS,"1,280.00",Revenue,10/02/2015,Social Care & Inclusion
WC53-0451,REDACTED,Transfer Payments,Transfer Payments,76422-DIRECT PAYMENTS TO SOCIAL SERVICES CLIENTS,632.52,Revenue,10/02/2015,Social Care & Inclusion
WC53-0452,BARNARDOS SERVICES LTD,Third Party Payments,Private Contractor Fees,74037-INDEPENDENT FOSTER CARE-OTH AGENCY PROVISION,"4,180.00",Revenue,11/02/2015,Childrens
WC53-0453,BARNARDOS SERVICES LTD,Third Party Payments,Private Contractor Fees,74000-OTHER AGENCY FEES,"28,667.00",Revenue,16/02/2015,Childrens
WC53-0454,BARONS COURT HOTEL,Transfer Payments,Transfer Payments,76422-DIRECT PAYMENTS TO SOCIAL SERVICES CLIENTS,315.00,Revenue,01/02/2015,Childrens
WC53-0455,BARONS COURT HOTEL,Transfer Payments,Transfer Payments,76010-ACCOMMODATION AND RELATED COSTS-ASSISTANCE TO S/S CLIENTS,562.50,Revenue,01/02/2015,Childrens
WC53-0456,BARONS COURT HOTEL,Employees,Other Staff Costs,34329-HOTEL ACCOMMODATION-EMPLOYEES,827.50,Revenue,03/02/2015,Childrens
WC53-0457,BARONS COURT HOTEL,Transfer Payments,Transfer Payments,76422-DIRECT PAYMENTS TO SOCIAL SERVICES CLIENTS,"1,062.50",Revenue,03/02/2015,Childrens
WC53-0458,BARR BEACON SCHOOL TRUST,Transfer Payments,Transfer Payments,77300-ISB-FORMULA ALLOCATION,"1,240.00",Revenue,17/02/2015,Childrens
WC53-0459,BEADEN POWERLEC LIMITED,Capital,Capital,01006-SITE WORKS MAIN CONTRACTORS,"2,606.25",Capital,01/02/2015,Childrens
WC53-0460,BEADEN POWERLEC LIMITED,Capital,Capital,01006-SITE WORKS MAIN CONTRACTORS,"3,616.47",Capital,16/02/2015,Childrens
WC53-0461,BEADEN POWERLEC LIMITED,Capital,Capital,01006-SITE WORKS MAIN CONTRACTORS,"55,662.68",Capital,16/02/2015,Childrens
WC53-0462,REDACTED,Supplies & Services,Other Supplies & Services,62515-MISCELLANEOUS SUPPLIES,914.24,Revenue,02/02/2015,Childrens
WC53-0463,REDACTED,Transfer Payments,Transfer Payments,76422-DIRECT PAYMENTS TO SOCIAL SERVICES CLIENTS,641.76,Revenue,10/02/2015,Social Care & Inclusion
WC53-0464,BECKYS CHILDMINDING SERVICE,Third Party Payments,Grants to Other Orgs,66505-OTHER-GRANTS TO OTHER ORGS,"1,026.90",Revenue,18/02/2015,Childrens
WC53-0465,BEESWIFT LTD,Supplies & Services,"Equip,Furniture & Materials",61500-CLOTHING & LAUNDRY,287.10,Revenue,04/02/2015,Neighbourhood Services
WC53-0466,REDACTED,Supplies & Services,Other Supplies & Services,62515-MISCELLANEOUS SUPPLIES,350.40,Revenue,02/02/2015,Childrens
WC53-0467,REDACTED,Third Party Payments,Private Contractor Fees,74006-HOLIDAY/CHRISTMAS ALLOWANCE-FOSTER CARERS-OTH AGENCY PROVISION,561.32,Revenue,02/02/2015,Childrens
WC53-0468,BELLEVUE COURT CARE HOME,Third Party Payments,Private Contractor Fees,73373-RESIDENTIAL & NURSING CARE PLACEMENTS,"1,486.96",Revenue,10/02/2015,Social Care & Inclusion
WC53-0469,BELLEVUE COURT CARE HOME,Third Party Payments,Private Contractor Fees,73373-RESIDENTIAL & NURSING CARE PLACEMENTS,"1,494.00",Revenue,10/02/2015,Social Care & Inclusion
WC53-0470,BELLEVUE COURT CARE HOME,Third Party Payments,Private Contractor Fees,73373-RESIDENTIAL & NURSING CARE PLACEMENTS,"1,530.16",Revenue,10/02/2015,Social Care & Inclusion
WC53-0471,REDACTED,Transfer Payments,Transfer Payments,76422-DIRECT PAYMENTS TO SOCIAL SERVICES CLIENTS,"2,205.00",Revenue,10/02/2015,Social Care & Inclusion
WC53-0472,BENTLEY COURT PRIORY,Third Party Payments,Private Contractor Fees,73373-RESIDENTIAL & NURSING CARE PLACEMENTS,"2,140.29",Revenue,17/02/2015,Social Care & Inclusion
WC53-0473,BENTLEY WEST CHILDRENS CENTRE,Employees,Other Staff Costs,32000-MISC FEES AND EXPENSES,426.00,Revenue,18/02/2015,Childrens
WC53-0474,REDACTED,Transfer Payments,Transfer Payments,76422-DIRECT PAYMENTS TO SOCIAL SERVICES CLIENTS,424.56,Revenue,10/02/2015,Social Care & Inclusion
WC53-0475,BERTRAM TRADING LTD T/A BERTRAM LIBRARY SERVICES),Supplies & Services,"Equip,Furniture & Materials",60501-LIBRARY BOOKS,293.44,Revenue,02/02/2015,Neighbourhood Services
WC53-0476,REDACTED,Transfer Payments,Transfer Payments,76422-DIRECT PAYMENTS TO SOCIAL SERVICES CLIENTS,912.00,Revenue,10/02/2015,Social Care & Inclusion
WC53-0477,REDACTED,Third Party Payments,Private Contractor Fees,74006-HOLIDAY/CHRISTMAS ALLOWANCE-FOSTER CARERS-OTH AGENCY PROVISION,"1,332.31",Revenue,02/02/2015,Childrens
WC53-0478,REDACTED,Supplies & Services,Other Supplies & Services,62515-MISCELLANEOUS SUPPLIES,"2,138.16",Revenue,02/02/2015,Childrens
WC53-0479,REDACTED,Transfer Payments,Transfer Payments,76422-DIRECT PAYMENTS TO SOCIAL SERVICES CLIENTS,968.00,Revenue,10/02/2015,Social Care & Inclusion
WC53-0480,BESCOT LODGE RESIDENTIAL CARE HOME,Third Party Payments,Private Contractor Fees,73373-RESIDENTIAL & NURSING CARE PLACEMENTS,"1,460.40",Revenue,17/02/2015,Social Care & Inclusion
WC53-0481,BESCOT LODGE RESIDENTIAL CARE HOME,Third Party Payments,Private Contractor Fees,73373-RESIDENTIAL & NURSING CARE PLACEMENTS,"1,534.12",Revenue,17/02/2015,Social Care & Inclusion
WC53-0482,BESCOT LODGE RESIDENTIAL CARE HOME,Third Party Payments,Private Contractor Fees,73373-RESIDENTIAL & NURSING CARE PLACEMENTS,"1,534.12",Revenue,17/02/2015,Social Care & Inclusion
WC53-0483,BESCOT LODGE RESIDENTIAL CARE HOME,Third Party Payments,Private Contractor Fees,73373-RESIDENTIAL & NURSING CARE PLACEMENTS,"1,534.12",Revenue,17/02/2015,Social Care & Inclusion
WC53-0484,BESCOT LODGE RESIDENTIAL CARE HOME,Third Party Payments,Private Contractor Fees,73373-RESIDENTIAL & NURSING CARE PLACEMENTS,"1,534.12",Revenue,17/02/2015,Social Care & Inclusion
WC53-0485,BESCOT LODGE RESIDENTIAL CARE HOME,Third Party Payments,Private Contractor Fees,73373-RESIDENTIAL & NURSING CARE PLACEMENTS,"1,534.12",Revenue,17/02/2015,Social Care & Inclusion
WC53-0486,BESCOT LODGE RESIDENTIAL CARE HOME,Third Party Payments,Private Contractor Fees,73373-RESIDENTIAL & NURSING CARE PLACEMENTS,"1,550.52",Revenue,17/02/2015,Social Care & Inclusion
WC53-0487,BESCOT LODGE RESIDENTIAL CARE HOME,Third Party Payments,Private Contractor Fees,73373-RESIDENTIAL & NURSING CARE PLACEMENTS,"1,550.60",Revenue,17/02/2015,Social Care & Inclusion
WC53-0488,BESCOT PROMOTIONS,Third Party Payments,Private Contractor Fees,73025-PROFESSIONAL SERVICES-PRIV CONTRACTOR & OTHER AGENCIES,"3,250.00",Revenue,11/02/2015,Regeneration
WC53-0489,BETHPHAGE.,Third Party Payments,Private Contractor Fees,73374-SUPPORTED & OTHER ACCOMMODATION,812.50,Revenue,09/02/2015,Social Care & Inclusion
WC53-0490,BETHPHAGE.,Third Party Payments,Private Contractor Fees,73374-SUPPORTED & OTHER ACCOMMODATION,"1,502.73",Revenue,09/02/2015,Social Care & Inclusion
WC53-0491,BETHPHAGE.,Third Party Payments,Private Contractor Fees,73374-SUPPORTED & OTHER ACCOMMODATION,"1,768.00",Revenue,09/02/2015,Social Care & Inclusion
WC53-0492,BETHPHAGE.,Third Party Payments,Private Contractor Fees,73374-SUPPORTED & OTHER ACCOMMODATION,"2,003.63",Revenue,09/02/2015,Social Care & Inclusion
WC53-0493,BETHPHAGE.,Third Party Payments,Private Contractor Fees,73374-SUPPORTED & OTHER ACCOMMODATION,"2,031.84",Revenue,09/02/2015,Social Care & Inclusion
WC53-0494,BETHPHAGE.,Third Party Payments,Private Contractor Fees,73374-SUPPORTED & OTHER ACCOMMODATION,"2,210.00",Revenue,09/02/2015,Social Care & Inclusion
WC53-0495,BETHPHAGE.,Third Party Payments,Private Contractor Fees,73374-SUPPORTED & OTHER ACCOMMODATION,"2,539.80",Revenue,09/02/2015,Social Care & Inclusion
WC53-0496,BETHPHAGE.,Third Party Payments,Private Contractor Fees,73374-SUPPORTED & OTHER ACCOMMODATION,"3,831.92",Revenue,09/02/2015,Social Care & Inclusion
WC53-0497,BETHPHAGE.,Third Party Payments,Private Contractor Fees,73374-SUPPORTED & OTHER ACCOMMODATION,"4,789.90",Revenue,09/02/2015,Social Care & Inclusion
WC53-0498,REDACTED,Transfer Payments,Transfer Payments,76422-DIRECT PAYMENTS TO SOCIAL SERVICES CLIENTS,949.52,Revenue,10/02/2015,Social Care & Inclusion
WC53-0499,REDACTED,Transfer Payments,Transfer Payments,76422-DIRECT PAYMENTS TO SOCIAL SERVICES CLIENTS,"1,958.00",Revenue,10/02/2015,Social Care & Inclusion
WC53-0500,BFA SAFETY TRAINING,Employees,Training,30030-EXTERNAL TRAINING,295.00,Revenue,16/02/2015,Resources
WC53-0501,BFA SAFETY TRAINING,Employees,Training,30030-EXTERNAL TRAINING,795.00,Revenue,25/02/2015,Resources
WC53-0502,BIDFORD ON AVON C OF E PRIMARY SCHOOL,Transfer Payments,Transfer Payments,77300-ISB-FORMULA ALLOCATION,550.00,Revenue,17/02/2015,Childrens
WC53-0503,BIDFORD ON AVON C OF E PRIMARY SCHOOL,Transfer Payments,Transfer Payments,77300-ISB-FORMULA ALLOCATION,573.00,Revenue,17/02/2015,Childrens
WC53-0504,BIDFORD ON AVON C OF E PRIMARY SCHOOL,Transfer Payments,Transfer Payments,77300-ISB-FORMULA ALLOCATION,"1,550.00",Revenue,18/02/2015,Childrens
WC53-0505,BIDFORD ON AVON C OF E PRIMARY SCHOOL,Transfer Payments,Transfer Payments,77300-ISB-FORMULA ALLOCATION,"1,550.00",Revenue,18/02/2015,Childrens
WC53-0506,BIFFA WASTE SERVICES LTD,Third Party Payments,Private Contractor Fees,73005-LANDFILL PTYS-PRIV CONTRACTOR FEES,"1,336.44",Revenue,04/02/2015,Neighbourhood Services
WC53-0507,BIFFA WASTE SERVICES LTD,Third Party Payments,Private Contractor Fees,73005-LANDFILL PTYS-PRIV CONTRACTOR FEES,"1,904.74",Revenue,19/02/2015,Neighbourhood Services
WC53-0508,BIFFA WASTE SERVICES LTD,Third Party Payments,Private Contractor Fees,73005-LANDFILL PTYS-PRIV CONTRACTOR FEES,"2,253.31",Revenue,25/02/2015,Neighbourhood Services
WC53-0509,BIFFA WASTE SERVICES LTD,Third Party Payments,Private Contractor Fees,73005-LANDFILL PTYS-PRIV CONTRACTOR FEES,"2,640.61",Revenue,03/02/2015,Neighbourhood Services
WC53-0510,BIFFA WASTE SERVICES LTD,Third Party Payments,Private Contractor Fees,73005-LANDFILL PTYS-PRIV CONTRACTOR FEES,"3,141.78",Revenue,16/02/2015,Neighbourhood Services
WC53-0511,BIFFA WASTE SERVICES LTD,Third Party Payments,Private Contractor Fees,73039-LANDFILL TAX-PRIV CONTRACTOR FEES,"8,281.60",Revenue,04/02/2015,Neighbourhood Services
WC53-0512,BIFFA WASTE SERVICES LTD,Third Party Payments,Private Contractor Fees,73039-LANDFILL TAX-PRIV CONTRACTOR FEES,"11,803.20",Revenue,19/02/2015,Neighbourhood Services
WC53-0513,BIFFA WASTE SERVICES LTD,Third Party Payments,Private Contractor Fees,73039-LANDFILL TAX-PRIV CONTRACTOR FEES,"13,963.20",Revenue,25/02/2015,Neighbourhood Services
WC53-0514,BIFFA WASTE SERVICES LTD,Third Party Payments,Private Contractor Fees,73039-LANDFILL TAX-PRIV CONTRACTOR FEES,"16,363.20",Revenue,03/02/2015,Neighbourhood Services
WC53-0515,BIFFA WASTE SERVICES LTD,Third Party Payments,Private Contractor Fees,73039-LANDFILL TAX-PRIV CONTRACTOR FEES,"19,468.80",Revenue,16/02/2015,Neighbourhood Services
WC53-0516,REDACTED,Transfer Payments,Transfer Payments,76422-DIRECT PAYMENTS TO SOCIAL SERVICES CLIENTS,487.72,Revenue,10/02/2015,Childrens
WC53-0517,REDACTED,Transfer Payments,Transfer Payments,76422-DIRECT PAYMENTS TO SOCIAL SERVICES CLIENTS,537.20,Revenue,10/02/2015,Childrens
WC53-0518,BIRMINGHAM CITY COUNCIL,Third Party Payments,Private Contractor Fees,71000-PAYMENTS FOR SERVICES FROM OTHER LOCAL AUTHORITIES,"5,100.50",Revenue,10/02/2015,Regeneration
WC53-0519,BIRMINGHAM CITY COUNCIL,Third Party Payments,Private Contractor Fees,71000-PAYMENTS FOR SERVICES FROM OTHER LOCAL AUTHORITIES,"10,201.00",Revenue,10/02/2015,Neighbourhood Services
WC53-0520,BLACK COUNTRY CONSORTIUM LIMITED,Supplies & Services,Other Supplies & Services,62523-EVENTS,"3,700.00",Revenue,11/02/2015,Regeneration
WC53-0521,BLACK COUNTRY CONSORTIUM LIMITED,Third Party Payments,Grants to Other Orgs,66500-GRANTS TO OTHER ORGS,"252,977.18",Revenue,16/02/2015,Regeneration
WC53-0522,BLACK COUNTRY PARTNERSHIP NHS,Third Party Payments,Joint Arrangements,71007-CONTRIBUTION TO PCT,"54,570.00",Revenue,09/02/2015,Social Care & Inclusion
WC53-0523,BLACK COUNTRY PARTNERSHIP NHS,Third Party Payments,Joint Arrangements,71007-CONTRIBUTION TO PCT,"261,332.09",Revenue,17/02/2015,Social Care & Inclusion
WC53-0524,BLACK COUNTRY TOURING,Supplies & Services,Subscriptions,64500-PUBLICATIONS/ORGANISATIONS-SUBSCRIPTIONS,"5,225.00",Revenue,23/02/2015,Neighbourhood Services
WC53-0525,BLACK COUNTRY UNIVERSITY TECHNICAL COLLEGE,Supplies & Services,"Equip,Furniture & Materials",60001-REPAIRS/CLEANING-EQUIPMENT,"5,000.00",Revenue,24/02/2015,Neighbourhood Services
WC53-0526,BLAKENALL HEATH JMI SCHOOL,Transfer Payments,Transfer Payments,77300-ISB-FORMULA ALLOCATION,"86,631.80",Revenue,17/02/2015,Childrens
WC53-0527,BLANCHWORTH CARE HOMES LIMITED,Third Party Payments,Private Contractor Fees,73373-RESIDENTIAL & NURSING CARE PLACEMENTS,-647.52,Revenue,10/02/2015,Social Care & Inclusion
WC53-0528,BLANCHWORTH CARE HOMES LIMITED,Third Party Payments,Private Contractor Fees,73373-RESIDENTIAL & NURSING CARE PLACEMENTS,"2,007.30",Revenue,10/02/2015,Social Care & Inclusion
WC53-0529,BLOXWICH COMMUNITY PARTNERSHIP.,Supplies & Services,Other Supplies & Services,62515-MISCELLANEOUS SUPPLIES,559.96,Revenue,10/02/2015,Neighbourhood Services
WC53-0530,BLOXWICH RADIO TAXIS,Transport,Hire,52000-WITH DRIVER-HIRE OF VEHICLES,"1,250.00",Revenue,20/02/2015,Childrens
WC53-0531,BLOXWICH RADIO TAXIS,Transport,Hire,52000-WITH DRIVER-HIRE OF VEHICLES,"1,294.00",Revenue,20/02/2015,Childrens
WC53-0532,BORN COMMUNICATION LTD,Supplies & Services,Services,63000-PROFESSIONAL FEES AND SERVICES,500.00,Revenue,02/02/2015,Childrens
WC53-0533,BOULTON TRAVEL LIMITED,Transport,Hire,52000-WITH DRIVER-HIRE OF VEHICLES,"2,260.00",Revenue,11/02/2015,Childrens
WC53-0534,BOULTON TRAVEL LIMITED,Transport,Hire,52000-WITH DRIVER-HIRE OF VEHICLES,"2,440.00",Revenue,11/02/2015,Childrens
WC53-0535,BOURNEMOUTH CONVENTION BUREAU LTD,Employees,Other Staff Costs,34329-HOTEL ACCOMMODATION-EMPLOYEES,315.00,Revenue,04/02/2015,Resources
WC53-0536,BOWDEN DERRA PARK,Third Party Payments,Private Contractor Fees,73373-RESIDENTIAL & NURSING CARE PLACEMENTS,"10,271.64",Revenue,17/02/2015,Social Care & Inclusion
WC53-0537,BRABNERS CHAFFE STREET LLP,Capital,Capital,01022-LEGAL FEES,750.00,Capital,01/02/2015,Regeneration
WC53-0538,BRADLEY ENVIRONMENTAL,Capital,Capital,01006-SITE WORKS MAIN CONTRACTORS,"1,197.00",Capital,09/02/2015,Childrens
WC53-0539,BRADLEY ENVIRONMENTAL,Capital,Capital,01006-SITE WORKS MAIN CONTRACTORS,"2,200.00",Capital,25/02/2015,Regeneration
WC53-0540,BRELMAYNE LTD,Supplies & Services,"Equip,Furniture & Materials",60500-GENERAL MATERIALS,251.59,Revenue,02/02/2015,Social Care & Inclusion
WC53-0541,BRELMAYNE LTD,Capital,Capital,01006-SITE WORKS MAIN CONTRACTORS,252.39,Capital,25/02/2015,Regeneration
WC53-0542,BRELMAYNE LTD,Premises,Premises-Repairs & Maintenance,"40000-REPAIRS,ALTERATIONS & MAINTENANCE-PREM",273.57,Revenue,01/02/2015,Regeneration
WC53-0543,BRELMAYNE LTD,Premises,Premises-Repairs & Maintenance,"40000-REPAIRS,ALTERATIONS & MAINTENANCE-PREM",277.74,Revenue,01/02/2015,Regeneration
WC53-0544,BRELMAYNE LTD,Premises,Premises-Repairs & Maintenance,"40000-REPAIRS,ALTERATIONS & MAINTENANCE-PREM",283.07,Revenue,17/02/2015,Regeneration
WC53-0545,BRELMAYNE LTD,Premises,Premises-Repairs & Maintenance,"40000-REPAIRS,ALTERATIONS & MAINTENANCE-PREM",296.86,Revenue,11/02/2015,Regeneration
WC53-0546,BRELMAYNE LTD,Premises,Premises-Repairs & Maintenance,"40000-REPAIRS,ALTERATIONS & MAINTENANCE-PREM",316.44,Revenue,18/02/2015,Regeneration
WC53-0547,BRELMAYNE LTD,Premises,Premises-Repairs & Maintenance,"40000-REPAIRS,ALTERATIONS & MAINTENANCE-PREM",356.96,Revenue,18/02/2015,Regeneration
WC53-0548,BRELMAYNE LTD,Third Party Payments,Private Contractor Fees,73025-PROFESSIONAL SERVICES-PRIV CONTRACTOR & OTHER AGENCIES,391.84,Revenue,18/02/2015,Regeneration
WC53-0549,BRELMAYNE LTD,Premises,Premises-Repairs & Maintenance,"40000-REPAIRS,ALTERATIONS & MAINTENANCE-PREM",393.23,Revenue,23/02/2015,Regeneration
WC53-0550,BRELMAYNE LTD,Premises,Premises-Repairs & Maintenance,"40000-REPAIRS,ALTERATIONS & MAINTENANCE-PREM",412.09,Revenue,17/02/2015,Regeneration
WC53-0551,BRELMAYNE LTD,Third Party Payments,Private Contractor Fees,73025-PROFESSIONAL SERVICES-PRIV CONTRACTOR & OTHER AGENCIES,436.25,Revenue,13/02/2015,Regeneration
WC53-0552,BRELMAYNE LTD,Capital,Capital,01006-SITE WORKS MAIN CONTRACTORS,616.60,Capital,03/02/2015,Regeneration
WC53-0553,BRELMAYNE LTD,Third Party Payments,Private Contractor Fees,73025-PROFESSIONAL SERVICES-PRIV CONTRACTOR & OTHER AGENCIES,728.02,Revenue,01/02/2015,Regeneration
WC53-0554,BRELMAYNE LTD,Third Party Payments,Private Contractor Fees,73025-PROFESSIONAL SERVICES-PRIV CONTRACTOR & OTHER AGENCIES,782.61,Revenue,03/02/2015,Regeneration
WC53-0555,BRELMAYNE LTD,Third Party Payments,Private Contractor Fees,73025-PROFESSIONAL SERVICES-PRIV CONTRACTOR & OTHER AGENCIES,"1,041.48",Revenue,18/02/2015,Regeneration
WC53-0556,BRELMAYNE LTD,Premises,Premises-Repairs & Maintenance,40216-OTHER-PLAN MTCE,"2,051.00",Revenue,13/02/2015,Neighbourhood Services
WC53-0557,BRELMAYNE LTD,Premises,Premises-Repairs & Maintenance,40216-OTHER-PLAN MTCE,"2,255.00",Revenue,13/02/2015,Neighbourhood Services
WC53-0558,BRELMAYNE LTD,Supplies & Services,Services,63000-PROFESSIONAL FEES AND SERVICES,"17,864.00",Revenue,13/02/2015,Neighbourhood Services
WC53-0559,BRELMAYNE LTD,Premises,Premises-Repairs & Maintenance,40216-OTHER-PLAN MTCE,"18,745.00",Revenue,13/02/2015,Neighbourhood Services
WC53-0560,REDACTED,Transfer Payments,Transfer Payments,76422-DIRECT PAYMENTS TO SOCIAL SERVICES CLIENTS,440.00,Revenue,10/02/2015,Social Care & Inclusion
WC53-0561,REDACTED,Third Party Payments,Private Contractor Fees,74006-HOLIDAY/CHRISTMAS ALLOWANCE-FOSTER CARERS-OTH AGENCY PROVISION,"1,278.80",Revenue,02/02/2015,Childrens
WC53-0562,REDACTED,Supplies & Services,Other Supplies & Services,62515-MISCELLANEOUS SUPPLIES,"1,428.44",Revenue,02/02/2015,Childrens
WC53-0563,REDACTED,Transfer Payments,Transfer Payments,76422-DIRECT PAYMENTS TO SOCIAL SERVICES CLIENTS,544.00,Revenue,10/02/2015,Social Care & Inclusion
WC53-0564,REDACTED,Third Party Payments,Private Contractor Fees,73374-SUPPORTED & OTHER ACCOMMODATION,"2,935.24",Revenue,19/02/2015,Social Care & Inclusion
WC53-0565,REDACTED,Transfer Payments,Transfer Payments,76422-DIRECT PAYMENTS TO SOCIAL SERVICES CLIENTS,493.20,Revenue,10/02/2015,Social Care & Inclusion
WC53-0566,REDACTED,Transfer Payments,Transfer Payments,76422-DIRECT PAYMENTS TO SOCIAL SERVICES CLIENTS,"1,294.80",Revenue,10/02/2015,Social Care & Inclusion
WC53-0567,REDACTED,Transfer Payments,Transfer Payments,76422-DIRECT PAYMENTS TO SOCIAL SERVICES CLIENTS,697.00,Revenue,10/02/2015,Social Care & Inclusion
WC53-0568,BRIDGEWOOD HEALTH CARE LTD,Third Party Payments,Private Contractor Fees,73373-RESIDENTIAL & NURSING CARE PLACEMENTS,"5,058.44",Revenue,10/02/2015,Social Care & Inclusion
WC53-0569,BRIDGEWOOD HEALTH CARE LTD,Third Party Payments,Private Contractor Fees,73373-RESIDENTIAL & NURSING CARE PLACEMENTS,"5,058.44",Revenue,17/02/2015,Social Care & Inclusion
WC53-0570,REDACTED,Transfer Payments,Transfer Payments,76422-DIRECT PAYMENTS TO SOCIAL SERVICES CLIENTS,"1,039.78",Revenue,10/02/2015,Social Care & Inclusion
WC53-0571,BRISTOW & SUTOR,Supplies & Services,Services,63102-CONSULTANTS FEES - CORPORATE,303.12,Revenue,20/02/2015,Resources
WC53-0572,BRISTOW & SUTOR,Supplies & Services,Services,63102-CONSULTANTS FEES - CORPORATE,627.35,Revenue,04/02/2015,Resources
WC53-0573,BRITISH GAS BUSINESS,Premises,Utilities,42000-GAS-ENERGY COSTS,359.50,Revenue,03/02/2015,Childrens
WC53-0574,BRITISH GAS BUSINESS,Premises,Utilities,42000-GAS-ENERGY COSTS,367.92,Revenue,01/02/2015,Childrens
WC53-0575,BRITISH GAS BUSINESS,Premises,Utilities,42000-GAS-ENERGY COSTS,405.97,Revenue,19/02/2015,Childrens
WC53-0576,BRITISH GAS BUSINESS,Premises,Utilities,42000-GAS-ENERGY COSTS,438.74,Revenue,01/02/2015,Childrens
WC53-0577,BRITISH GAS BUSINESS,Premises,Utilities,42001-GAS METERED-ENERGY COSTS,467.79,Revenue,18/02/2015,Childrens
WC53-0578,BRITISH GAS BUSINESS,Premises,Utilities,42000-GAS-ENERGY COSTS,517.88,Revenue,01/02/2015,Childrens
WC53-0579,BRITISH GAS BUSINESS,Premises,Utilities,42001-GAS METERED-ENERGY COSTS,527.68,Revenue,18/02/2015,Childrens
WC53-0580,BRITISH GAS BUSINESS,Premises,Utilities,42000-GAS-ENERGY COSTS,670.97,Revenue,06/02/2015,Childrens
WC53-0581,BRITISH GAS BUSINESS,Premises,Utilities,42000-GAS-ENERGY COSTS,"1,117.41",Revenue,11/02/2015,Childrens
WC53-0582,BRITISH GAS BUSINESS,Premises,Utilities,42000-GAS-ENERGY COSTS,"2,645.03",Revenue,11/02/2015,Regeneration
WC53-0583,BRITISH GAS BUSINESS,Premises,Utilities,42000-GAS-ENERGY COSTS,"3,144.29",Revenue,19/02/2015,Regeneration
WC53-0584,BRITISH GAS BUSINESS,Premises,Utilities,42000-GAS-ENERGY COSTS,"3,317.78",Revenue,11/02/2015,Regeneration
WC53-0585,BRITISH GAS BUSINESS,Premises,Utilities,42000-GAS-ENERGY COSTS,"5,659.15",Revenue,11/02/2015,Regeneration
WC53-0586,BRITISH GAS BUSINESS,Premises,Utilities,42000-GAS-ENERGY COSTS,"12,410.60",Revenue,18/02/2015,Regeneration
WC53-0587,BRITISH GAS BUSINESS,Premises,Utilities,42000-GAS-ENERGY COSTS,"21,677.11",Revenue,11/02/2015,Regeneration
WC53-0588,BRITISH GAS BUSINESS,Premises,Utilities,42000-GAS-ENERGY COSTS,"27,993.91",Revenue,11/02/2015,Regeneration
WC53-0589,BRITISH GAS BUSINESS,Premises,Utilities,42000-GAS-ENERGY COSTS,"29,319.41",Revenue,11/02/2015,Regeneration
WC53-0590,BRITISH GAS BUSINESS,Premises,Utilities,42000-GAS-ENERGY COSTS,"122,041.08",Revenue,11/02/2015,Regeneration
WC53-0591,BROADOAK CARE,Third Party Payments,Private Contractor Fees,73373-RESIDENTIAL & NURSING CARE PLACEMENTS,782.36,Revenue,24/02/2015,Social Care & Inclusion
WC53-0592,BROADOAK CARE,Third Party Payments,Private Contractor Fees,73373-RESIDENTIAL & NURSING CARE PLACEMENTS,"1,458.16",Revenue,17/02/2015,Social Care & Inclusion
WC53-0593,BROADOAK CARE,Third Party Payments,Private Contractor Fees,73373-RESIDENTIAL & NURSING CARE PLACEMENTS,"1,458.16",Revenue,17/02/2015,Social Care & Inclusion
WC53-0594,BROADOAK CARE,Third Party Payments,Private Contractor Fees,73373-RESIDENTIAL & NURSING CARE PLACEMENTS,"1,458.16",Revenue,17/02/2015,Social Care & Inclusion
WC53-0595,BROADOAK CARE,Third Party Payments,Private Contractor Fees,73373-RESIDENTIAL & NURSING CARE PLACEMENTS,"1,534.00",Revenue,17/02/2015,Social Care & Inclusion
WC53-0596,BROADOAK CARE,Third Party Payments,Private Contractor Fees,73373-RESIDENTIAL & NURSING CARE PLACEMENTS,"1,534.08",Revenue,17/02/2015,Social Care & Inclusion
WC53-0597,BROADOAK CARE,Third Party Payments,Private Contractor Fees,73373-RESIDENTIAL & NURSING CARE PLACEMENTS,"1,534.08",Revenue,17/02/2015,Social Care & Inclusion
WC53-0598,BROADOAK CARE,Third Party Payments,Private Contractor Fees,73373-RESIDENTIAL & NURSING CARE PLACEMENTS,"1,534.08",Revenue,17/02/2015,Social Care & Inclusion
WC53-0599,BROADOAK CARE,Third Party Payments,Private Contractor Fees,73373-RESIDENTIAL & NURSING CARE PLACEMENTS,"1,534.08",Revenue,17/02/2015,Social Care & Inclusion
WC53-0600,BROADOAK CARE,Third Party Payments,Private Contractor Fees,73373-RESIDENTIAL & NURSING CARE PLACEMENTS,"1,534.08",Revenue,17/02/2015,Social Care & Inclusion
WC53-0601,BROADOAK CARE,Third Party Payments,Private Contractor Fees,73373-RESIDENTIAL & NURSING CARE PLACEMENTS,"1,534.08",Revenue,17/02/2015,Social Care & Inclusion
WC53-0602,BROADOAK CARE,Third Party Payments,Private Contractor Fees,73373-RESIDENTIAL & NURSING CARE PLACEMENTS,"1,534.08",Revenue,17/02/2015,Social Care & Inclusion
WC53-0603,BROADOAK CARE,Third Party Payments,Private Contractor Fees,73373-RESIDENTIAL & NURSING CARE PLACEMENTS,"1,534.08",Revenue,17/02/2015,Social Care & Inclusion
WC53-0604,BROADOAK CARE,Third Party Payments,Private Contractor Fees,73373-RESIDENTIAL & NURSING CARE PLACEMENTS,"1,534.08",Revenue,17/02/2015,Social Care & Inclusion
WC53-0605,BROADOAK CARE,Third Party Payments,Private Contractor Fees,73373-RESIDENTIAL & NURSING CARE PLACEMENTS,"1,534.08",Revenue,17/02/2015,Social Care & Inclusion
WC53-0606,BROADOAK CARE,Third Party Payments,Private Contractor Fees,73373-RESIDENTIAL & NURSING CARE PLACEMENTS,"1,534.08",Revenue,17/02/2015,Social Care & Inclusion
WC53-0607,BROADOAK CARE,Third Party Payments,Private Contractor Fees,73373-RESIDENTIAL & NURSING CARE PLACEMENTS,"1,534.08",Revenue,17/02/2015,Social Care & Inclusion
WC53-0608,BROADOAK CARE,Third Party Payments,Private Contractor Fees,73373-RESIDENTIAL & NURSING CARE PLACEMENTS,"1,534.12",Revenue,17/02/2015,Social Care & Inclusion
WC53-0609,BROADOAK CARE,Third Party Payments,Private Contractor Fees,73373-RESIDENTIAL & NURSING CARE PLACEMENTS,"1,534.22",Revenue,17/02/2015,Social Care & Inclusion
WC53-0610,BROADWAY PHARMACY,Third Party Payments,Private Contractor Fees,70000-SOCIAL SERVICES-FEES TO VOLUNTARY BODIES,75.00,Revenue,17/02/2015,Neighbourhood Services
WC53-0611,BROADWAY PHARMACY,Supplies & Services,Services,63000-PROFESSIONAL FEES AND SERVICES,90.80,Revenue,17/02/2015,Neighbourhood Services
WC53-0612,BROADWAY PHARMACY,Supplies & Services,Services,63000-PROFESSIONAL FEES AND SERVICES,123.90,Revenue,17/02/2015,Neighbourhood Services
WC53-0613,BROADWAY PHARMACY,Supplies & Services,Services,63000-PROFESSIONAL FEES AND SERVICES,209.50,Revenue,17/02/2015,Neighbourhood Services
WC53-0614,BROADWAY PHARMACY,Supplies & Services,Services,63000-PROFESSIONAL FEES AND SERVICES,232.50,Revenue,17/02/2015,Neighbourhood Services
WC53-0615,BROADWAY PHARMACY,Supplies & Services,Services,63000-PROFESSIONAL FEES AND SERVICES,364.07,Revenue,17/02/2015,Neighbourhood Services
WC53-0616,BROADWAY PHARMACY,Supplies & Services,Services,63000-PROFESSIONAL FEES AND SERVICES,474.48,Revenue,17/02/2015,Neighbourhood Services
WC53-0617,BROADWAY TRAVEL CONNECTIONS,Transport,Hire,52000-WITH DRIVER-HIRE OF VEHICLES,800.00,Revenue,24/02/2015,Childrens
WC53-0618,BROADWAY TRAVEL CONNECTIONS,Transport,Hire,52000-WITH DRIVER-HIRE OF VEHICLES,"1,600.00",Revenue,02/02/2015,Childrens
WC53-0619,BROADWAY TRAVEL CONNECTIONS,Transport,Hire,52000-WITH DRIVER-HIRE OF VEHICLES,"1,600.00",Revenue,11/02/2015,Childrens
WC53-0620,BROADWAY TRAVEL CONNECTIONS,Transport,Hire,52000-WITH DRIVER-HIRE OF VEHICLES,"1,600.00",Revenue,20/02/2015,Childrens
WC53-0621,BROWNHILLS ASPHALT TARMACADAM,Third Party Payments,Private Contractor Fees,73025-PROFESSIONAL SERVICES-PRIV CONTRACTOR & OTHER AGENCIES,250.00,Revenue,04/02/2015,Regeneration
WC53-0622,BROWNHILLS ASPHALT TARMACADAM,Third Party Payments,Private Contractor Fees,73025-PROFESSIONAL SERVICES-PRIV CONTRACTOR & OTHER AGENCIES,250.00,Revenue,06/02/2015,Regeneration
WC53-0623,BROWNHILLS ASPHALT TARMACADAM,Supplies & Services,"Equip,Furniture & Materials",60006-NEW-FURNITURE & EQUIPMENT,280.00,Revenue,17/02/2015,Neighbourhood Services
WC53-0624,BROWNHILLS ASPHALT TARMACADAM,Premises,Premises-Repairs & Maintenance,"40000-REPAIRS,ALTERATIONS & MAINTENANCE-PREM",285.00,Revenue,13/02/2015,Neighbourhood Services
WC53-0625,BROWNHILLS ASPHALT TARMACADAM,Third Party Payments,Private Contractor Fees,73025-PROFESSIONAL SERVICES-PRIV CONTRACTOR & OTHER AGENCIES,360.00,Revenue,04/02/2015,Regeneration
WC53-0626,BROWNHILLS ASPHALT TARMACADAM,Supplies & Services,"Equip,Furniture & Materials",60500-GENERAL MATERIALS,520.00,Revenue,18/02/2015,Neighbourhood Services
WC53-0627,BROWNHILLS ASPHALT TARMACADAM,Premises,Premises-Repairs & Maintenance,"40000-REPAIRS,ALTERATIONS & MAINTENANCE-PREM",793.00,Revenue,13/02/2015,Regeneration
WC53-0628,BROWNHILLS ASPHALT TARMACADAM,Third Party Payments,Private Contractor Fees,73025-PROFESSIONAL SERVICES-PRIV CONTRACTOR & OTHER AGENCIES,870.00,Revenue,13/02/2015,Regeneration
WC53-0629,BROWNHILLS ASPHALT TARMACADAM,Premises,Premises-Repairs & Maintenance,"40000-REPAIRS,ALTERATIONS & MAINTENANCE-PREM",970.00,Revenue,13/02/2015,Regeneration
WC53-0630,BROWNHILLS ASPHALT TARMACADAM,Capital,Capital,01006-SITE WORKS MAIN CONTRACTORS,"1,106.00",Capital,04/02/2015,Childrens
WC53-0631,BROWNHILLS ASPHALT TARMACADAM,Premises,Premises-Repairs & Maintenance,"40000-REPAIRS,ALTERATIONS & MAINTENANCE-PREM","1,200.00",Revenue,13/02/2015,Regeneration
WC53-0632,BROWNHILLS ASPHALT TARMACADAM,Third Party Payments,Private Contractor Fees,73025-PROFESSIONAL SERVICES-PRIV CONTRACTOR & OTHER AGENCIES,"1,200.00",Revenue,23/02/2015,Regeneration
WC53-0633,BROWNHILLS ASPHALT TARMACADAM,Premises,Premises-Repairs & Maintenance,"40000-REPAIRS,ALTERATIONS & MAINTENANCE-PREM","1,500.00",Revenue,09/02/2015,Regeneration
WC53-0634,BROWNHILLS ASPHALT TARMACADAM,Third Party Payments,Private Contractor Fees,73025-PROFESSIONAL SERVICES-PRIV CONTRACTOR & OTHER AGENCIES,"1,500.00",Revenue,20/02/2015,Regeneration
WC53-0635,BROWNHILLS ASPHALT TARMACADAM,Third Party Payments,Private Contractor Fees,73025-PROFESSIONAL SERVICES-PRIV CONTRACTOR & OTHER AGENCIES,"1,500.00",Revenue,24/02/2015,Neighbourhood Services
WC53-0636,BROWNHILLS ASPHALT TARMACADAM,Premises,Premises-Repairs & Maintenance,"40000-REPAIRS,ALTERATIONS & MAINTENANCE-PREM","1,920.00",Revenue,02/02/2015,Neighbourhood Services
WC53-0637,BROWNHILLS ASPHALT TARMACADAM,Supplies & Services,"Equip,Furniture & Materials",60500-GENERAL MATERIALS,"1,960.00",Revenue,23/02/2015,Neighbourhood Services
WC53-0638,BROWNHILLS ASPHALT TARMACADAM,Premises,Premises-Repairs & Maintenance,"40000-REPAIRS,ALTERATIONS & MAINTENANCE-PREM","1,965.00",Revenue,13/02/2015,Regeneration
WC53-0639,BROWNHILLS ASPHALT TARMACADAM,Capital,Capital,01006-SITE WORKS MAIN CONTRACTORS,"2,400.00",Capital,01/02/2015,Regeneration
WC53-0640,BROWNHILLS ASPHALT TARMACADAM,Premises,Premises-Repairs & Maintenance,"40000-REPAIRS,ALTERATIONS & MAINTENANCE-PREM","2,415.00",Revenue,01/02/2015,Regeneration
WC53-0641,BROWNHILLS ASPHALT TARMACADAM,Capital,Capital,01006-SITE WORKS MAIN CONTRACTORS,"2,500.00",Capital,09/02/2015,Regeneration
WC53-0642,BROWNHILLS ASPHALT TARMACADAM,Premises,Premises-Repairs & Maintenance,"40000-REPAIRS,ALTERATIONS & MAINTENANCE-PREM","2,643.00",Revenue,09/02/2015,Neighbourhood Services
WC53-0643,BROWNHILLS ASPHALT TARMACADAM,Premises,Premises-Repairs & Maintenance,"40000-REPAIRS,ALTERATIONS & MAINTENANCE-PREM","2,950.00",Revenue,01/02/2015,Regeneration
WC53-0644,BROWNHILLS ASPHALT TARMACADAM,Capital,Capital,01006-SITE WORKS MAIN CONTRACTORS,"4,000.00",Capital,01/02/2015,Childrens
WC53-0645,BROWNHILLS ASPHALT TARMACADAM,Supplies & Services,Services,63000-PROFESSIONAL FEES AND SERVICES,"5,098.00",Revenue,09/02/2015,Neighbourhood Services
WC53-0646,BROWNHILLS ASPHALT TARMACADAM,Capital,Capital,01006-SITE WORKS MAIN CONTRACTORS,"5,992.00",Capital,20/02/2015,Neighbourhood Services
WC53-0647,BROWNHILLS ASPHALT TARMACADAM,Capital,Capital,01006-SITE WORKS MAIN CONTRACTORS,"8,326.00",Capital,09/02/2015,Childrens
WC53-0648,BROWNHILLS ASPHALT TARMACADAM,Supplies & Services,"Equip,Furniture & Materials",60008-MAINTENANCE-FURNITURE & EQUIPMENT,"9,580.00",Revenue,23/02/2015,Neighbourhood Services
WC53-0649,BROWNHILLS ASPHALT TARMACADAM,Premises,Premises-Repairs & Maintenance,"40000-REPAIRS,ALTERATIONS & MAINTENANCE-PREM","10,000.00",Revenue,11/02/2015,Regeneration
WC53-0650,BROWNHILLS CARS,Transport,Hire,52000-WITH DRIVER-HIRE OF VEHICLES,280.00,Revenue,25/02/2015,Childrens
WC53-0651,BROWNHILLS CARS,Transport,Hire,52000-WITH DRIVER-HIRE OF VEHICLES,800.00,Revenue,25/02/2015,Childrens
WC53-0652,BROWNHILLS COMMUNITY ASSOCIATION,Supplies & Services,Other Supplies & Services,62515-MISCELLANEOUS SUPPLIES,600.00,Revenue,01/02/2015,Neighbourhood Services
WC53-0653,REDACTED,Transfer Payments,Transfer Payments,76422-DIRECT PAYMENTS TO SOCIAL SERVICES CLIENTS,"1,445.00",Revenue,10/02/2015,Social Care & Inclusion
WC53-0654,REDACTED,Supplies & Services,Services,63000-PROFESSIONAL FEES AND SERVICES,600.00,Revenue,04/02/2015,Neighbourhood Services
WC53-0655,BT,Supplies & Services,Communications & Computing,63601-COSTS (NOT INTERNAL RECHARGES)-TELEPHONES,"6,744.00",Revenue,01/02/2015,Neighbourhood Services
WC53-0656,BT PLC,Supplies & Services,Communications & Computing,63602-COST OF RENTAL-TELEPHONES,348.15,Revenue,18/02/2015,Childrens
WC53-0657,BT PLC,Supplies & Services,Communications & Computing,63601-COSTS (NOT INTERNAL RECHARGES)-TELEPHONES,"1,678.02",Revenue,09/02/2015,Resources
WC53-0658,BT PLC,Supplies & Services,Communications & Computing,63601-COSTS (NOT INTERNAL RECHARGES)-TELEPHONES,"4,259.38",Revenue,09/02/2015,Resources
WC53-0659,BT PLC,Supplies & Services,Communications & Computing,63807-COMMS LINKS-COMPUTER,"5,525.80",Revenue,25/02/2015,Resources
WC53-0660,BT PLC,Supplies & Services,Communications & Computing,63600-TELEPHONES INTERNAL RECHARGE (do not use),"14,698.57",Revenue,16/02/2015,Resources
WC53-0661,BUPA CARE HOMES (CFHCARE) LTD,Third Party Payments,Private Contractor Fees,73373-RESIDENTIAL & NURSING CARE PLACEMENTS,"1,458.00",Revenue,17/02/2015,Social Care & Inclusion
WC53-0662,BUPA CARE HOMES (CFHCARE) LTD,Third Party Payments,Private Contractor Fees,73373-RESIDENTIAL & NURSING CARE PLACEMENTS,"1,494.00",Revenue,17/02/2015,Social Care & Inclusion
WC53-0663,BUPA CARE HOMES (CFHCARE) LTD,Third Party Payments,Private Contractor Fees,73373-RESIDENTIAL & NURSING CARE PLACEMENTS,"3,060.92",Revenue,17/02/2015,Social Care & Inclusion
WC53-0664,BURTON ADDICTION CENTRE,Supplies & Services,Services,63000-PROFESSIONAL FEES AND SERVICES,"1,350.00",Revenue,06/02/2015,Neighbourhood Services
WC53-0665,BUSH HOME LTD,Third Party Payments,Private Contractor Fees,73373-RESIDENTIAL & NURSING CARE PLACEMENTS,273.95,Revenue,24/02/2015,Social Care & Inclusion
WC53-0666,BUSH HOME LTD,Third Party Payments,Private Contractor Fees,73373-RESIDENTIAL & NURSING CARE PLACEMENTS,365.10,Revenue,04/02/2015,Social Care & Inclusion
WC53-0667,BUSH HOME LTD,Third Party Payments,Private Contractor Fees,73373-RESIDENTIAL & NURSING CARE PLACEMENTS,"1,095.30",Revenue,04/02/2015,Social Care & Inclusion
WC53-0668,BUSH HOME LTD,Third Party Payments,Private Contractor Fees,73373-RESIDENTIAL & NURSING CARE PLACEMENTS,"1,251.77",Revenue,24/02/2015,Social Care & Inclusion
WC53-0669,BUSH HOME LTD,Third Party Payments,Private Contractor Fees,73373-RESIDENTIAL & NURSING CARE PLACEMENTS,"1,458.16",Revenue,10/02/2015,Social Care & Inclusion
WC53-0670,BUSH HOME LTD,Third Party Payments,Private Contractor Fees,73373-RESIDENTIAL & NURSING CARE PLACEMENTS,"1,460.40",Revenue,10/02/2015,Social Care & Inclusion
WC53-0671,BUSH HOME LTD,Third Party Payments,Private Contractor Fees,73373-RESIDENTIAL & NURSING CARE PLACEMENTS,"1,460.40",Revenue,10/02/2015,Social Care & Inclusion
WC53-0672,BUSH HOME LTD,Third Party Payments,Private Contractor Fees,73373-RESIDENTIAL & NURSING CARE PLACEMENTS,"1,534.12",Revenue,10/02/2015,Social Care & Inclusion
WC53-0673,BUSH HOME LTD,Third Party Payments,Private Contractor Fees,73373-RESIDENTIAL & NURSING CARE PLACEMENTS,"1,534.12",Revenue,10/02/2015,Social Care & Inclusion
WC53-0674,BUSH HOME LTD,Third Party Payments,Private Contractor Fees,73373-RESIDENTIAL & NURSING CARE PLACEMENTS,"1,534.12",Revenue,10/02/2015,Social Care & Inclusion
WC53-0675,BUSH HOME LTD,Third Party Payments,Private Contractor Fees,73373-RESIDENTIAL & NURSING CARE PLACEMENTS,"1,534.12",Revenue,10/02/2015,Social Care & Inclusion
WC53-0676,BUSH HOME LTD,Third Party Payments,Private Contractor Fees,73373-RESIDENTIAL & NURSING CARE PLACEMENTS,"1,534.12",Revenue,10/02/2015,Social Care & Inclusion
WC53-0677,BUSH HOME LTD,Third Party Payments,Private Contractor Fees,73373-RESIDENTIAL & NURSING CARE PLACEMENTS,"1,534.12",Revenue,10/02/2015,Social Care & Inclusion
WC53-0678,BUSH HOME LTD,Third Party Payments,Private Contractor Fees,73373-RESIDENTIAL & NURSING CARE PLACEMENTS,"1,534.12",Revenue,10/02/2015,Social Care & Inclusion
WC53-0679,BUSH HOME LTD,Third Party Payments,Private Contractor Fees,73373-RESIDENTIAL & NURSING CARE PLACEMENTS,"1,557.60",Revenue,10/02/2015,Social Care & Inclusion
WC53-0680,BUSH HOME LTD,Third Party Payments,Private Contractor Fees,73373-RESIDENTIAL & NURSING CARE PLACEMENTS,"2,684.71",Revenue,10/02/2015,Social Care & Inclusion
WC53-0681,BY THE BRIDGE,Third Party Payments,Private Contractor Fees,74037-INDEPENDENT FOSTER CARE-OTH AGENCY PROVISION,"3,880.00",Revenue,11/02/2015,Childrens
WC53-0682,C & V ORCHARD MANOR LTD,Third Party Payments,Private Contractor Fees,73373-RESIDENTIAL & NURSING CARE PLACEMENTS,678.04,Revenue,24/02/2015,Social Care & Inclusion
WC53-0683,C & V ORCHARD MANOR LTD,Third Party Payments,Private Contractor Fees,73373-RESIDENTIAL & NURSING CARE PLACEMENTS,782.36,Revenue,24/02/2015,Social Care & Inclusion
WC53-0684,C & V ORCHARD MANOR LTD,Third Party Payments,Private Contractor Fees,73373-RESIDENTIAL & NURSING CARE PLACEMENTS,"1,439.80",Revenue,10/02/2015,Social Care & Inclusion
WC53-0685,C & V ORCHARD MANOR LTD,Third Party Payments,Private Contractor Fees,73373-RESIDENTIAL & NURSING CARE PLACEMENTS,"1,439.80",Revenue,17/02/2015,Social Care & Inclusion
WC53-0686,C & V ORCHARD MANOR LTD,Third Party Payments,Private Contractor Fees,73373-RESIDENTIAL & NURSING CARE PLACEMENTS,"1,439.80",Revenue,24/02/2015,Social Care & Inclusion
WC53-0687,C & V ORCHARD MANOR LTD,Third Party Payments,Private Contractor Fees,73373-RESIDENTIAL & NURSING CARE PLACEMENTS,"1,439.81",Revenue,17/02/2015,Social Care & Inclusion
WC53-0688,C & V ORCHARD MANOR LTD,Third Party Payments,Private Contractor Fees,73373-RESIDENTIAL & NURSING CARE PLACEMENTS,"1,439.81",Revenue,24/02/2015,Social Care & Inclusion
WC53-0689,C & V ORCHARD MANOR LTD,Third Party Payments,Private Contractor Fees,73373-RESIDENTIAL & NURSING CARE PLACEMENTS,"1,460.40",Revenue,17/02/2015,Social Care & Inclusion
WC53-0690,C & V ORCHARD MANOR LTD,Third Party Payments,Private Contractor Fees,73373-RESIDENTIAL & NURSING CARE PLACEMENTS,"1,460.40",Revenue,24/02/2015,Social Care & Inclusion
WC53-0691,C & V ORCHARD MANOR LTD,Third Party Payments,Private Contractor Fees,73373-RESIDENTIAL & NURSING CARE PLACEMENTS,"1,531.76",Revenue,17/02/2015,Social Care & Inclusion
WC53-0692,C & V ORCHARD MANOR LTD,Third Party Payments,Private Contractor Fees,73373-RESIDENTIAL & NURSING CARE PLACEMENTS,"1,531.76",Revenue,17/02/2015,Social Care & Inclusion
WC53-0693,C & V ORCHARD MANOR LTD,Third Party Payments,Private Contractor Fees,73373-RESIDENTIAL & NURSING CARE PLACEMENTS,"1,531.76",Revenue,24/02/2015,Social Care & Inclusion
WC53-0694,C & V ORCHARD MANOR LTD,Third Party Payments,Private Contractor Fees,73373-RESIDENTIAL & NURSING CARE PLACEMENTS,"1,531.76",Revenue,24/02/2015,Social Care & Inclusion
WC53-0695,C & V ORCHARD RESIDENTIAL LTD,Third Party Payments,Private Contractor Fees,73373-RESIDENTIAL & NURSING CARE PLACEMENTS,"1,458.16",Revenue,10/02/2015,Social Care & Inclusion
WC53-0696,C & V ORCHARD RESIDENTIAL LTD,Third Party Payments,Private Contractor Fees,73373-RESIDENTIAL & NURSING CARE PLACEMENTS,"1,458.16",Revenue,24/02/2015,Social Care & Inclusion
WC53-0697,C & V ORCHARD RESIDENTIAL LTD,Third Party Payments,Private Contractor Fees,73373-RESIDENTIAL & NURSING CARE PLACEMENTS,"1,531.76",Revenue,24/02/2015,Social Care & Inclusion
WC53-0698,C & V ORCHARD RESIDENTIAL LTD,Third Party Payments,Private Contractor Fees,73373-RESIDENTIAL & NURSING CARE PLACEMENTS,"1,531.76",Revenue,24/02/2015,Social Care & Inclusion
WC53-0699,C & V ORCHARD RESIDENTIAL LTD,Third Party Payments,Private Contractor Fees,73373-RESIDENTIAL & NURSING CARE PLACEMENTS,"1,534.12",Revenue,24/02/2015,Social Care & Inclusion
WC53-0700,C & V ORCHARD RESIDENTIAL LTD,Third Party Payments,Private Contractor Fees,73373-RESIDENTIAL & NURSING CARE PLACEMENTS,"1,534.12",Revenue,24/02/2015,Social Care & Inclusion
WC53-0701,C & V ORCHARD RESIDENTIAL LTD,Third Party Payments,Private Contractor Fees,73373-RESIDENTIAL & NURSING CARE PLACEMENTS,"1,534.12",Revenue,24/02/2015,Social Care & Inclusion
WC53-0702,C & V ORCHARD RESIDENTIAL LTD,Third Party Payments,Private Contractor Fees,73373-RESIDENTIAL & NURSING CARE PLACEMENTS,"1,534.12",Revenue,24/02/2015,Social Care & Inclusion
WC53-0703,C ART ART TRANSPORT LTD,Third Party Payments,Private Contractor Fees,73032-TRANSPORTATION-PRIV CONTRACTOR FEES,250.00,Revenue,17/02/2015,Neighbourhood Services
WC53-0704,C ART ART TRANSPORT LTD,Third Party Payments,Private Contractor Fees,73032-TRANSPORTATION-PRIV CONTRACTOR FEES,265.00,Revenue,17/02/2015,Neighbourhood Services
WC53-0705,C ART ART TRANSPORT LTD,Third Party Payments,Private Contractor Fees,73032-TRANSPORTATION-PRIV CONTRACTOR FEES,295.00,Revenue,17/02/2015,Neighbourhood Services
WC53-0706,C ART ART TRANSPORT LTD,Third Party Payments,Private Contractor Fees,73032-TRANSPORTATION-PRIV CONTRACTOR FEES,375.00,Revenue,17/02/2015,Neighbourhood Services
WC53-0707,C ART ART TRANSPORT LTD,Third Party Payments,Private Contractor Fees,73032-TRANSPORTATION-PRIV CONTRACTOR FEES,825.00,Revenue,17/02/2015,Neighbourhood Services
WC53-0708,C ART ART TRANSPORT LTD,Third Party Payments,Private Contractor Fees,73032-TRANSPORTATION-PRIV CONTRACTOR FEES,"1,125.00",Revenue,17/02/2015,Neighbourhood Services
WC53-0709,C ART ART TRANSPORT LTD,Premises,Premises-Repairs & Maintenance,"40000-REPAIRS,ALTERATIONS & MAINTENANCE-PREM","1,163.00",Revenue,13/02/2015,Regeneration
WC53-0710,REDACTED,Supplies & Services,Other Supplies & Services,62515-MISCELLANEOUS SUPPLIES,"4,267.08",Revenue,02/02/2015,Childrens
WC53-0711,REDACTED,Third Party Payments,Private Contractor Fees,74006-HOLIDAY/CHRISTMAS ALLOWANCE-FOSTER CARERS-OTH AGENCY PROVISION,"4,591.44",Revenue,02/02/2015,Childrens
WC53-0712,REDACTED,Supplies & Services,Other Supplies & Services,62515-MISCELLANEOUS SUPPLIES,"1,428.44",Revenue,02/02/2015,Childrens
WC53-0713,REDACTED,Third Party Payments,Private Contractor Fees,74006-HOLIDAY/CHRISTMAS ALLOWANCE-FOSTER CARERS-OTH AGENCY PROVISION,"1,435.40",Revenue,02/02/2015,Childrens
WC53-0714,C P DAVIDSON & SONS LTD,Supplies & Services,"Equip,Furniture & Materials",60514-MATERIALS TO STORES,375.02,Revenue,20/02/2015,Neighbourhood Services
WC53-0715,C P DAVIDSON & SONS LTD,Supplies & Services,"Equip,Furniture & Materials",60500-GENERAL MATERIALS,"1,612.80",Revenue,24/02/2015,Neighbourhood Services
WC53-0716,REDACTED,Supplies & Services,Services,63000-PROFESSIONAL FEES AND SERVICES,426.00,Revenue,20/02/2015,Neighbourhood Services
WC53-0717,REDACTED,Supplies & Services,Services,63000-PROFESSIONAL FEES AND SERVICES,768.00,Revenue,20/02/2015,Neighbourhood Services
WC53-0718,CALDMORE AREA HOUSING ASS LTD,Third Party Payments,Private Contractor Fees,73374-SUPPORTED & OTHER ACCOMMODATION,376.92,Revenue,16/02/2015,Social Care & Inclusion
WC53-0719,CALDMORE AREA HOUSING ASS LTD,Third Party Payments,Private Contractor Fees,73373-RESIDENTIAL & NURSING CARE PLACEMENTS,442.38,Revenue,04/02/2015,Social Care & Inclusion
WC53-0720,CALDMORE AREA HOUSING ASS LTD,Third Party Payments,Private Contractor Fees,73374-SUPPORTED & OTHER ACCOMMODATION,576.80,Revenue,01/02/2015,Social Care & Inclusion
WC53-0721,CALDMORE AREA HOUSING ASS LTD,Third Party Payments,Private Contractor Fees,73373-RESIDENTIAL & NURSING CARE PLACEMENTS,619.33,Revenue,10/02/2015,Social Care & Inclusion
WC53-0722,CALDMORE AREA HOUSING ASS LTD,Third Party Payments,Private Contractor Fees,73373-RESIDENTIAL & NURSING CARE PLACEMENTS,"2,477.32",Revenue,24/02/2015,Social Care & Inclusion
WC53-0723,CALDMORE AREA HOUSING ASS LTD,Third Party Payments,Private Contractor Fees,73373-RESIDENTIAL & NURSING CARE PLACEMENTS,"2,477.32",Revenue,24/02/2015,Social Care & Inclusion
WC53-0724,CALDMORE AREA HOUSING ASS LTD,Third Party Payments,Private Contractor Fees,73373-RESIDENTIAL & NURSING CARE PLACEMENTS,"2,477.32",Revenue,24/02/2015,Social Care & Inclusion
WC53-0725,CALDMORE AREA HOUSING ASS LTD,Third Party Payments,Private Contractor Fees,73373-RESIDENTIAL & NURSING CARE PLACEMENTS,"2,477.32",Revenue,24/02/2015,Social Care & Inclusion
WC53-0726,CALDMORE AREA HOUSING ASS LTD,Third Party Payments,Private Contractor Fees,73373-RESIDENTIAL & NURSING CARE PLACEMENTS,"2,477.32",Revenue,24/02/2015,Social Care & Inclusion
WC53-0727,CALDMORE AREA HOUSING ASS LTD,Third Party Payments,Private Contractor Fees,73373-RESIDENTIAL & NURSING CARE PLACEMENTS,"2,477.32",Revenue,24/02/2015,Social Care & Inclusion
WC53-0728,CALDMORE AREA HOUSING ASS LTD,Third Party Payments,Private Contractor Fees,73373-RESIDENTIAL & NURSING CARE PLACEMENTS,"2,477.32",Revenue,24/02/2015,Social Care & Inclusion
WC53-0729,CALDMORE AREA HOUSING ASS LTD,Third Party Payments,Private Contractor Fees,73373-RESIDENTIAL & NURSING CARE PLACEMENTS,"2,477.32",Revenue,24/02/2015,Social Care & Inclusion
WC53-0730,CALDMORE AREA HOUSING ASS LTD,Third Party Payments,Private Contractor Fees,73373-RESIDENTIAL & NURSING CARE PLACEMENTS,"2,477.32",Revenue,24/02/2015,Social Care & Inclusion
WC53-0731,CALDMORE AREA HOUSING ASS LTD,Third Party Payments,Private Contractor Fees,73373-RESIDENTIAL & NURSING CARE PLACEMENTS,"2,477.32",Revenue,24/02/2015,Social Care & Inclusion
WC53-0732,CALDMORE AREA HOUSING ASS LTD,Third Party Payments,Private Contractor Fees,73373-RESIDENTIAL & NURSING CARE PLACEMENTS,"2,477.32",Revenue,24/02/2015,Social Care & Inclusion
WC53-0733,CALDMORE AREA HOUSING ASS LTD,Third Party Payments,Private Contractor Fees,73373-RESIDENTIAL & NURSING CARE PLACEMENTS,"2,477.32",Revenue,24/02/2015,Social Care & Inclusion
WC53-0734,CALDMORE AREA HOUSING ASS LTD,Third Party Payments,Private Contractor Fees,73373-RESIDENTIAL & NURSING CARE PLACEMENTS,"3,096.65",Revenue,10/02/2015,Social Care & Inclusion
WC53-0735,REDACTED,Third Party Payments,Private Contractor Fees,74006-HOLIDAY/CHRISTMAS ALLOWANCE-FOSTER CARERS-OTH AGENCY PROVISION,373.60,Revenue,16/02/2015,Childrens
WC53-0736,REDACTED,Transfer Payments,Transfer Payments,76422-DIRECT PAYMENTS TO SOCIAL SERVICES CLIENTS,287.70,Revenue,10/02/2015,Childrens
WC53-0737,CAMBIAN CHILDCARE LIMITED,Third Party Payments,Private Contractor Fees,74036-EXTERNAL RESIDENTIAL CARE-OTH AGENCY PROVISION,"2,657.01",Revenue,17/02/2015,Childrens
WC53-0738,CAMBIAN CHILDCARE LIMITED,Third Party Payments,Private Contractor Fees,74037-INDEPENDENT FOSTER CARE-OTH AGENCY PROVISION,"3,103.10",Revenue,04/02/2015,Childrens
WC53-0739,CAMBIAN CHILDCARE LIMITED,Third Party Payments,Private Contractor Fees,74037-INDEPENDENT FOSTER CARE-OTH AGENCY PROVISION,"3,103.10",Revenue,20/02/2015,Childrens
WC53-0740,CAMBIAN CHILDCARE LIMITED,Third Party Payments,Private Contractor Fees,74037-INDEPENDENT FOSTER CARE-OTH AGENCY PROVISION,"3,361.64",Revenue,11/02/2015,Childrens
WC53-0741,CAMBIAN CHILDCARE LIMITED,Third Party Payments,Private Contractor Fees,74037-INDEPENDENT FOSTER CARE-OTH AGENCY PROVISION,"3,361.64",Revenue,20/02/2015,Childrens
WC53-0742,CAMBIAN CHILDCARE LIMITED,Third Party Payments,Private Contractor Fees,74036-EXTERNAL RESIDENTIAL CARE-OTH AGENCY PROVISION,"14,339.67",Revenue,17/02/2015,Childrens
WC53-0743,CAMBIAN LEARNING DISABILITES MIDLANDS LIMITED,Third Party Payments,Private Contractor Fees,73375-IN PATIENT BEDS,"9,853.20",Revenue,17/02/2015,Social Care & Inclusion
WC53-0744,CAMBIAN LEARNING DISABILITES MIDLANDS LIMITED,Third Party Payments,Private Contractor Fees,73375-IN PATIENT BEDS,"10,908.90",Revenue,17/02/2015,Social Care & Inclusion
WC53-0745,CAMPBELL ASSOCIATES,Supplies & Services,"Equip,Furniture & Materials",60008-MAINTENANCE-FURNITURE & EQUIPMENT,689.00,Revenue,20/02/2015,Neighbourhood Services
WC53-0746,CAMPION SCHOOL,Transfer Payments,Transfer Payments,77300-ISB-FORMULA ALLOCATION,"1,900.00",Revenue,17/02/2015,Childrens
WC53-0747,CAPITA BUSINESS SERVICES LTD 001,Employees,Training,30030-EXTERNAL TRAINING,250.00,Revenue,09/02/2015,Childrens
WC53-0748,CAPITA BUSINESS SERVICES LTD 001,Employees,Training,30030-EXTERNAL TRAINING,250.00,Revenue,09/02/2015,Childrens
WC53-0749,CAPITA BUSINESS SERVICES LTD 001,Employees,Training,30030-EXTERNAL TRAINING,399.00,Revenue,24/02/2015,Childrens
WC53-0750,CAPITA BUSINESS SERVICES LTD 001,Supplies & Services,Communications & Computing,63820-RECHARGE FOR MAINTENANCE/APPLICATION COSTS-COMPUTER,"9,995.00",Revenue,09/02/2015,Resources
WC53-0751,CAPITA TREASURY SOLUTIONS LIMITED,Capital,Capital,01018-VEHICLES LEASING,"11,150.00",Capital,20/02/2015,Leasing
WC53-0752,CAPITAL HAIR & BEAUTY LTD,Supplies & Services,Other Supplies & Services,63115-HIRE OF ROOM (duplicate please use 63128)-SERVICES-FEES,600.00,Revenue,18/02/2015,Neighbourhood Services
WC53-0753,CAPSTONE FOSTER CARE (SOUTH EAST) LIMITED,Third Party Payments,Private Contractor Fees,74037-INDEPENDENT FOSTER CARE-OTH AGENCY PROVISION,599.67,Revenue,04/02/2015,Childrens
WC53-0754,CAPSTONE FOSTER CARE (SOUTH EAST) LIMITED,Third Party Payments,Private Contractor Fees,74037-INDEPENDENT FOSTER CARE-OTH AGENCY PROVISION,"1,199.35",Revenue,04/02/2015,Childrens
WC53-0755,CAPSTONE FOSTER CARE (SOUTH EAST) LIMITED,Third Party Payments,Private Contractor Fees,74037-INDEPENDENT FOSTER CARE-OTH AGENCY PROVISION,"1,325.82",Revenue,18/02/2015,Childrens
WC53-0756,CAPSTONE FOSTER CARE (SOUTH EAST) LIMITED,Third Party Payments,Private Contractor Fees,74037-INDEPENDENT FOSTER CARE-OTH AGENCY PROVISION,"2,502.52",Revenue,25/02/2015,Childrens
WC53-0757,CAPSTONE FOSTER CARE (SOUTH EAST) LIMITED,Third Party Payments,Private Contractor Fees,74037-INDEPENDENT FOSTER CARE-OTH AGENCY PROVISION,"2,502.52",Revenue,25/02/2015,Childrens
WC53-0758,CAPSTONE FOSTER CARE (SOUTH EAST) LIMITED,Third Party Payments,Private Contractor Fees,74037-INDEPENDENT FOSTER CARE-OTH AGENCY PROVISION,"2,651.63",Revenue,18/02/2015,Childrens
WC53-0759,CAPSTONE FOSTER CARE (SOUTH EAST) LIMITED,Third Party Payments,Private Contractor Fees,74037-INDEPENDENT FOSTER CARE-OTH AGENCY PROVISION,"2,943.92",Revenue,25/02/2015,Childrens
WC53-0760,CAPSTONE FOSTER CARE (SOUTH EAST) LIMITED,Third Party Payments,Private Contractor Fees,74037-INDEPENDENT FOSTER CARE-OTH AGENCY PROVISION,"3,059.57",Revenue,18/02/2015,Childrens
WC53-0761,CAPSTONE FOSTER CARE (SOUTH EAST) LIMITED,Third Party Payments,Private Contractor Fees,74037-INDEPENDENT FOSTER CARE-OTH AGENCY PROVISION,"3,161.56",Revenue,18/02/2015,Childrens
WC53-0762,CAPSTONE FOSTER CARE (SOUTH EAST) LIMITED,Third Party Payments,Private Contractor Fees,74037-INDEPENDENT FOSTER CARE-OTH AGENCY PROVISION,"3,161.56",Revenue,18/02/2015,Childrens
WC53-0763,CAPSTONE FOSTER CARE (SOUTH EAST) LIMITED,Third Party Payments,Private Contractor Fees,74037-INDEPENDENT FOSTER CARE-OTH AGENCY PROVISION,"3,414.28",Revenue,25/02/2015,Childrens
WC53-0764,CARE 2 U LIMITED,Third Party Payments,Private Contractor Fees,73372-DOMICILIARY CARE,"39,661.68",Revenue,02/02/2015,Social Care & Inclusion
WC53-0765,CARE AVENUES LTD,Third Party Payments,Private Contractor Fees,73372-DOMICILIARY CARE,795.76,Revenue,20/02/2015,Social Care & Inclusion
WC53-0766,CARE AVENUES LTD,Third Party Payments,Private Contractor Fees,73372-DOMICILIARY CARE,901.86,Revenue,20/02/2015,Social Care & Inclusion
WC53-0767,CARE AVENUES LTD,Third Party Payments,Private Contractor Fees,73372-DOMICILIARY CARE,"2,111.39",Revenue,11/02/2015,Social Care & Inclusion
WC53-0768,CARE AVENUES LTD,Third Party Payments,Private Contractor Fees,73372-DOMICILIARY CARE,"2,938.97",Revenue,11/02/2015,Social Care & Inclusion
WC53-0769,CARE AVENUES LTD,Third Party Payments,Private Contractor Fees,73372-DOMICILIARY CARE,"4,010.58",Revenue,11/02/2015,Social Care & Inclusion
WC53-0770,CARE AVENUES LTD,Third Party Payments,Private Contractor Fees,73372-DOMICILIARY CARE,"5,029.14",Revenue,11/02/2015,Social Care & Inclusion
WC53-0771,CARE AVENUES LTD,Third Party Payments,Private Contractor Fees,73372-DOMICILIARY CARE,"7,161.75",Revenue,11/02/2015,Social Care & Inclusion
WC53-0772,CARE FIRST MANAGEMENT SERVICES LTD,Third Party Payments,Private Contractor Fees,73372-DOMICILIARY CARE,780.00,Revenue,13/02/2015,Social Care & Inclusion
WC53-0773,CARE LEAVERS,Supplies & Services,Other Supplies & Services,63114-OTHER FEES & LICENCES-SERVICES-FEES,86.25,Revenue,06/02/2015,Childrens
WC53-0774,CARE LEAVERS,Third Party Payments,Private Contractor Fees,74500-CARE LEAVERS MTCE PAYMENTS,100.00,Revenue,04/02/2015,Childrens
WC53-0775,CARE LEAVERS,Supplies & Services,Other Supplies & Services,64002-OTHER EXPENSES-EXPENSES,218.18,Revenue,06/02/2015,Childrens
WC53-0776,CARE LEAVERS,Supplies & Services,Other Supplies & Services,63114-OTHER FEES & LICENCES-SERVICES-FEES,244.24,Revenue,25/02/2015,Childrens
WC53-0777,CARE LEAVERS,Third Party Payments,Private Contractor Fees,74500-CARE LEAVERS MTCE PAYMENTS,859.00,Revenue,06/02/2015,Childrens
WC53-0778,CARE LEAVERS,Supplies & Services,Other Supplies & Services,64002-OTHER EXPENSES-EXPENSES,"1,098.33",Revenue,25/02/2015,Childrens
WC53-0779,CARE LEAVERS,Transfer Payments,Transfer Payments,76400-RESIDENTS PERSONAL EXPENSES-ALLOWANCES TO S/S CLIENTS,"1,294.65",Revenue,06/02/2015,Childrens
WC53-0780,CARE LEAVERS,Transfer Payments,Transfer Payments,76000-TRANSFER PAYMENTS - SOCIAL SERVICES CLIENTS,"1,325.71",Revenue,06/02/2015,Childrens
WC53-0781,CARE LEAVERS,Third Party Payments,Private Contractor Fees,74500-CARE LEAVERS MTCE PAYMENTS,"1,539.00",Revenue,25/02/2015,Childrens
WC53-0782,CARE LEAVERS,Supplies & Services,Other Supplies & Services,64002-OTHER EXPENSES-EXPENSES,"1,895.41",Revenue,04/02/2015,Childrens
WC53-0783,CARE LEAVERS,Transfer Payments,Transfer Payments,76400-RESIDENTS PERSONAL EXPENSES-ALLOWANCES TO S/S CLIENTS,"2,535.74",Revenue,04/02/2015,Childrens
WC53-0784,CARE LEAVERS,Transfer Payments,Transfer Payments,76010-ACCOMMODATION AND RELATED COSTS-ASSISTANCE TO S/S CLIENTS,"3,243.66",Revenue,25/02/2015,Childrens
WC53-0785,CARE LEAVERS,Transfer Payments,Transfer Payments,76400-RESIDENTS PERSONAL EXPENSES-ALLOWANCES TO S/S CLIENTS,"3,305.60",Revenue,25/02/2015,Childrens
WC53-0786,CARE LEAVERS,Transfer Payments,Transfer Payments,76000-TRANSFER PAYMENTS - SOCIAL SERVICES CLIENTS,"4,703.20",Revenue,04/02/2015,Childrens
WC53-0787,CARE LEAVERS,Transfer Payments,Transfer Payments,76000-TRANSFER PAYMENTS - SOCIAL SERVICES CLIENTS,"5,266.63",Revenue,25/02/2015,Childrens
WC53-0788,CARE LEAVERS,Transfer Payments,Transfer Payments,76010-ACCOMMODATION AND RELATED COSTS-ASSISTANCE TO S/S CLIENTS,"13,590.29",Revenue,06/02/2015,Childrens
WC53-0789,CARE MONITORING 2000 LTD,Supplies & Services,Communications & Computing,63800-COMPUTER EQUIPMENT AND SUPPLIES,310.00,Revenue,01/02/2015,Resources
WC53-0790,CARE SHOP,Supplies & Services,"Equip,Furniture & Materials",60539-CLEANING MATERIALS,-614.38,Revenue,20/02/2015,Social Care & Inclusion
WC53-0791,CARE SHOP,Supplies & Services,"Equip,Furniture & Materials",60539-CLEANING MATERIALS,401.16,Revenue,01/02/2015,Social Care & Inclusion
WC53-0792,CARE SHOP,Supplies & Services,"Equip,Furniture & Materials",60539-CLEANING MATERIALS,468.22,Revenue,20/02/2015,Social Care & Inclusion
WC53-0793,CARE SHOP,Supplies & Services,"Equip,Furniture & Materials",60539-CLEANING MATERIALS,576.81,Revenue,20/02/2015,Social Care & Inclusion
WC53-0794,CARE SHOP,Supplies & Services,"Equip,Furniture & Materials",60539-CLEANING MATERIALS,614.38,Revenue,20/02/2015,Social Care & Inclusion
WC53-0795,CAREVIEW SERVICES LTD,Third Party Payments,Private Contractor Fees,73373-RESIDENTIAL & NURSING CARE PLACEMENTS,"6,009.28",Revenue,10/02/2015,Social Care & Inclusion
WC53-0796,CARING CARE LIMITED,Employees,Agency,34305-AGENCY STAFF-EMPLOYEES,287.50,Revenue,19/02/2015,Social Care & Inclusion
WC53-0797,CARING CARE LIMITED,Third Party Payments,Private Contractor Fees,73372-DOMICILIARY CARE,408.33,Revenue,03/02/2015,Social Care & Inclusion
WC53-0798,CARING CARE LIMITED,Employees,Agency,34305-AGENCY STAFF-EMPLOYEES,517.50,Revenue,19/02/2015,Social Care & Inclusion
WC53-0799,CARING CARE LIMITED,Third Party Payments,Private Contractor Fees,73372-DOMICILIARY CARE,644.00,Revenue,10/02/2015,Social Care & Inclusion
WC53-0800,CARING CARE LIMITED,Third Party Payments,Private Contractor Fees,73372-DOMICILIARY CARE,644.00,Revenue,10/02/2015,Social Care & Inclusion
WC53-0801,CARING CARE LIMITED,Third Party Payments,Private Contractor Fees,73372-DOMICILIARY CARE,943.00,Revenue,10/02/2015,Social Care & Inclusion
WC53-0802,CARING CARE LIMITED,Third Party Payments,Private Contractor Fees,73372-DOMICILIARY CARE,"1,219.00",Revenue,10/02/2015,Social Care & Inclusion
WC53-0803,CARING CARE LIMITED,Third Party Payments,Private Contractor Fees,73372-DOMICILIARY CARE,"1,564.00",Revenue,10/02/2015,Social Care & Inclusion
WC53-0804,CARING CARE LIMITED,Third Party Payments,Private Contractor Fees,73372-DOMICILIARY CARE,"3,173.54",Revenue,10/02/2015,Social Care & Inclusion
WC53-0805,CARING CARE LIMITED,Third Party Payments,Private Contractor Fees,73372-DOMICILIARY CARE,"3,202.75",Revenue,10/02/2015,Social Care & Inclusion
WC53-0806,CARING CARE LIMITED,Third Party Payments,Private Contractor Fees,73372-DOMICILIARY CARE,"27,074.05",Revenue,06/02/2015,Social Care & Inclusion
WC53-0807,CARING CARE LIMITED,Third Party Payments,Private Contractor Fees,73372-DOMICILIARY CARE,"43,530.69",Revenue,02/02/2015,Social Care & Inclusion
WC53-0808,CARING HANDS LIMITED,Third Party Payments,Private Contractor Fees,73372-DOMICILIARY CARE,"49,612.43",Revenue,02/02/2015,Social Care & Inclusion
WC53-0809,REDACTED,Third Party Payments,Private Contractor Fees,73374-SUPPORTED & OTHER ACCOMMODATION,448.24,Revenue,13/02/2015,Social Care & Inclusion
WC53-0810,REDACTED,Third Party Payments,Private Contractor Fees,73374-SUPPORTED & OTHER ACCOMMODATION,"4,912.20",Revenue,19/02/2015,Social Care & Inclusion
WC53-0811,REDACTED,Transfer Payments,Transfer Payments,76422-DIRECT PAYMENTS TO SOCIAL SERVICES CLIENTS,450.00,Revenue,10/02/2015,Social Care & Inclusion
WC53-0812,REDACTED,Supplies & Services,Other Supplies & Services,62515-MISCELLANEOUS SUPPLIES,533.96,Revenue,02/02/2015,Childrens
WC53-0813,CARTER SYNERGY LTD,Premises,Premises-Repairs & Maintenance,"40000-REPAIRS,ALTERATIONS & MAINTENANCE-PREM",392.00,Revenue,11/02/2015,Neighbourhood Services
WC53-0814,CARTER SYNERGY LTD,Premises,Premises-Repairs & Maintenance,40011-SECURITY SYSTEM-OP MTCE,421.80,Revenue,10/02/2015,Neighbourhood Services
WC53-0815,CARTER SYNERGY LTD,Premises,Premises-Repairs & Maintenance,40011-SECURITY SYSTEM-OP MTCE,610.03,Revenue,17/02/2015,Neighbourhood Services
WC53-0816,CARTER SYNERGY LTD,Premises,Premises-Repairs & Maintenance,40013-LIFTS-OP MTCE,"23,925.50",Revenue,04/02/2015,Neighbourhood Services
WC53-0817,CASHFRIDAY,Third Party Payments,Private Contractor Fees,73372-DOMICILIARY CARE,251.81,Revenue,18/02/2015,Social Care & Inclusion
WC53-0818,CASHFRIDAY,Third Party Payments,Private Contractor Fees,73372-DOMICILIARY CARE,252.00,Revenue,18/02/2015,Social Care & Inclusion
WC53-0819,CASHFRIDAY,Third Party Payments,Private Contractor Fees,73372-DOMICILIARY CARE,254.50,Revenue,26/02/2015,Social Care & Inclusion
WC53-0820,CASHFRIDAY,Third Party Payments,Private Contractor Fees,73372-DOMICILIARY CARE,287.00,Revenue,03/02/2015,Social Care & Inclusion
WC53-0821,CASHFRIDAY,Third Party Payments,Private Contractor Fees,73372-DOMICILIARY CARE,287.00,Revenue,25/02/2015,Social Care & Inclusion
WC53-0822,CASHFRIDAY,Third Party Payments,Private Contractor Fees,73372-DOMICILIARY CARE,288.00,Revenue,03/02/2015,Social Care & Inclusion
WC53-0823,CASHFRIDAY,Third Party Payments,Private Contractor Fees,73372-DOMICILIARY CARE,294.00,Revenue,16/02/2015,Social Care & Inclusion
WC53-0824,CASHFRIDAY,Third Party Payments,Private Contractor Fees,73372-DOMICILIARY CARE,294.00,Revenue,16/02/2015,Social Care & Inclusion
WC53-0825,CASHFRIDAY,Third Party Payments,Private Contractor Fees,73372-DOMICILIARY CARE,294.00,Revenue,25/02/2015,Social Care & Inclusion
WC53-0826,CASHFRIDAY,Third Party Payments,Private Contractor Fees,73372-DOMICILIARY CARE,301.50,Revenue,05/02/2015,Social Care & Inclusion
WC53-0827,CASHFRIDAY,Third Party Payments,Private Contractor Fees,73372-DOMICILIARY CARE,301.50,Revenue,25/02/2015,Social Care & Inclusion
WC53-0828,CASHFRIDAY,Third Party Payments,Private Contractor Fees,73372-DOMICILIARY CARE,316.00,Revenue,17/02/2015,Social Care & Inclusion
WC53-0829,CASHFRIDAY,Third Party Payments,Private Contractor Fees,73372-DOMICILIARY CARE,349.00,Revenue,16/02/2015,Social Care & Inclusion
WC53-0830,CASHFRIDAY,Third Party Payments,Private Contractor Fees,73372-DOMICILIARY CARE,349.00,Revenue,18/02/2015,Social Care & Inclusion
WC53-0831,CASHFRIDAY,Third Party Payments,Private Contractor Fees,73372-DOMICILIARY CARE,349.00,Revenue,26/02/2015,Social Care & Inclusion
WC53-0832,CASHFRIDAY,Third Party Payments,Private Contractor Fees,73372-DOMICILIARY CARE,362.00,Revenue,04/02/2015,Social Care & Inclusion
WC53-0833,CASHFRIDAY,Third Party Payments,Private Contractor Fees,73372-DOMICILIARY CARE,383.25,Revenue,16/02/2015,Social Care & Inclusion
WC53-0834,CASHFRIDAY,Third Party Payments,Private Contractor Fees,73372-DOMICILIARY CARE,383.25,Revenue,18/02/2015,Social Care & Inclusion
WC53-0835,CASHFRIDAY,Third Party Payments,Private Contractor Fees,73372-DOMICILIARY CARE,383.25,Revenue,25/02/2015,Social Care & Inclusion
WC53-0836,CASHFRIDAY,Third Party Payments,Private Contractor Fees,73372-DOMICILIARY CARE,385.00,Revenue,05/02/2015,Social Care & Inclusion
WC53-0837,CASHFRIDAY,Third Party Payments,Private Contractor Fees,73372-DOMICILIARY CARE,385.00,Revenue,25/02/2015,Social Care & Inclusion
WC53-0838,CASHFRIDAY,Third Party Payments,Private Contractor Fees,73372-DOMICILIARY CARE,389.75,Revenue,05/02/2015,Social Care & Inclusion
WC53-0839,CASHFRIDAY,Third Party Payments,Private Contractor Fees,73372-DOMICILIARY CARE,392.00,Revenue,18/02/2015,Social Care & Inclusion
WC53-0840,CASHFRIDAY,Third Party Payments,Private Contractor Fees,73372-DOMICILIARY CARE,410.75,Revenue,18/02/2015,Social Care & Inclusion
WC53-0841,CASHFRIDAY,Third Party Payments,Private Contractor Fees,73372-DOMICILIARY CARE,410.75,Revenue,25/02/2015,Social Care & Inclusion
WC53-0842,CASHFRIDAY,Third Party Payments,Private Contractor Fees,73372-DOMICILIARY CARE,421.00,Revenue,18/02/2015,Social Care & Inclusion
WC53-0843,CASHFRIDAY,Third Party Payments,Private Contractor Fees,73372-DOMICILIARY CARE,423.50,Revenue,02/02/2015,Social Care & Inclusion
WC53-0844,CASHFRIDAY,Third Party Payments,Private Contractor Fees,73372-DOMICILIARY CARE,423.50,Revenue,03/02/2015,Social Care & Inclusion
WC53-0845,CASHFRIDAY,Third Party Payments,Private Contractor Fees,73372-DOMICILIARY CARE,425.50,Revenue,02/02/2015,Social Care & Inclusion
WC53-0846,CASHFRIDAY,Third Party Payments,Private Contractor Fees,73372-DOMICILIARY CARE,436.00,Revenue,26/02/2015,Social Care & Inclusion
WC53-0847,CASHFRIDAY,Third Party Payments,Private Contractor Fees,73372-DOMICILIARY CARE,443.00,Revenue,18/02/2015,Social Care & Inclusion
WC53-0848,CASHFRIDAY,Third Party Payments,Private Contractor Fees,73372-DOMICILIARY CARE,443.00,Revenue,25/02/2015,Social Care & Inclusion
WC53-0849,CASHFRIDAY,Third Party Payments,Private Contractor Fees,73372-DOMICILIARY CARE,444.50,Revenue,01/02/2015,Social Care & Inclusion
WC53-0850,CASHFRIDAY,Third Party Payments,Private Contractor Fees,73372-DOMICILIARY CARE,444.50,Revenue,05/02/2015,Social Care & Inclusion
WC53-0851,CASHFRIDAY,Third Party Payments,Private Contractor Fees,73372-DOMICILIARY CARE,444.50,Revenue,05/02/2015,Social Care & Inclusion
WC53-0852,CASHFRIDAY,Third Party Payments,Private Contractor Fees,73372-DOMICILIARY CARE,444.50,Revenue,25/02/2015,Social Care & Inclusion
WC53-0853,CASHFRIDAY,Third Party Payments,Private Contractor Fees,73372-DOMICILIARY CARE,457.50,Revenue,16/02/2015,Social Care & Inclusion
WC53-0854,CASHFRIDAY,Third Party Payments,Private Contractor Fees,73372-DOMICILIARY CARE,460.00,Revenue,04/02/2015,Social Care & Inclusion
WC53-0855,CASHFRIDAY,Third Party Payments,Private Contractor Fees,73372-DOMICILIARY CARE,470.00,Revenue,03/02/2015,Social Care & Inclusion
WC53-0856,CASHFRIDAY,Third Party Payments,Private Contractor Fees,73372-DOMICILIARY CARE,472.50,Revenue,03/02/2015,Social Care & Inclusion
WC53-0857,CASHFRIDAY,Third Party Payments,Private Contractor Fees,73372-DOMICILIARY CARE,479.00,Revenue,03/02/2015,Social Care & Inclusion
WC53-0858,CASHFRIDAY,Third Party Payments,Private Contractor Fees,73372-DOMICILIARY CARE,515.50,Revenue,25/02/2015,Social Care & Inclusion
WC53-0859,CASHFRIDAY,Third Party Payments,Private Contractor Fees,73372-DOMICILIARY CARE,522.50,Revenue,16/02/2015,Social Care & Inclusion
WC53-0860,CASHFRIDAY,Third Party Payments,Private Contractor Fees,73372-DOMICILIARY CARE,532.00,Revenue,02/02/2015,Social Care & Inclusion
WC53-0861,CASHFRIDAY,Third Party Payments,Private Contractor Fees,73372-DOMICILIARY CARE,588.00,Revenue,04/02/2015,Social Care & Inclusion
WC53-0862,CASHFRIDAY,Third Party Payments,Private Contractor Fees,73372-DOMICILIARY CARE,589.25,Revenue,16/02/2015,Social Care & Inclusion
WC53-0863,CASHFRIDAY,Third Party Payments,Private Contractor Fees,73372-DOMICILIARY CARE,596.25,Revenue,01/02/2015,Social Care & Inclusion
WC53-0864,CASHFRIDAY,Third Party Payments,Private Contractor Fees,73372-DOMICILIARY CARE,603.00,Revenue,02/02/2015,Social Care & Inclusion
WC53-0865,CASHFRIDAY,Third Party Payments,Private Contractor Fees,73372-DOMICILIARY CARE,603.25,Revenue,18/02/2015,Social Care & Inclusion
WC53-0866,CASHFRIDAY,Third Party Payments,Private Contractor Fees,73372-DOMICILIARY CARE,603.25,Revenue,25/02/2015,Social Care & Inclusion
WC53-0867,CASHFRIDAY,Third Party Payments,Private Contractor Fees,73372-DOMICILIARY CARE,650.00,Revenue,25/02/2015,Social Care & Inclusion
WC53-0868,CASHFRIDAY,Third Party Payments,Private Contractor Fees,73372-DOMICILIARY CARE,656.00,Revenue,17/02/2015,Social Care & Inclusion
WC53-0869,CASHFRIDAY,Third Party Payments,Private Contractor Fees,73372-DOMICILIARY CARE,698.00,Revenue,04/02/2015,Social Care & Inclusion
WC53-0870,CASHFRIDAY,Third Party Payments,Private Contractor Fees,73372-DOMICILIARY CARE,729.00,Revenue,04/02/2015,Social Care & Inclusion
WC53-0871,CASHFRIDAY,Third Party Payments,Private Contractor Fees,73372-DOMICILIARY CARE,740.00,Revenue,02/02/2015,Social Care & Inclusion
WC53-0872,CASHFRIDAY,Third Party Payments,Private Contractor Fees,73372-DOMICILIARY CARE,763.00,Revenue,02/02/2015,Social Care & Inclusion
WC53-0873,CASHFRIDAY,Third Party Payments,Private Contractor Fees,73372-DOMICILIARY CARE,786.50,Revenue,03/02/2015,Social Care & Inclusion
WC53-0874,CASHFRIDAY,Third Party Payments,Private Contractor Fees,73372-DOMICILIARY CARE,887.50,Revenue,03/02/2015,Social Care & Inclusion
WC53-0875,CASHFRIDAY,Third Party Payments,Private Contractor Fees,73372-DOMICILIARY CARE,889.00,Revenue,04/02/2015,Social Care & Inclusion
WC53-0876,CASHFRIDAY,Third Party Payments,Private Contractor Fees,73372-DOMICILIARY CARE,"1,132.25",Revenue,04/02/2015,Social Care & Inclusion
WC53-0877,CASTLE BUSINESS AND ENTERPRISE COLLEGE,Supplies & Services,Services,63000-PROFESSIONAL FEES AND SERVICES,"1,866.92",Revenue,17/02/2015,Childrens
WC53-0878,REDACTED,Transfer Payments,Transfer Payments,76422-DIRECT PAYMENTS TO SOCIAL SERVICES CLIENTS,250.00,Revenue,10/02/2015,Social Care & Inclusion
WC53-0879,REDACTED,Transfer Payments,Transfer Payments,76422-DIRECT PAYMENTS TO SOCIAL SERVICES CLIENTS,622.68,Revenue,10/02/2015,Social Care & Inclusion
WC53-0880,REDACTED,Transfer Payments,Transfer Payments,76422-DIRECT PAYMENTS TO SOCIAL SERVICES CLIENTS,690.48,Revenue,10/02/2015,Social Care & Inclusion
WC53-0881,REDACTED,Third Party Payments,Private Contractor Fees,74006-HOLIDAY/CHRISTMAS ALLOWANCE-FOSTER CARERS-OTH AGENCY PROVISION,417.56,Revenue,16/02/2015,Childrens
WC53-0882,REDACTED,Transfer Payments,Transfer Payments,76422-DIRECT PAYMENTS TO SOCIAL SERVICES CLIENTS,388.40,Revenue,10/02/2015,Social Care & Inclusion
WC53-0883,REDACTED,Transfer Payments,Transfer Payments,76422-DIRECT PAYMENTS TO SOCIAL SERVICES CLIENTS,"1,014.26",Revenue,10/02/2015,Childrens
WC53-0884,REDACTED,Third Party Payments,Private Contractor Fees,74006-HOLIDAY/CHRISTMAS ALLOWANCE-FOSTER CARERS-OTH AGENCY PROVISION,417.56,Revenue,16/02/2015,Childrens
WC53-0885,CCS MEDIA LTD,Supplies & Services,Communications & Computing,63800-COMPUTER EQUIPMENT AND SUPPLIES,"1,170.00",Revenue,10/02/2015,Resources
WC53-0886,CE RISK SAFETY AND SECURITY LTD,Third Party Payments,Private Contractor Fees,73002-SECURITY-PRIV CONTRACTOR FEES,"5,508.80",Revenue,17/02/2015,Resources
WC53-0887,CE RISK SAFETY AND SECURITY LTD,Third Party Payments,Private Contractor Fees,73002-SECURITY-PRIV CONTRACTOR FEES,"6,453.80",Revenue,18/02/2015,Resources
WC53-0888,CEDER LODGE NURSING HOME,Third Party Payments,Private Contractor Fees,73373-RESIDENTIAL & NURSING CARE PLACEMENTS,"1,933.16",Revenue,17/02/2015,Social Care & Inclusion
WC53-0889,CENGAGE LEARNING SERVICES,Supplies & Services,"Equip,Furniture & Materials",60501-LIBRARY BOOKS,"1,128.75",Revenue,25/02/2015,Neighbourhood Services
WC53-0890,CENGAGE LEARNING SERVICES,Supplies & Services,"Equip,Furniture & Materials",60501-LIBRARY BOOKS,"5,559.75",Revenue,25/02/2015,Neighbourhood Services
WC53-0891,CENTRAL COMMUNITY PRESS LTD,Supplies & Services,Communications & Computing,68001-PUBLICITY & ADVERTISING (NOT STAFF ADVERTISING),"1,575.00",Revenue,20/02/2015,Resources
WC53-0892,CENTRAL CONSTRUCTION TRAINING LTD,Third Party Payments,Grants to Other Orgs,66500-GRANTS TO OTHER ORGS,750.00,Revenue,03/02/2015,Regeneration
WC53-0893,CENTRAL CONSTRUCTION TRAINING LTD,Third Party Payments,Grants to Other Orgs,66500-GRANTS TO OTHER ORGS,"1,500.00",Revenue,03/02/2015,Regeneration
WC53-0894,CENTRAL ENGLAND MUSIC AGENCY,Supplies & Services,Services,63000-PROFESSIONAL FEES AND SERVICES,280.14,Revenue,18/02/2015,Neighbourhood Services
WC53-0895,CENTRAL ENGLAND MUSIC AGENCY,Supplies & Services,Services,63000-PROFESSIONAL FEES AND SERVICES,280.14,Revenue,24/02/2015,Neighbourhood Services
WC53-0896,CENTRAL THEATRE SUPPLIES,Supplies & Services,Services,63000-PROFESSIONAL FEES AND SERVICES,45.20,Revenue,11/02/2015,Neighbourhood Services
WC53-0897,CENTRAL THEATRE SUPPLIES,Supplies & Services,Other Supplies & Services,62523-EVENTS,210.20,Revenue,11/02/2015,Neighbourhood Services
WC53-0898,CENTRO WMPTA,Transfer Payments,Transfer Payments,76000-TRANSFER PAYMENTS - SOCIAL SERVICES CLIENTS,"1,597.50",Revenue,12/02/2015,Social Care & Inclusion
WC53-0899,CENTRO WMPTA,Transfer Payments,Transfer Payments,76000-TRANSFER PAYMENTS - SOCIAL SERVICES CLIENTS,"3,727.50",Revenue,01/02/2015,Social Care & Inclusion
WC53-0900,REDACTED,Third Party Payments,Private Contractor Fees,74006-HOLIDAY/CHRISTMAS ALLOWANCE-FOSTER CARERS-OTH AGENCY PROVISION,561.32,Revenue,16/02/2015,Childrens
WC53-0901,CERTAS ENERGY UK LIMITED,Transport,Other Transport,50301-FUEL-TRANSPORT RUN COSTS,416.22,Revenue,04/02/2015,Neighbourhood Services
WC53-0902,CERTAS ENERGY UK LIMITED,Transport,Other Transport,50301-FUEL-TRANSPORT RUN COSTS,"1,200.02",Revenue,01/02/2015,Neighbourhood Services
WC53-0903,CERTAS ENERGY UK LIMITED,Transport,Other Transport,50301-FUEL-TRANSPORT RUN COSTS,"16,934.26",Revenue,01/02/2015,Neighbourhood Services
WC53-0904,CERTAS ENERGY UK LIMITED,Transport,Other Transport,50301-FUEL-TRANSPORT RUN COSTS,"17,508.99",Revenue,09/02/2015,Neighbourhood Services
WC53-0905,CERTAS ENERGY UK LIMITED,Transport,Other Transport,50301-FUEL-TRANSPORT RUN COSTS,"17,521.75",Revenue,25/02/2015,Neighbourhood Services
WC53-0906,CF ASSET FINANCE LIMITED,Central,Internal Recharges,82012-PRINT & DESIGN CHARGES-INTERNAL,272.86,Revenue,26/02/2015,Childrens
WC53-0907,CF ASSET FINANCE LIMITED,Supplies & Services,"Equip,Furniture & Materials",60009-LEASING/HIRE/RENTAL-EQUIPMENT,318.83,Revenue,10/02/2015,Social Care & Inclusion
WC53-0908,CF CORPORATE FINANCE LTD,Supplies & Services,"Equip,Furniture & Materials",60009-LEASING/HIRE/RENTAL-EQUIPMENT,"1,290.34",Revenue,04/02/2015,Childrens
WC53-0909,CFT FOSTERING LIMITED,Third Party Payments,Private Contractor Fees,74037-INDEPENDENT FOSTER CARE-OTH AGENCY PROVISION,"5,284.16",Revenue,11/02/2015,Childrens
WC53-0910,CHANDOS LODGE CARE HOME,Third Party Payments,Private Contractor Fees,73373-RESIDENTIAL & NURSING CARE PLACEMENTS,"1,632.00",Revenue,10/02/2015,Social Care & Inclusion
WC53-0911,REDACTED,Transfer Payments,Transfer Payments,76422-DIRECT PAYMENTS TO SOCIAL SERVICES CLIENTS,748.00,Revenue,10/02/2015,Social Care & Inclusion
WC53-0912,REDACTED,Third Party Payments,Private Contractor Fees,74006-HOLIDAY/CHRISTMAS ALLOWANCE-FOSTER CARERS-OTH AGENCY PROVISION,639.40,Revenue,16/02/2015,Childrens
WC53-0913,CHARLES CODDY WALKER ACADEMY,Transfer Payments,Transfer Payments,77300-ISB-FORMULA ALLOCATION,675.00,Revenue,19/02/2015,Childrens
WC53-0914,CHARLES CODDY WALKER ACADEMY,Transfer Payments,Transfer Payments,77300-ISB-FORMULA ALLOCATION,"1,025.00",Revenue,20/02/2015,Childrens
WC53-0915,CHARLIE CATERPILLAR'S DAY NURSERY,Employees,Agency,34305-AGENCY STAFF-EMPLOYEES,391.65,Revenue,19/02/2015,Childrens
WC53-0916,CHARLIE CATERPILLAR'S DAY NURSERY,Employees,Agency,34305-AGENCY STAFF-EMPLOYEES,522.20,Revenue,03/02/2015,Childrens
WC53-0917,CHARLIE CATERPILLAR'S DAY NURSERY,Employees,Agency,34305-AGENCY STAFF-EMPLOYEES,552.04,Revenue,12/02/2015,Childrens
WC53-0918,CHARLIE CATERPILLAR'S DAY NURSERY,Employees,Agency,34305-AGENCY STAFF-EMPLOYEES,"1,656.12",Revenue,12/02/2015,Childrens
WC53-0919,CHARLIE CATERPILLAR'S DAY NURSERY,Employees,Agency,34305-AGENCY STAFF-EMPLOYEES,"1,738.93",Revenue,10/02/2015,Childrens
WC53-0920,CHARMEND LTD,Third Party Payments,Private Contractor Fees,73373-RESIDENTIAL & NURSING CARE PLACEMENTS,"1,933.16",Revenue,17/02/2015,Social Care & Inclusion
WC53-0921,CHARMEND LTD,Third Party Payments,Private Contractor Fees,73373-RESIDENTIAL & NURSING CARE PLACEMENTS,"1,937.56",Revenue,17/02/2015,Social Care & Inclusion
WC53-0922,CHARMEND LTD,Third Party Payments,Private Contractor Fees,73373-RESIDENTIAL & NURSING CARE PLACEMENTS,"1,937.56",Revenue,17/02/2015,Social Care & Inclusion
WC53-0923,CHARMEND LTD,Third Party Payments,Private Contractor Fees,73373-RESIDENTIAL & NURSING CARE PLACEMENTS,"2,140.28",Revenue,10/02/2015,Social Care & Inclusion
WC53-0924,CHARMEND LTD,Third Party Payments,Private Contractor Fees,73373-RESIDENTIAL & NURSING CARE PLACEMENTS,"2,145.16",Revenue,10/02/2015,Social Care & Inclusion
WC53-0925,CHARMEND LTD,Third Party Payments,Private Contractor Fees,73373-RESIDENTIAL & NURSING CARE PLACEMENTS,"2,145.16",Revenue,10/02/2015,Social Care & Inclusion
WC53-0926,CHARMEND LTD,Third Party Payments,Private Contractor Fees,73019-PSE'S-PRIV CONTRACTOR FEES,"24,000.00",Revenue,18/02/2015,Social Care & Inclusion
WC53-0927,CHARMEND LTD,Third Party Payments,Private Contractor Fees,73019-PSE'S-PRIV CONTRACTOR FEES,"26,571.43",Revenue,20/02/2015,Social Care & Inclusion
WC53-0928,CHARTER CARE,Third Party Payments,Private Contractor Fees,73372-DOMICILIARY CARE,"37,959.53",Revenue,02/02/2015,Social Care & Inclusion
WC53-0929,CHASE HOUSE AND PARTNER,Third Party Payments,Private Contractor Fees,73373-RESIDENTIAL & NURSING CARE PLACEMENTS,"4,445.68",Revenue,17/02/2015,Social Care & Inclusion
WC53-0930,CHASE HOUSE AND PARTNER,Third Party Payments,Private Contractor Fees,73373-RESIDENTIAL & NURSING CARE PLACEMENTS,"4,445.68",Revenue,24/02/2015,Social Care & Inclusion
WC53-0931,CHASE HOUSE AND PARTNER,Third Party Payments,Private Contractor Fees,73373-RESIDENTIAL & NURSING CARE PLACEMENTS,"4,455.44",Revenue,17/02/2015,Social Care & Inclusion
WC53-0932,CHASE HOUSE AND PARTNER,Third Party Payments,Private Contractor Fees,73373-RESIDENTIAL & NURSING CARE PLACEMENTS,"4,455.44",Revenue,24/02/2015,Social Care & Inclusion
WC53-0933,CHASE HOUSE AND PARTNER,Third Party Payments,Private Contractor Fees,73373-RESIDENTIAL & NURSING CARE PLACEMENTS,"4,562.48",Revenue,17/02/2015,Social Care & Inclusion
WC53-0934,CHASE HOUSE AND PARTNER,Third Party Payments,Private Contractor Fees,73373-RESIDENTIAL & NURSING CARE PLACEMENTS,"4,562.48",Revenue,24/02/2015,Social Care & Inclusion
WC53-0935,CHASE HOUSE AND PARTNER,Third Party Payments,Private Contractor Fees,73373-RESIDENTIAL & NURSING CARE PLACEMENTS,"4,753.76",Revenue,17/02/2015,Social Care & Inclusion
WC53-0936,CHASE HOUSE AND PARTNER,Third Party Payments,Private Contractor Fees,73373-RESIDENTIAL & NURSING CARE PLACEMENTS,"4,753.76",Revenue,24/02/2015,Social Care & Inclusion
WC53-0937,CHASEVIEW CARE HOME,Third Party Payments,Private Contractor Fees,73373-RESIDENTIAL & NURSING CARE PLACEMENTS,"1,494.00",Revenue,17/02/2015,Social Care & Inclusion
WC53-0938,CHECKPRINT LTD,Supplies & Services,Communications & Computing,63800-COMPUTER EQUIPMENT AND SUPPLIES,850.00,Revenue,06/02/2015,Resources
WC53-0939,CHERISH HOME CARE,Employees,Agency,34305-AGENCY STAFF-EMPLOYEES,286.74,Revenue,12/02/2015,Social Care & Inclusion
WC53-0940,CHERISH HOME CARE,Employees,Agency,34305-AGENCY STAFF-EMPLOYEES,297.36,Revenue,12/02/2015,Social Care & Inclusion
WC53-0941,CHERISH HOME CARE,Employees,Agency,34305-AGENCY STAFF-EMPLOYEES,446.04,Revenue,12/02/2015,Social Care & Inclusion
WC53-0942,CHERISH HOME CARE,Employees,Agency,34305-AGENCY STAFF-EMPLOYEES,525.69,Revenue,12/02/2015,Social Care & Inclusion
WC53-0943,CHERISH HOME CARE,Employees,Agency,34305-AGENCY STAFF-EMPLOYEES,584.10,Revenue,12/02/2015,Social Care & Inclusion
WC53-0944,CHERISH HOME CARE,Employees,Agency,34305-AGENCY STAFF-EMPLOYEES,594.72,Revenue,12/02/2015,Social Care & Inclusion
WC53-0945,CHERISH HOME CARE,Employees,Agency,34305-AGENCY STAFF-EMPLOYEES,594.72,Revenue,12/02/2015,Social Care & Inclusion
WC53-0946,REDACTED,Transfer Payments,Transfer Payments,76422-DIRECT PAYMENTS TO SOCIAL SERVICES CLIENTS,"1,601.60",Revenue,10/02/2015,Social Care & Inclusion
WC53-0947,CHG-MERIDIAN COMPUTER LEASING UK LTD,Supplies & Services,"Equip,Furniture & Materials",60009-LEASING/HIRE/RENTAL-EQUIPMENT,344.30,Revenue,19/02/2015,Childrens
WC53-0948,CHILD CONNECTIONS (UK) LIMITED,Transport,Car Allowances,53001-OTHER/VOLUNTEERS-CAR ALLOWANCES,132.71,Revenue,11/02/2015,Childrens
WC53-0949,CHILD CONNECTIONS (UK) LIMITED,Transport,Car Allowances,53003-OTHER-TRAVEL ALLOWANCES,139.64,Revenue,11/02/2015,Childrens
WC53-0950,CHILD CONNECTIONS (UK) LIMITED,Third Party Payments,Private Contractor Fees,76003-SECTION 34 (CONTACT),174.27,Revenue,11/02/2015,Childrens
WC53-0951,CHILDCARE BUREAU LTD,Third Party Payments,Private Contractor Fees,74037-INDEPENDENT FOSTER CARE-OTH AGENCY PROVISION,"2,176.96",Revenue,16/02/2015,Childrens
WC53-0952,CHILDCARE BUREAU LTD,Third Party Payments,Private Contractor Fees,74037-INDEPENDENT FOSTER CARE-OTH AGENCY PROVISION,"3,733.52",Revenue,13/02/2015,Childrens
WC53-0953,CHILDCARE BUREAU LTD,Third Party Payments,Private Contractor Fees,74037-INDEPENDENT FOSTER CARE-OTH AGENCY PROVISION,"6,939.80",Revenue,13/02/2015,Childrens
WC53-0954,CHILDLINK,Supplies & Services,Other Supplies & Services,63128-HIRE OF ROOM-SERVICES-FEES,0.32,Revenue,18/02/2015,Childrens
WC53-0955,CHILDLINK,Supplies & Services,Other Supplies & Services,63128-HIRE OF ROOM-SERVICES-FEES,2.72,Revenue,04/02/2015,Childrens
WC53-0956,CHILDLINK,Supplies & Services,Other Supplies & Services,63128-HIRE OF ROOM-SERVICES-FEES,2.85,Revenue,06/02/2015,Childrens
WC53-0957,CHILDLINK,Supplies & Services,Other Supplies & Services,63128-HIRE OF ROOM-SERVICES-FEES,2.89,Revenue,16/02/2015,Childrens
WC53-0958,CHILDLINK,Supplies & Services,Other Supplies & Services,63128-HIRE OF ROOM-SERVICES-FEES,3.00,Revenue,19/02/2015,Childrens
WC53-0959,CHILDLINK,Transfer Payments,Transfer Payments,76408-OUTINGS-ALLOWANCES TO S/S CLIENTS,20.99,Revenue,04/02/2015,Childrens
WC53-0960,CHILDLINK,Transfer Payments,Transfer Payments,76408-OUTINGS-ALLOWANCES TO S/S CLIENTS,20.99,Revenue,06/02/2015,Childrens
WC53-0961,CHILDLINK,Transfer Payments,Transfer Payments,76408-OUTINGS-ALLOWANCES TO S/S CLIENTS,21.12,Revenue,16/02/2015,Childrens
WC53-0962,CHILDLINK,Transfer Payments,Transfer Payments,76408-OUTINGS-ALLOWANCES TO S/S CLIENTS,21.12,Revenue,19/02/2015,Childrens
WC53-0963,CHILDLINK,Supplies & Services,Other Supplies & Services,63128-HIRE OF ROOM-SERVICES-FEES,25.67,Revenue,16/02/2015,Childrens
WC53-0964,CHILDLINK,Supplies & Services,Other Supplies & Services,63128-HIRE OF ROOM-SERVICES-FEES,26.25,Revenue,19/02/2015,Childrens
WC53-0965,CHILDLINK,Supplies & Services,Other Supplies & Services,63128-HIRE OF ROOM-SERVICES-FEES,26.52,Revenue,06/02/2015,Childrens
WC53-0966,CHILDLINK,Supplies & Services,Other Supplies & Services,63128-HIRE OF ROOM-SERVICES-FEES,26.99,Revenue,11/02/2015,Childrens
WC53-0967,CHILDLINK,Supplies & Services,Other Supplies & Services,63128-HIRE OF ROOM-SERVICES-FEES,28.41,Revenue,04/02/2015,Childrens
WC53-0968,CHILDLINK,Supplies & Services,Other Supplies & Services,63128-HIRE OF ROOM-SERVICES-FEES,28.41,Revenue,06/02/2015,Childrens
WC53-0969,CHILDLINK,Transport,Car Allowances,53001-OTHER/VOLUNTEERS-CAR ALLOWANCES,32.30,Revenue,04/02/2015,Childrens
WC53-0970,CHILDLINK,Transport,Car Allowances,53001-OTHER/VOLUNTEERS-CAR ALLOWANCES,32.39,Revenue,04/02/2015,Childrens
WC53-0971,CHILDLINK,Transport,Car Allowances,53001-OTHER/VOLUNTEERS-CAR ALLOWANCES,32.39,Revenue,06/02/2015,Childrens
WC53-0972,CHILDLINK,Supplies & Services,Other Supplies & Services,63128-HIRE OF ROOM-SERVICES-FEES,32.42,Revenue,16/02/2015,Childrens
WC53-0973,CHILDLINK,Transport,Car Allowances,53001-OTHER/VOLUNTEERS-CAR ALLOWANCES,34.48,Revenue,04/02/2015,Childrens
WC53-0974,CHILDLINK,Transport,Car Allowances,53001-OTHER/VOLUNTEERS-CAR ALLOWANCES,34.48,Revenue,16/02/2015,Childrens
WC53-0975,CHILDLINK,Transport,Car Allowances,53001-OTHER/VOLUNTEERS-CAR ALLOWANCES,38.73,Revenue,16/02/2015,Childrens
WC53-0976,CHILDLINK,Transfer Payments,Transfer Payments,76408-OUTINGS-ALLOWANCES TO S/S CLIENTS,40.47,Revenue,04/02/2015,Childrens
WC53-0977,CHILDLINK,Transfer Payments,Transfer Payments,76408-OUTINGS-ALLOWANCES TO S/S CLIENTS,40.47,Revenue,16/02/2015,Childrens
WC53-0978,CHILDLINK,Transport,Car Allowances,53001-OTHER/VOLUNTEERS-CAR ALLOWANCES,43.98,Revenue,18/02/2015,Childrens
WC53-0979,CHILDLINK,Transport,Car Allowances,53001-OTHER/VOLUNTEERS-CAR ALLOWANCES,44.26,Revenue,18/02/2015,Childrens
WC53-0980,CHILDLINK,Supplies & Services,Other Supplies & Services,63128-HIRE OF ROOM-SERVICES-FEES,47.53,Revenue,04/02/2015,Childrens
WC53-0981,CHILDLINK,Supplies & Services,Other Supplies & Services,63128-HIRE OF ROOM-SERVICES-FEES,48.54,Revenue,06/02/2015,Childrens
WC53-0982,CHILDLINK,Supplies & Services,Other Supplies & Services,63128-HIRE OF ROOM-SERVICES-FEES,53.88,Revenue,19/02/2015,Childrens
WC53-0983,CHILDLINK,Supplies & Services,Other Supplies & Services,63128-HIRE OF ROOM-SERVICES-FEES,54.27,Revenue,16/02/2015,Childrens
WC53-0984,CHILDLINK,Transport,Car Allowances,53001-OTHER/VOLUNTEERS-CAR ALLOWANCES,55.34,Revenue,06/02/2015,Childrens
WC53-0985,CHILDLINK,Supplies & Services,Other Supplies & Services,63128-HIRE OF ROOM-SERVICES-FEES,64.09,Revenue,04/02/2015,Childrens
WC53-0986,CHILDLINK,Supplies & Services,Other Supplies & Services,63128-HIRE OF ROOM-SERVICES-FEES,64.60,Revenue,04/02/2015,Childrens
WC53-0987,CHILDLINK,Supplies & Services,Other Supplies & Services,63128-HIRE OF ROOM-SERVICES-FEES,64.60,Revenue,06/02/2015,Childrens
WC53-0988,CHILDLINK,Transport,Car Allowances,53001-OTHER/VOLUNTEERS-CAR ALLOWANCES,64.68,Revenue,04/02/2015,Childrens
WC53-0989,CHILDLINK,Transport,Car Allowances,53003-OTHER-TRAVEL ALLOWANCES,66.74,Revenue,11/02/2015,Childrens
WC53-0990,CHILDLINK,Transport,Car Allowances,53003-OTHER-TRAVEL ALLOWANCES,66.74,Revenue,11/02/2015,Childrens
WC53-0991,CHILDLINK,Transport,Car Allowances,53003-OTHER-TRAVEL ALLOWANCES,67.17,Revenue,06/02/2015,Childrens
WC53-0992,CHILDLINK,Transport,Car Allowances,53001-OTHER/VOLUNTEERS-CAR ALLOWANCES,67.78,Revenue,06/02/2015,Childrens
WC53-0993,CHILDLINK,Supplies & Services,Other Supplies & Services,63128-HIRE OF ROOM-SERVICES-FEES,67.83,Revenue,06/02/2015,Childrens
WC53-0994,CHILDLINK,Transport,Car Allowances,53003-OTHER-TRAVEL ALLOWANCES,68.65,Revenue,04/02/2015,Childrens
WC53-0995,CHILDLINK,Transport,Car Allowances,53003-OTHER-TRAVEL ALLOWANCES,68.65,Revenue,06/02/2015,Childrens
WC53-0996,CHILDLINK,Transport,Car Allowances,53001-OTHER/VOLUNTEERS-CAR ALLOWANCES,68.70,Revenue,16/02/2015,Childrens
WC53-0997,CHILDLINK,Transport,Car Allowances,53003-OTHER-TRAVEL ALLOWANCES,69.51,Revenue,18/02/2015,Childrens
WC53-0998,CHILDLINK,Transport,Car Allowances,53001-OTHER/VOLUNTEERS-CAR ALLOWANCES,71.36,Revenue,18/02/2015,Childrens
WC53-0999,CHILDLINK,Transport,Car Allowances,53001-OTHER/VOLUNTEERS-CAR ALLOWANCES,71.39,Revenue,19/02/2015,Childrens
WC53-1000,CHILDLINK,Transport,Car Allowances,53003-OTHER-TRAVEL ALLOWANCES,71.92,Revenue,04/02/2015,Childrens
WC53-1001,CHILDLINK,Transport,Car Allowances,53003-OTHER-TRAVEL ALLOWANCES,71.92,Revenue,16/02/2015,Childrens
WC53-1002,CHILDLINK,Transport,Car Allowances,53001-OTHER/VOLUNTEERS-CAR ALLOWANCES,76.00,Revenue,19/02/2015,Childrens
WC53-1003,CHILDLINK,Transport,Car Allowances,53001-OTHER/VOLUNTEERS-CAR ALLOWANCES,76.55,Revenue,04/02/2015,Childrens
WC53-1004,CHILDLINK,Transport,Car Allowances,53001-OTHER/VOLUNTEERS-CAR ALLOWANCES,79.55,Revenue,04/02/2015,Childrens
WC53-1005,CHILDLINK,Transport,Car Allowances,53001-OTHER/VOLUNTEERS-CAR ALLOWANCES,79.55,Revenue,06/02/2015,Childrens
WC53-1006,CHILDLINK,Transport,Car Allowances,53001-OTHER/VOLUNTEERS-CAR ALLOWANCES,79.55,Revenue,16/02/2015,Childrens
WC53-1007,CHILDLINK,Transport,Car Allowances,53001-OTHER/VOLUNTEERS-CAR ALLOWANCES,79.55,Revenue,19/02/2015,Childrens
WC53-1008,CHILDLINK,Transport,Car Allowances,53003-OTHER-TRAVEL ALLOWANCES,80.37,Revenue,04/02/2015,Childrens
WC53-1009,CHILDLINK,Transport,Car Allowances,53003-OTHER-TRAVEL ALLOWANCES,80.37,Revenue,06/02/2015,Childrens
WC53-1010,CHILDLINK,Transport,Car Allowances,53003-OTHER-TRAVEL ALLOWANCES,80.37,Revenue,16/02/2015,Childrens
WC53-1011,CHILDLINK,Transport,Car Allowances,53003-OTHER-TRAVEL ALLOWANCES,80.37,Revenue,19/02/2015,Childrens
WC53-1012,CHILDLINK,Transport,Car Allowances,53001-OTHER/VOLUNTEERS-CAR ALLOWANCES,81.01,Revenue,06/02/2015,Childrens
WC53-1013,CHILDLINK,Third Party Payments,Private Contractor Fees,76003-SECTION 34 (CONTACT),81.92,Revenue,16/02/2015,Childrens
WC53-1014,CHILDLINK,Transport,Car Allowances,53001-OTHER/VOLUNTEERS-CAR ALLOWANCES,82.03,Revenue,18/02/2015,Childrens
WC53-1015,CHILDLINK,Transport,Car Allowances,53003-OTHER-TRAVEL ALLOWANCES,84.10,Revenue,18/02/2015,Childrens
WC53-1016,CHILDLINK,Transport,Car Allowances,53003-OTHER-TRAVEL ALLOWANCES,84.70,Revenue,18/02/2015,Childrens
WC53-1017,CHILDLINK,Transport,Car Allowances,53003-OTHER-TRAVEL ALLOWANCES,85.24,Revenue,18/02/2015,Childrens
WC53-1018,CHILDLINK,Third Party Payments,Private Contractor Fees,76003-SECTION 34 (CONTACT),85.65,Revenue,18/02/2015,Childrens
WC53-1019,CHILDLINK,Transport,Car Allowances,53001-OTHER/VOLUNTEERS-CAR ALLOWANCES,85.96,Revenue,04/02/2015,Childrens
WC53-1020,CHILDLINK,Transport,Car Allowances,53001-OTHER/VOLUNTEERS-CAR ALLOWANCES,85.96,Revenue,06/02/2015,Childrens
WC53-1021,CHILDLINK,Third Party Payments,Private Contractor Fees,76003-SECTION 34 (CONTACT),87.95,Revenue,06/02/2015,Childrens
WC53-1022,CHILDLINK,Third Party Payments,Private Contractor Fees,76003-SECTION 34 (CONTACT),87.95,Revenue,18/02/2015,Childrens
WC53-1023,CHILDLINK,Third Party Payments,Private Contractor Fees,76003-SECTION 34 (CONTACT),89.19,Revenue,18/02/2015,Childrens
WC53-1024,CHILDLINK,Transport,Car Allowances,53001-OTHER/VOLUNTEERS-CAR ALLOWANCES,94.41,Revenue,06/02/2015,Childrens
WC53-1025,CHILDLINK,Transport,Car Allowances,53001-OTHER/VOLUNTEERS-CAR ALLOWANCES,94.41,Revenue,18/02/2015,Childrens
WC53-1026,CHILDLINK,Third Party Payments,Private Contractor Fees,76003-SECTION 34 (CONTACT),94.77,Revenue,19/02/2015,Childrens
WC53-1027,CHILDLINK,Third Party Payments,Private Contractor Fees,76003-SECTION 34 (CONTACT),95.57,Revenue,19/02/2015,Childrens
WC53-1028,CHILDLINK,Third Party Payments,Private Contractor Fees,76003-SECTION 34 (CONTACT),98.54,Revenue,11/02/2015,Childrens
WC53-1029,CHILDLINK,Transport,Car Allowances,53003-OTHER-TRAVEL ALLOWANCES,100.43,Revenue,16/02/2015,Childrens
WC53-1030,CHILDLINK,Transport,Car Allowances,53003-OTHER-TRAVEL ALLOWANCES,100.95,Revenue,04/02/2015,Childrens
WC53-1031,CHILDLINK,Supplies & Services,Other Supplies & Services,63128-HIRE OF ROOM-SERVICES-FEES,101.47,Revenue,18/02/2015,Childrens
WC53-1032,CHILDLINK,Supplies & Services,Other Supplies & Services,63128-HIRE OF ROOM-SERVICES-FEES,101.47,Revenue,19/02/2015,Childrens
WC53-1033,CHILDLINK,Transport,Car Allowances,53001-OTHER/VOLUNTEERS-CAR ALLOWANCES,101.73,Revenue,19/02/2015,Childrens
WC53-1034,CHILDLINK,Transport,Car Allowances,53001-OTHER/VOLUNTEERS-CAR ALLOWANCES,103.60,Revenue,18/02/2015,Childrens
WC53-1035,CHILDLINK,Transport,Car Allowances,53001-OTHER/VOLUNTEERS-CAR ALLOWANCES,103.60,Revenue,19/02/2015,Childrens
WC53-1036,CHILDLINK,Transport,Car Allowances,53001-OTHER/VOLUNTEERS-CAR ALLOWANCES,103.83,Revenue,11/02/2015,Childrens
WC53-1037,CHILDLINK,Transport,Car Allowances,53001-OTHER/VOLUNTEERS-CAR ALLOWANCES,103.83,Revenue,11/02/2015,Childrens
WC53-1038,CHILDLINK,Transport,Car Allowances,53001-OTHER/VOLUNTEERS-CAR ALLOWANCES,104.50,Revenue,06/02/2015,Childrens
WC53-1039,CHILDLINK,Transport,Car Allowances,53001-OTHER/VOLUNTEERS-CAR ALLOWANCES,105.77,Revenue,11/02/2015,Childrens
WC53-1040,CHILDLINK,Transport,Car Allowances,53003-OTHER-TRAVEL ALLOWANCES,106.87,Revenue,16/02/2015,Childrens
WC53-1041,CHILDLINK,Transport,Car Allowances,53001-OTHER/VOLUNTEERS-CAR ALLOWANCES,108.14,Revenue,18/02/2015,Childrens
WC53-1042,CHILDLINK,Transport,Car Allowances,53003-OTHER-TRAVEL ALLOWANCES,108.56,Revenue,18/02/2015,Childrens
WC53-1043,CHILDLINK,Transport,Car Allowances,53003-OTHER-TRAVEL ALLOWANCES,108.56,Revenue,19/02/2015,Childrens
WC53-1044,CHILDLINK,Third Party Payments,Private Contractor Fees,76003-SECTION 34 (CONTACT),108.57,Revenue,18/02/2015,Childrens
WC53-1045,CHILDLINK,Third Party Payments,Private Contractor Fees,76003-SECTION 34 (CONTACT),108.57,Revenue,19/02/2015,Childrens
WC53-1046,CHILDLINK,Transport,Car Allowances,53003-OTHER-TRAVEL ALLOWANCES,109.26,Revenue,19/02/2015,Childrens
WC53-1047,CHILDLINK,Transport,Car Allowances,53003-OTHER-TRAVEL ALLOWANCES,110.39,Revenue,06/02/2015,Childrens
WC53-1048,CHILDLINK,Transport,Car Allowances,53003-OTHER-TRAVEL ALLOWANCES,112.35,Revenue,11/02/2015,Childrens
WC53-1049,CHILDLINK,Third Party Payments,Private Contractor Fees,76003-SECTION 34 (CONTACT),115.06,Revenue,11/02/2015,Childrens
WC53-1050,CHILDLINK,Third Party Payments,Private Contractor Fees,76003-SECTION 34 (CONTACT),116.62,Revenue,19/02/2015,Childrens
WC53-1051,CHILDLINK,Transport,Car Allowances,53003-OTHER-TRAVEL ALLOWANCES,116.84,Revenue,06/02/2015,Childrens
WC53-1052,CHILDLINK,Transport,Car Allowances,53003-OTHER-TRAVEL ALLOWANCES,116.84,Revenue,18/02/2015,Childrens
WC53-1053,CHILDLINK,Transport,Car Allowances,53003-OTHER-TRAVEL ALLOWANCES,117.63,Revenue,19/02/2015,Childrens
WC53-1054,CHILDLINK,Transport,Car Allowances,53001-OTHER/VOLUNTEERS-CAR ALLOWANCES,117.71,Revenue,04/02/2015,Childrens
WC53-1055,CHILDLINK,Third Party Payments,Private Contractor Fees,76003-SECTION 34 (CONTACT),118.71,Revenue,06/02/2015,Childrens
WC53-1056,CHILDLINK,Third Party Payments,Private Contractor Fees,76003-SECTION 34 (CONTACT),118.71,Revenue,18/02/2015,Childrens
WC53-1057,CHILDLINK,Transport,Car Allowances,53001-OTHER/VOLUNTEERS-CAR ALLOWANCES,120.20,Revenue,06/02/2015,Childrens
WC53-1058,CHILDLINK,Transport,Car Allowances,53003-OTHER-TRAVEL ALLOWANCES,125.90,Revenue,19/02/2015,Childrens
WC53-1059,CHILDLINK,Transport,Car Allowances,53003-OTHER-TRAVEL ALLOWANCES,130.10,Revenue,11/02/2015,Childrens
WC53-1060,CHILDLINK,Transport,Car Allowances,53003-OTHER-TRAVEL ALLOWANCES,130.89,Revenue,11/02/2015,Childrens
WC53-1061,CHILDLINK,Transport,Car Allowances,53003-OTHER-TRAVEL ALLOWANCES,131.87,Revenue,19/02/2015,Childrens
WC53-1062,CHILDLINK,Transport,Car Allowances,53001-OTHER/VOLUNTEERS-CAR ALLOWANCES,133.44,Revenue,19/02/2015,Childrens
WC53-1063,CHILDLINK,Transport,Car Allowances,53003-OTHER-TRAVEL ALLOWANCES,134.22,Revenue,06/02/2015,Childrens
WC53-1064,CHILDLINK,Transport,Car Allowances,53003-OTHER-TRAVEL ALLOWANCES,134.22,Revenue,18/02/2015,Childrens
WC53-1065,CHILDLINK,Transport,Car Allowances,53001-OTHER/VOLUNTEERS-CAR ALLOWANCES,134.39,Revenue,16/02/2015,Childrens
WC53-1066,CHILDLINK,Third Party Payments,Private Contractor Fees,76003-SECTION 34 (CONTACT),134.45,Revenue,04/02/2015,Childrens
WC53-1067,CHILDLINK,Third Party Payments,Private Contractor Fees,76003-SECTION 34 (CONTACT),134.45,Revenue,06/02/2015,Childrens
WC53-1068,CHILDLINK,Transport,Car Allowances,53003-OTHER-TRAVEL ALLOWANCES,135.82,Revenue,04/02/2015,Childrens
WC53-1069,CHILDLINK,Third Party Payments,Private Contractor Fees,76003-SECTION 34 (CONTACT),135.82,Revenue,04/02/2015,Childrens
WC53-1070,CHILDLINK,Transport,Car Allowances,53003-OTHER-TRAVEL ALLOWANCES,135.82,Revenue,06/02/2015,Childrens
WC53-1071,CHILDLINK,Third Party Payments,Private Contractor Fees,76003-SECTION 34 (CONTACT),135.82,Revenue,06/02/2015,Childrens
WC53-1072,CHILDLINK,Third Party Payments,Private Contractor Fees,76003-SECTION 34 (CONTACT),145.93,Revenue,04/02/2015,Childrens
WC53-1073,CHILDLINK,Third Party Payments,Private Contractor Fees,76003-SECTION 34 (CONTACT),145.93,Revenue,16/02/2015,Childrens
WC53-1074,CHILDLINK,Third Party Payments,Private Contractor Fees,76003-SECTION 34 (CONTACT),148.95,Revenue,04/02/2015,Childrens
WC53-1075,CHILDLINK,Third Party Payments,Private Contractor Fees,76003-SECTION 34 (CONTACT),154.10,Revenue,04/02/2015,Childrens
WC53-1076,CHILDLINK,Third Party Payments,Private Contractor Fees,76003-SECTION 34 (CONTACT),154.10,Revenue,06/02/2015,Childrens
WC53-1077,CHILDLINK,Third Party Payments,Private Contractor Fees,76003-SECTION 34 (CONTACT),154.66,Revenue,16/02/2015,Childrens
WC53-1078,CHILDLINK,Third Party Payments,Private Contractor Fees,76003-SECTION 34 (CONTACT),154.66,Revenue,19/02/2015,Childrens
WC53-1079,CHILDLINK,Transport,Car Allowances,53003-OTHER-TRAVEL ALLOWANCES,156.82,Revenue,04/02/2015,Childrens
WC53-1080,CHILDLINK,Transport,Car Allowances,53003-OTHER-TRAVEL ALLOWANCES,160.13,Revenue,06/02/2015,Childrens
WC53-1081,CHILDLINK,Third Party Payments,Private Contractor Fees,76003-SECTION 34 (CONTACT),161.94,Revenue,04/02/2015,Childrens
WC53-1082,CHILDLINK,Transport,Car Allowances,53001-OTHER/VOLUNTEERS-CAR ALLOWANCES,170.88,Revenue,04/02/2015,Childrens
WC53-1083,CHILDLINK,Transport,Car Allowances,53001-OTHER/VOLUNTEERS-CAR ALLOWANCES,170.88,Revenue,06/02/2015,Childrens
WC53-1084,CHILDLINK,Third Party Payments,Private Contractor Fees,76003-SECTION 34 (CONTACT),171.38,Revenue,06/02/2015,Childrens
WC53-1085,CHILDLINK,Transport,Car Allowances,53001-OTHER/VOLUNTEERS-CAR ALLOWANCES,171.50,Revenue,16/02/2015,Childrens
WC53-1086,CHILDLINK,Transport,Car Allowances,53001-OTHER/VOLUNTEERS-CAR ALLOWANCES,171.50,Revenue,19/02/2015,Childrens
WC53-1087,CHILDLINK,Transport,Car Allowances,53003-OTHER-TRAVEL ALLOWANCES,173.00,Revenue,06/02/2015,Childrens
WC53-1088,CHILDLINK,Third Party Payments,Private Contractor Fees,76003-SECTION 34 (CONTACT),176.28,Revenue,04/02/2015,Childrens
WC53-1089,CHILDLINK,Third Party Payments,Private Contractor Fees,76003-SECTION 34 (CONTACT),176.28,Revenue,06/02/2015,Childrens
WC53-1090,CHILDLINK,Third Party Payments,Private Contractor Fees,76003-SECTION 34 (CONTACT),176.28,Revenue,16/02/2015,Childrens
WC53-1091,CHILDLINK,Third Party Payments,Private Contractor Fees,76003-SECTION 34 (CONTACT),176.28,Revenue,19/02/2015,Childrens
WC53-1092,CHILDLINK,Transport,Car Allowances,53001-OTHER/VOLUNTEERS-CAR ALLOWANCES,177.06,Revenue,16/02/2015,Childrens
WC53-1093,CHILDLINK,Transport,Car Allowances,53003-OTHER-TRAVEL ALLOWANCES,177.77,Revenue,19/02/2015,Childrens
WC53-1094,CHILDLINK,Transport,Car Allowances,53003-OTHER-TRAVEL ALLOWANCES,179.04,Revenue,16/02/2015,Childrens
WC53-1095,CHILDLINK,Transport,Car Allowances,53001-OTHER/VOLUNTEERS-CAR ALLOWANCES,181.03,Revenue,19/02/2015,Childrens
WC53-1096,CHILDLINK,Transport,Car Allowances,53001-OTHER/VOLUNTEERS-CAR ALLOWANCES,182.89,Revenue,06/02/2015,Childrens
WC53-1097,CHILDLINK,Transport,Car Allowances,53001-OTHER/VOLUNTEERS-CAR ALLOWANCES,186.15,Revenue,11/02/2015,Childrens
WC53-1098,CHILDLINK,Transport,Car Allowances,53003-OTHER-TRAVEL ALLOWANCES,198.52,Revenue,04/02/2015,Childrens
WC53-1099,CHILDLINK,Third Party Payments,Private Contractor Fees,76003-SECTION 34 (CONTACT),200.23,Revenue,11/02/2015,Childrens
WC53-1100,CHILDLINK,Third Party Payments,Private Contractor Fees,76003-SECTION 34 (CONTACT),200.23,Revenue,11/02/2015,Childrens
WC53-1101,CHILDLINK,Third Party Payments,Private Contractor Fees,76003-SECTION 34 (CONTACT),201.53,Revenue,06/02/2015,Childrens
WC53-1102,CHILDLINK,Third Party Payments,Private Contractor Fees,76003-SECTION 34 (CONTACT),208.55,Revenue,18/02/2015,Childrens
WC53-1103,CHILDLINK,Transport,Car Allowances,53003-OTHER-TRAVEL ALLOWANCES,210.08,Revenue,06/02/2015,Childrens
WC53-1104,CHILDLINK,Transport,Car Allowances,53003-OTHER-TRAVEL ALLOWANCES,222.84,Revenue,04/02/2015,Childrens
WC53-1105,CHILDLINK,Transport,Car Allowances,53003-OTHER-TRAVEL ALLOWANCES,233.54,Revenue,06/02/2015,Childrens
WC53-1106,CHILDLINK,Transport,Car Allowances,53003-OTHER-TRAVEL ALLOWANCES,236.72,Revenue,16/02/2015,Childrens
WC53-1107,CHILDLINK,Transport,Car Allowances,53003-OTHER-TRAVEL ALLOWANCES,237.85,Revenue,18/02/2015,Childrens
WC53-1108,CHILDLINK,Transport,Car Allowances,53001-OTHER/VOLUNTEERS-CAR ALLOWANCES,240.04,Revenue,11/02/2015,Childrens
WC53-1109,CHILDLINK,Transport,Car Allowances,53001-OTHER/VOLUNTEERS-CAR ALLOWANCES,243.31,Revenue,19/02/2015,Childrens
WC53-1110,CHILDLINK,Transport,Car Allowances,53003-OTHER-TRAVEL ALLOWANCES,245.99,Revenue,19/02/2015,Childrens
WC53-1111,CHILDLINK,Transport,Car Allowances,53001-OTHER/VOLUNTEERS-CAR ALLOWANCES,247.67,Revenue,06/02/2015,Childrens
WC53-1112,CHILDLINK,Transport,Car Allowances,53001-OTHER/VOLUNTEERS-CAR ALLOWANCES,247.67,Revenue,18/02/2015,Childrens
WC53-1113,CHILDLINK,Third Party Payments,Private Contractor Fees,76003-SECTION 34 (CONTACT),254.12,Revenue,18/02/2015,Childrens
WC53-1114,CHILDLINK,Third Party Payments,Private Contractor Fees,76003-SECTION 34 (CONTACT),255.26,Revenue,06/02/2015,Childrens
WC53-1115,CHILDLINK,Third Party Payments,Private Contractor Fees,76003-SECTION 34 (CONTACT),255.70,Revenue,18/02/2015,Childrens
WC53-1116,CHILDLINK,Third Party Payments,Private Contractor Fees,76003-SECTION 34 (CONTACT),294.01,Revenue,04/02/2015,Childrens
WC53-1117,CHILDLINK,Third Party Payments,Private Contractor Fees,76003-SECTION 34 (CONTACT),294.01,Revenue,06/02/2015,Childrens
WC53-1118,CHILDLINK,Third Party Payments,Private Contractor Fees,76003-SECTION 34 (CONTACT),295.88,Revenue,16/02/2015,Childrens
WC53-1119,CHILDLINK,Third Party Payments,Private Contractor Fees,76003-SECTION 34 (CONTACT),295.88,Revenue,19/02/2015,Childrens
WC53-1120,CHILDLINK,Transport,Car Allowances,53003-OTHER-TRAVEL ALLOWANCES,332.22,Revenue,04/02/2015,Childrens
WC53-1121,CHILDLINK,Transport,Car Allowances,53003-OTHER-TRAVEL ALLOWANCES,332.22,Revenue,06/02/2015,Childrens
WC53-1122,CHILDLINK,Transport,Car Allowances,53003-OTHER-TRAVEL ALLOWANCES,333.44,Revenue,16/02/2015,Childrens
WC53-1123,CHILDLINK,Transport,Car Allowances,53003-OTHER-TRAVEL ALLOWANCES,333.44,Revenue,19/02/2015,Childrens
WC53-1124,CHILDLINK,Third Party Payments,Private Contractor Fees,76003-SECTION 34 (CONTACT),334.46,Revenue,04/02/2015,Childrens
WC53-1125,CHILDLINK,Third Party Payments,Private Contractor Fees,76003-SECTION 34 (CONTACT),350.53,Revenue,06/02/2015,Childrens
WC53-1126,CHILDLINK,Third Party Payments,Private Contractor Fees,76003-SECTION 34 (CONTACT),355.29,Revenue,16/02/2015,Childrens
WC53-1127,CHILDLINK,Third Party Payments,Private Contractor Fees,76003-SECTION 34 (CONTACT),367.94,Revenue,04/02/2015,Childrens
WC53-1128,CHILDLINK,Third Party Payments,Private Contractor Fees,76003-SECTION 34 (CONTACT),369.22,Revenue,19/02/2015,Childrens
WC53-1129,CHILDLINK,Third Party Payments,Private Contractor Fees,76003-SECTION 34 (CONTACT),375.73,Revenue,06/02/2015,Childrens
WC53-1130,CHILDLINK,Third Party Payments,Private Contractor Fees,76003-SECTION 34 (CONTACT),417.11,Revenue,19/02/2015,Childrens
WC53-1131,CHILDLINK,Third Party Payments,Private Contractor Fees,76003-SECTION 34 (CONTACT),420.10,Revenue,16/02/2015,Childrens
WC53-1132,CHILDLINK,Third Party Payments,Private Contractor Fees,76003-SECTION 34 (CONTACT),904.00,Revenue,16/02/2015,Childrens
WC53-1133,CHILDLINK,Third Party Payments,Private Contractor Fees,76003-SECTION 34 (CONTACT),924.26,Revenue,19/02/2015,Childrens
WC53-1134,CHILDLINK,Third Party Payments,Private Contractor Fees,76003-SECTION 34 (CONTACT),933.80,Revenue,06/02/2015,Childrens
WC53-1135,CHILDLINK,Third Party Payments,Private Contractor Fees,76003-SECTION 34 (CONTACT),950.41,Revenue,11/02/2015,Childrens
WC53-1136,CHILDRENS RESIDENTIAL SERVS,Transport,Car Allowances,53000-OFFICERS/STAFF-CAR ALLOWANCES,4.00,Revenue,10/02/2015,Childrens
WC53-1137,CHILDRENS RESIDENTIAL SERVS,Transport,Car Allowances,53000-OFFICERS/STAFF-CAR ALLOWANCES,4.83,Revenue,10/02/2015,Childrens
WC53-1138,CHILDRENS RESIDENTIAL SERVS,Supplies & Services,Provisions,61014-GENERAL PROVISIONS-PROVISIONS,4.89,Revenue,23/02/2015,Childrens
WC53-1139,CHILDRENS RESIDENTIAL SERVS,Supplies & Services,Services,63000-PROFESSIONAL FEES AND SERVICES,6.40,Revenue,23/02/2015,Childrens
WC53-1140,CHILDRENS RESIDENTIAL SERVS,Supplies & Services,Provisions,61014-GENERAL PROVISIONS-PROVISIONS,6.99,Revenue,10/02/2015,Childrens
WC53-1141,CHILDRENS RESIDENTIAL SERVS,Transport,Car Allowances,53000-OFFICERS/STAFF-CAR ALLOWANCES,8.67,Revenue,03/02/2015,Childrens
WC53-1142,CHILDRENS RESIDENTIAL SERVS,Premises,Premises-Repairs & Maintenance,"40000-REPAIRS,ALTERATIONS & MAINTENANCE-PREM",10.00,Revenue,23/02/2015,Childrens
WC53-1143,CHILDRENS RESIDENTIAL SERVS,Premises,Cleaning & Caretaking,46000-EQUIP NEW-CLEANING,11.00,Revenue,03/02/2015,Childrens
WC53-1144,CHILDRENS RESIDENTIAL SERVS,Transport,Car Allowances,53000-OFFICERS/STAFF-CAR ALLOWANCES,12.70,Revenue,03/02/2015,Childrens
WC53-1145,CHILDRENS RESIDENTIAL SERVS,Supplies & Services,"Equip,Furniture & Materials",60006-NEW-FURNITURE & EQUIPMENT,12.99,Revenue,23/02/2015,Childrens
WC53-1146,CHILDRENS RESIDENTIAL SERVS,Premises,Cleaning & Caretaking,46000-EQUIP NEW-CLEANING,15.00,Revenue,10/02/2015,Childrens
WC53-1147,CHILDRENS RESIDENTIAL SERVS,Transport,Car Allowances,53000-OFFICERS/STAFF-CAR ALLOWANCES,15.00,Revenue,23/02/2015,Childrens
WC53-1148,CHILDRENS RESIDENTIAL SERVS,Transport,Car Allowances,53000-OFFICERS/STAFF-CAR ALLOWANCES,15.17,Revenue,23/02/2015,Childrens
WC53-1149,CHILDRENS RESIDENTIAL SERVS,Transport,Car Allowances,53000-OFFICERS/STAFF-CAR ALLOWANCES,16.50,Revenue,23/02/2015,Childrens
WC53-1150,CHILDRENS RESIDENTIAL SERVS,Transfer Payments,Transfer Payments,76400-RESIDENTS PERSONAL EXPENSES-ALLOWANCES TO S/S CLIENTS,19.87,Revenue,03/02/2015,Childrens
WC53-1151,CHILDRENS RESIDENTIAL SERVS,Premises,Cleaning & Caretaking,46000-EQUIP NEW-CLEANING,20.33,Revenue,23/02/2015,Childrens
WC53-1152,CHILDRENS RESIDENTIAL SERVS,Supplies & Services,Provisions,61014-GENERAL PROVISIONS-PROVISIONS,23.95,Revenue,10/02/2015,Childrens
WC53-1153,CHILDRENS RESIDENTIAL SERVS,Supplies & Services,"Equip,Furniture & Materials",60000-FURNITURE & EQUIPMENT,32.12,Revenue,10/02/2015,Childrens
WC53-1154,CHILDRENS RESIDENTIAL SERVS,Premises,Cleaning & Caretaking,46000-EQUIP NEW-CLEANING,34.30,Revenue,23/02/2015,Childrens
WC53-1155,CHILDRENS RESIDENTIAL SERVS,Supplies & Services,Provisions,61014-GENERAL PROVISIONS-PROVISIONS,40.45,Revenue,03/02/2015,Childrens
WC53-1156,CHILDRENS RESIDENTIAL SERVS,Third Party Payments,Private Contractor Fees,76002-SUPPORT UNDER SECTION 23 OF THE CHILDRENS ACT,46.00,Revenue,23/02/2015,Childrens
WC53-1157,CHILDRENS RESIDENTIAL SERVS,Supplies & Services,Provisions,61014-GENERAL PROVISIONS-PROVISIONS,47.53,Revenue,23/02/2015,Childrens
WC53-1158,CHILDRENS RESIDENTIAL SERVS,Supplies & Services,"Equip,Furniture & Materials",60000-FURNITURE & EQUIPMENT,102.98,Revenue,23/02/2015,Childrens
WC53-1159,CHILDRENS RESIDENTIAL SERVS,Supplies & Services,Provisions,61014-GENERAL PROVISIONS-PROVISIONS,112.83,Revenue,03/02/2015,Childrens
WC53-1160,CHILDRENS RESIDENTIAL SERVS,Supplies & Services,Provisions,61014-GENERAL PROVISIONS-PROVISIONS,138.57,Revenue,23/02/2015,Childrens
WC53-1161,CHILDRENS RESIDENTIAL SERVS,Supplies & Services,Provisions,61014-GENERAL PROVISIONS-PROVISIONS,152.48,Revenue,03/02/2015,Childrens
WC53-1162,CHILDRENS RESIDENTIAL SERVS,Transfer Payments,Transfer Payments,76400-RESIDENTS PERSONAL EXPENSES-ALLOWANCES TO S/S CLIENTS,173.43,Revenue,23/02/2015,Childrens
WC53-1163,CHILDRENS RESIDENTIAL SERVS,Transfer Payments,Transfer Payments,76400-RESIDENTS PERSONAL EXPENSES-ALLOWANCES TO S/S CLIENTS,178.20,Revenue,23/02/2015,Childrens
WC53-1164,CHILDRENS RESIDENTIAL SERVS,Transfer Payments,Transfer Payments,76408-OUTINGS-ALLOWANCES TO S/S CLIENTS,195.41,Revenue,10/02/2015,Childrens
WC53-1165,CHILDRENS RESIDENTIAL SERVS,Transfer Payments,Transfer Payments,76400-RESIDENTS PERSONAL EXPENSES-ALLOWANCES TO S/S CLIENTS,200.74,Revenue,10/02/2015,Childrens
WC53-1166,CHILDRENS RESIDENTIAL SERVS,Transfer Payments,Transfer Payments,76400-RESIDENTS PERSONAL EXPENSES-ALLOWANCES TO S/S CLIENTS,206.14,Revenue,10/02/2015,Childrens
WC53-1167,CHILDRENS RESIDENTIAL SERVS,Transfer Payments,Transfer Payments,76400-RESIDENTS PERSONAL EXPENSES-ALLOWANCES TO S/S CLIENTS,217.05,Revenue,03/02/2015,Childrens
WC53-1168,CHILDRENS RESIDENTIAL SERVS,Premises,Cleaning & Caretaking,46000-EQUIP NEW-CLEANING,220.73,Revenue,03/02/2015,Childrens
WC53-1169,CHILDRENS RESIDENTIAL SERVS,Transfer Payments,Transfer Payments,76400-RESIDENTS PERSONAL EXPENSES-ALLOWANCES TO S/S CLIENTS,317.94,Revenue,23/02/2015,Childrens
WC53-1170,CHILDRENS RESIDENTIAL SERVS,Third Party Payments,Private Contractor Fees,76002-SUPPORT UNDER SECTION 23 OF THE CHILDRENS ACT,394.50,Revenue,03/02/2015,Childrens
WC53-1171,CHILDRENS RESIDENTIAL SERVS,Transfer Payments,Transfer Payments,76400-RESIDENTS PERSONAL EXPENSES-ALLOWANCES TO S/S CLIENTS,502.60,Revenue,03/02/2015,Childrens
WC53-1172,CHIPPING CAMPDEN SCHOOL,Transfer Payments,Transfer Payments,77300-ISB-FORMULA ALLOCATION,"1,600.00",Revenue,17/02/2015,Childrens
WC53-1173,CHIPPING CAMPDEN SCHOOL,Transfer Payments,Transfer Payments,77300-ISB-FORMULA ALLOCATION,"1,600.00",Revenue,18/02/2015,Childrens
WC53-1174,CHRISTADELPHIAN CARE HOMES,Third Party Payments,Private Contractor Fees,73373-RESIDENTIAL & NURSING CARE PLACEMENTS,"1,806.86",Revenue,24/02/2015,Social Care & Inclusion
WC53-1175,REDACTED,Transfer Payments,Transfer Payments,76422-DIRECT PAYMENTS TO SOCIAL SERVICES CLIENTS,"1,489.62",Revenue,10/02/2015,Social Care & Inclusion
WC53-1176,REDACTED,Transfer Payments,Transfer Payments,76422-DIRECT PAYMENTS TO SOCIAL SERVICES CLIENTS,755.30,Revenue,10/02/2015,Social Care & Inclusion
WC53-1177,REDACTED,Transfer Payments,Transfer Payments,76422-DIRECT PAYMENTS TO SOCIAL SERVICES CLIENTS,489.60,Revenue,10/02/2015,Social Care & Inclusion
WC53-1178,REDACTED,Transfer Payments,Transfer Payments,76422-DIRECT PAYMENTS TO SOCIAL SERVICES CLIENTS,"1,125.97",Revenue,10/02/2015,Social Care & Inclusion
WC53-1179,REDACTED,Third Party Payments,Private Contractor Fees,74006-HOLIDAY/CHRISTMAS ALLOWANCE-FOSTER CARERS-OTH AGENCY PROVISION,721.28,Revenue,16/02/2015,Childrens
WC53-1180,REDACTED,Transfer Payments,Transfer Payments,76422-DIRECT PAYMENTS TO SOCIAL SERVICES CLIENTS,276.00,Revenue,10/02/2015,Social Care & Inclusion
WC53-1181,REDACTED,Transfer Payments,Transfer Payments,76422-DIRECT PAYMENTS TO SOCIAL SERVICES CLIENTS,822.16,Revenue,10/02/2015,Social Care & Inclusion
WC53-1182,REDACTED,Transfer Payments,Transfer Payments,76422-DIRECT PAYMENTS TO SOCIAL SERVICES CLIENTS,588.00,Revenue,10/02/2015,Social Care & Inclusion
WC53-1183,CHUBB ELECTRONIC SECURITY LTD,Supplies & Services,"Equip,Furniture & Materials",60008-MAINTENANCE-FURNITURE & EQUIPMENT,"1,371.22",Revenue,13/02/2015,Neighbourhood Services
WC53-1184,CHUBB FIRE & SECURITY LTD,Supplies & Services,"Equip,Furniture & Materials",60008-MAINTENANCE-FURNITURE & EQUIPMENT,297.00,Revenue,12/02/2015,Childrens
WC53-1185,CHUBB FIRE & SECURITY LTD,Third Party Payments,Private Contractor Fees,73025-PROFESSIONAL SERVICES-PRIV CONTRACTOR & OTHER AGENCIES,390.06,Revenue,02/02/2015,Regeneration
WC53-1186,CHUBB FIRE & SECURITY LTD,Third Party Payments,Private Contractor Fees,73025-PROFESSIONAL SERVICES-PRIV CONTRACTOR & OTHER AGENCIES,426.39,Revenue,02/02/2015,Regeneration
WC53-1187,CHUBB FIRE & SECURITY LTD,Third Party Payments,Private Contractor Fees,73025-PROFESSIONAL SERVICES-PRIV CONTRACTOR & OTHER AGENCIES,502.28,Revenue,03/02/2015,Regeneration
WC53-1188,CHUBB FIRE & SECURITY LTD,Third Party Payments,Private Contractor Fees,73002-SECURITY-PRIV CONTRACTOR FEES,552.00,Revenue,04/02/2015,Regeneration
WC53-1189,CHUBB FIRE & SECURITY LTD,Third Party Payments,Private Contractor Fees,73025-PROFESSIONAL SERVICES-PRIV CONTRACTOR & OTHER AGENCIES,990.57,Revenue,09/02/2015,Regeneration
WC53-1190,CHUBB FIRE & SECURITY LTD,Supplies & Services,"Equip,Furniture & Materials",60000-FURNITURE & EQUIPMENT,"1,010.44",Revenue,01/02/2015,Childrens
WC53-1191,CHUCKERY FESTIVAL,Supplies & Services,Other Supplies & Services,62515-MISCELLANEOUS SUPPLIES,"3,500.00",Revenue,04/02/2015,Neighbourhood Services
WC53-1192,REDACTED,Third Party Payments,Private Contractor Fees,73374-SUPPORTED & OTHER ACCOMMODATION,"1,452.12",Revenue,19/02/2015,Social Care & Inclusion
WC53-1193,CITY PLUMBING SUPPLIES HOLDINGS LTD,Supplies & Services,"Equip,Furniture & Materials",60500-GENERAL MATERIALS,"1,710.10",Revenue,18/02/2015,Regeneration
WC53-1194,CIVICA UK LIMITED,Supplies & Services,Communications & Computing,63820-RECHARGE FOR MAINTENANCE/APPLICATION COSTS-COMPUTER,270.00,Revenue,20/02/2015,Resources
WC53-1195,CIVICA UK LIMITED,Supplies & Services,Services,63102-CONSULTANTS FEES - CORPORATE,"3,081.30",Revenue,23/02/2015,Resources
WC53-1196,CIVICA UK LIMITED,Supplies & Services,Communications & Computing,63820-RECHARGE FOR MAINTENANCE/APPLICATION COSTS-COMPUTER,"4,102.14",Revenue,17/02/2015,Resources
WC53-1197,CIVICA UK LIMITED,Supplies & Services,Communications & Computing,63800-COMPUTER EQUIPMENT AND SUPPLIES,"5,412.86",Revenue,23/02/2015,Resources
WC53-1198,CIVICA UK LIMITED,Supplies & Services,Communications & Computing,63820-RECHARGE FOR MAINTENANCE/APPLICATION COSTS-COMPUTER,"24,157.27",Revenue,10/02/2015,Resources
WC53-1199,CIVICARE MIDLANDS LTD,Third Party Payments,Private Contractor Fees,73374-SUPPORTED & OTHER ACCOMMODATION,443.52,Revenue,11/02/2015,Social Care & Inclusion
WC53-1200,CIVICARE MIDLANDS LTD,Third Party Payments,Private Contractor Fees,73374-SUPPORTED & OTHER ACCOMMODATION,443.52,Revenue,11/02/2015,Social Care & Inclusion
WC53-1201,CIVICARE MIDLANDS LTD,Third Party Payments,Private Contractor Fees,73372-DOMICILIARY CARE,"22,969.59",Revenue,02/02/2015,Social Care & Inclusion
WC53-1202,REDACTED,Transfer Payments,Transfer Payments,76422-DIRECT PAYMENTS TO SOCIAL SERVICES CLIENTS,"1,088.00",Revenue,10/02/2015,Social Care & Inclusion
WC53-1203,REDACTED,Transfer Payments,Transfer Payments,76422-DIRECT PAYMENTS TO SOCIAL SERVICES CLIENTS,909.80,Revenue,10/02/2015,Social Care & Inclusion
WC53-1204,REDACTED,Transfer Payments,Transfer Payments,76422-DIRECT PAYMENTS TO SOCIAL SERVICES CLIENTS,504.90,Revenue,10/02/2015,Social Care & Inclusion
WC53-1205,REDACTED,Transport,Hire,52000-WITH DRIVER-HIRE OF VEHICLES,277.20,Revenue,20/02/2015,Childrens
WC53-1206,REDACTED,Third Party Payments,Grants to Other Orgs,66505-OTHER-GRANTS TO OTHER ORGS,293.40,Revenue,11/02/2015,Childrens
WC53-1207,CLARIDGES ELECTRICAL LTD,Transfer Payments,Transfer Payments,79100-CRISIS SUPPORT PAYMENTS,312.50,Revenue,10/02/2015,Resources
WC53-1208,CLARIDGES ELECTRICAL LTD,Transfer Payments,Transfer Payments,79100-CRISIS SUPPORT PAYMENTS,312.50,Revenue,10/02/2015,Resources
WC53-1209,CLARIDGES ELECTRICAL LTD,Transfer Payments,Transfer Payments,79100-CRISIS SUPPORT PAYMENTS,312.50,Revenue,10/02/2015,Resources
WC53-1210,CLARIDGES ELECTRICAL LTD,Transfer Payments,Transfer Payments,79100-CRISIS SUPPORT PAYMENTS,312.50,Revenue,10/02/2015,Resources
WC53-1211,REDACTED,Supplies & Services,Other Supplies & Services,62522-AUDIENCE DEVELOPMENT,256.50,Revenue,17/02/2015,Neighbourhood Services
WC53-1212,CLAYHANGER ALLOTMENT ASSOCIATION,Third Party Payments,Grants to Other Orgs,66500-GRANTS TO OTHER ORGS,300.00,Revenue,04/02/2015,Neighbourhood Services
WC53-1213,CLIFFORD HOUSE FOSTERING LTD,Third Party Payments,Private Contractor Fees,74037-INDEPENDENT FOSTER CARE-OTH AGENCY PROVISION,"1,930.71",Revenue,16/02/2015,Childrens
WC53-1214,CLIFFORD HOUSE FOSTERING LTD,Third Party Payments,Private Contractor Fees,74037-INDEPENDENT FOSTER CARE-OTH AGENCY PROVISION,"2,265.20",Revenue,13/02/2015,Childrens
WC53-1215,CLIFFORD HOUSE FOSTERING LTD,Third Party Payments,Private Contractor Fees,74037-INDEPENDENT FOSTER CARE-OTH AGENCY PROVISION,"2,265.20",Revenue,13/02/2015,Childrens
WC53-1216,CLIFFORD HOUSE FOSTERING LTD,Third Party Payments,Private Contractor Fees,74037-INDEPENDENT FOSTER CARE-OTH AGENCY PROVISION,"2,388.40",Revenue,13/02/2015,Childrens
WC53-1217,CLIFFORD HOUSE FOSTERING LTD,Third Party Payments,Private Contractor Fees,74037-INDEPENDENT FOSTER CARE-OTH AGENCY PROVISION,"2,679.20",Revenue,13/02/2015,Childrens
WC53-1218,CLIFFORD HOUSE FOSTERING LTD,Third Party Payments,Private Contractor Fees,74037-INDEPENDENT FOSTER CARE-OTH AGENCY PROVISION,"2,949.56",Revenue,04/02/2015,Childrens
WC53-1219,CLIFFORD HOUSE FOSTERING LTD,Third Party Payments,Private Contractor Fees,74037-INDEPENDENT FOSTER CARE-OTH AGENCY PROVISION,"3,006.00",Revenue,04/02/2015,Childrens
WC53-1220,CLIFFORD HOUSE FOSTERING LTD,Third Party Payments,Private Contractor Fees,74037-INDEPENDENT FOSTER CARE-OTH AGENCY PROVISION,"3,152.00",Revenue,04/02/2015,Childrens
WC53-1221,CLIFFORD HOUSE FOSTERING LTD,Third Party Payments,Private Contractor Fees,74037-INDEPENDENT FOSTER CARE-OTH AGENCY PROVISION,"3,152.00",Revenue,04/02/2015,Childrens
WC53-1222,CLIFFORD HOUSE FOSTERING LTD,Third Party Payments,Private Contractor Fees,74037-INDEPENDENT FOSTER CARE-OTH AGENCY PROVISION,"3,603.88",Revenue,16/02/2015,Childrens
WC53-1223,REDACTED,Transfer Payments,Transfer Payments,76422-DIRECT PAYMENTS TO SOCIAL SERVICES CLIENTS,572.94,Revenue,10/02/2015,Social Care & Inclusion
WC53-1224,CMS HIRE LTD,Central,Leasing,52003-OPERATING LEASES-VEHICLES,900.00,Revenue,11/02/2015,Neighbourhood Services
WC53-1225,CMS HIRE LTD,Central,Leasing,52003-OPERATING LEASES-VEHICLES,900.00,Revenue,11/02/2015,Neighbourhood Services
WC53-1226,CMS HIRE LTD,Central,Leasing,52003-OPERATING LEASES-VEHICLES,900.00,Revenue,11/02/2015,Neighbourhood Services
WC53-1227,CMS HIRE LTD,Central,Leasing,52003-OPERATING LEASES-VEHICLES,900.00,Revenue,11/02/2015,Neighbourhood Services
WC53-1228,COACHWISE LIMITED,Employees,Training,30030-EXTERNAL TRAINING,545.63,Revenue,04/02/2015,Neighbourhood Services
WC53-1229,COBWEB INFORMATION FOR BUSINE,Supplies & Services,"Equip,Furniture & Materials",60501-LIBRARY BOOKS,"1,595.00",Revenue,26/02/2015,Neighbourhood Services
WC53-1230,CODE GREEN LIMITED,Capital,Capital,01005-ARCHITECTS INSTRUCTION,834.00,Capital,04/02/2015,Childrens
WC53-1231,CODE GREEN LIMITED,Capital,Capital,01005-ARCHITECTS INSTRUCTION,"1,625.00",Capital,01/02/2015,Childrens
WC53-1232,COGNITIVE NETWORK SOLUTIONS LTD,Supplies & Services,Communications & Computing,63820-RECHARGE FOR MAINTENANCE/APPLICATION COSTS-COMPUTER,"7,500.00",Revenue,25/02/2015,Resources
WC53-1233,COIN A DRINK LTD,Supplies & Services,Provisions,61305-CATERING,458.45,Revenue,25/02/2015,Neighbourhood Services
WC53-1234,REDACTED,Third Party Payments,Private Contractor Fees,74006-HOLIDAY/CHRISTMAS ALLOWANCE-FOSTER CARERS-OTH AGENCY PROVISION,"2,794.13",Revenue,16/02/2015,Childrens
WC53-1235,COMMS EXPRESS LIMITED,Supplies & Services,Communications & Computing,63800-COMPUTER EQUIPMENT AND SUPPLIES,365.00,Revenue,25/02/2015,Resources
WC53-1236,COMMUNITY HYGIENE CONCERN,Supplies & Services,"Equip,Furniture & Materials",60520-HEALTH & SAFETY-MATERIALS,311.14,Revenue,12/02/2015,Childrens
WC53-1237,COMPCO FIRE SYSTEMS,Third Party Payments,Private Contractor Fees,73025-PROFESSIONAL SERVICES-PRIV CONTRACTOR & OTHER AGENCIES,635.00,Revenue,10/02/2015,Neighbourhood Services
WC53-1238,COMPLETE CARE SERVICES,Third Party Payments,Private Contractor Fees,73372-DOMICILIARY CARE,"28,945.17",Revenue,20/02/2015,Social Care & Inclusion
WC53-1239,COMPLETE CARE SERVICES,Third Party Payments,Private Contractor Fees,73372-DOMICILIARY CARE,"63,078.55",Revenue,09/02/2015,Social Care & Inclusion
WC53-1240,CONCEPT ELEVATORS (MIDLANDS)  LIMITED,Premises,Premises-Repairs & Maintenance,"40000-REPAIRS,ALTERATIONS & MAINTENANCE-PREM",450.40,Revenue,10/02/2015,Resources
WC53-1241,CONCEPT ELEVATORS (MIDLANDS)  LIMITED,Premises,Premises-Repairs & Maintenance,"40000-REPAIRS,ALTERATIONS & MAINTENANCE-PREM",483.00,Revenue,24/02/2015,Regeneration
WC53-1242,CONCEPT ELEVATORS (MIDLANDS)  LIMITED,Third Party Payments,Private Contractor Fees,73025-PROFESSIONAL SERVICES-PRIV CONTRACTOR & OTHER AGENCIES,547.20,Revenue,06/02/2015,Regeneration
WC53-1243,CONCEPT ELEVATORS (MIDLANDS)  LIMITED,Third Party Payments,Private Contractor Fees,73025-PROFESSIONAL SERVICES-PRIV CONTRACTOR & OTHER AGENCIES,714.00,Revenue,23/02/2015,Regeneration
WC53-1244,CONCEPT ELEVATORS (MIDLANDS)  LIMITED,Premises,Premises-Repairs & Maintenance,"40000-REPAIRS,ALTERATIONS & MAINTENANCE-PREM",810.00,Revenue,25/02/2015,Regeneration
WC53-1245,CONCEPT ELEVATORS (MIDLANDS)  LIMITED,Third Party Payments,Private Contractor Fees,73025-PROFESSIONAL SERVICES-PRIV CONTRACTOR & OTHER AGENCIES,"1,229.80",Revenue,25/02/2015,Regeneration
WC53-1246,CONCEPT ELEVATORS (MIDLANDS)  LIMITED,Premises,Premises-Repairs & Maintenance,"40000-REPAIRS,ALTERATIONS & MAINTENANCE-PREM","1,434.96",Revenue,24/02/2015,Resources
WC53-1247,CONCEPT ELEVATORS (MIDLANDS)  LIMITED,Premises,Premises-Repairs & Maintenance,"40000-REPAIRS,ALTERATIONS & MAINTENANCE-PREM","1,443.00",Revenue,23/02/2015,Regeneration
WC53-1248,CONCEPT ELEVATORS (MIDLANDS)  LIMITED,Premises,Premises-Repairs & Maintenance,"40000-REPAIRS,ALTERATIONS & MAINTENANCE-PREM","1,882.70",Revenue,20/02/2015,Regeneration
WC53-1249,CONCEPT ELEVATORS (MIDLANDS)  LIMITED,Premises,Premises-Repairs & Maintenance,"40000-REPAIRS,ALTERATIONS & MAINTENANCE-PREM","1,889.00",Revenue,20/02/2015,Regeneration
WC53-1250,CONCEPT ELEVATORS (MIDLANDS)  LIMITED,Premises,Premises-Repairs & Maintenance,"40000-REPAIRS,ALTERATIONS & MAINTENANCE-PREM","2,179.00",Revenue,25/02/2015,Regeneration
WC53-1251,CONCORDE GRAPHICS,Supplies & Services,"Printing, Stationery & Office Exp",62000-EXTERNAL PRINTING SERVICES,655.00,Revenue,09/02/2015,Neighbourhood Services
WC53-1252,CONDOVER COLLEGE LTD,Third Party Payments,Private Contractor Fees,73373-RESIDENTIAL & NURSING CARE PLACEMENTS,"7,260.96",Revenue,17/02/2015,Social Care & Inclusion
WC53-1253,CONFEDERATION OF HEADS OF YOUNG PEOPLE'S SERVICES,Supplies & Services,Services,63000-PROFESSIONAL FEES AND SERVICES,"1,350.00",Revenue,25/02/2015,Childrens
WC53-1254,CONSERVATION BY DESIGN LTD,Supplies & Services,"Printing, Stationery & Office Exp",62001-STATIONERY & GENERAL SUPPLIES-OFFICE EXP,432.50,Revenue,12/02/2015,Neighbourhood Services
WC53-1255,COOPER MOBILE SERVICES LTD,Central,Leasing,52003-OPERATING LEASES-VEHICLES,495.66,Revenue,16/02/2015,Neighbourhood Services
WC53-1256,CO-OPERATIVE FUNERAL SERVICES,Supplies & Services,Other Supplies & Services,63110-BURIAL & CREMATION-SERVICES-FEES,710.00,Revenue,03/02/2015,Neighbourhood Services
WC53-1257,COPPERDOWN RESIDENTIAL CARE HOME,Third Party Payments,Private Contractor Fees,73373-RESIDENTIAL & NURSING CARE PLACEMENTS,"1,495.44",Revenue,17/02/2015,Social Care & Inclusion
WC53-1258,CORE ASSETS CHILDRENS SERVICES LIMITED,Supplies & Services,Services,63000-PROFESSIONAL FEES AND SERVICES,"2,500.00",Revenue,06/02/2015,Childrens
WC53-1259,CORELOGIC LIMITED,Capital,Capital,01006-SITE WORKS MAIN CONTRACTORS,"3,800.00",Capital,16/02/2015,Childrens
WC53-1260,CORELOGIC LIMITED,Capital,Capital,01006-SITE WORKS MAIN CONTRACTORS,"11,400.00",Capital,16/02/2015,Childrens
WC53-1261,CORELOGIC LIMITED,Capital,Capital,01006-SITE WORKS MAIN CONTRACTORS,"13,275.00",Capital,16/02/2015,Childrens
WC53-1262,CORELOGIC LIMITED,Capital,Capital,01006-SITE WORKS MAIN CONTRACTORS,"16,800.00",Capital,16/02/2015,Childrens
WC53-1263,CORELOGIC LIMITED,Capital,Capital,01006-SITE WORKS MAIN CONTRACTORS,"33,000.00",Capital,05/02/2015,Childrens
WC53-1264,CORY ENVIRONMENTAL (CENTRAL) LTD,Third Party Payments,Private Contractor Fees,73005-LANDFILL PTYS-PRIV CONTRACTOR FEES,277.96,Revenue,04/02/2015,Neighbourhood Services
WC53-1265,CORY ENVIRONMENTAL (CENTRAL) LTD,Third Party Payments,Private Contractor Fees,73005-LANDFILL PTYS-PRIV CONTRACTOR FEES,279.28,Revenue,10/02/2015,Neighbourhood Services
WC53-1266,CORY ENVIRONMENTAL (CENTRAL) LTD,Third Party Payments,Private Contractor Fees,73005-LANDFILL PTYS-PRIV CONTRACTOR FEES,309.63,Revenue,18/02/2015,Neighbourhood Services
WC53-1267,CORY ENVIRONMENTAL (CENTRAL) LTD,Third Party Payments,Private Contractor Fees,73005-LANDFILL PTYS-PRIV CONTRACTOR FEES,335.27,Revenue,24/02/2015,Neighbourhood Services
WC53-1268,CORY ENVIRONMENTAL (CENTRAL) LTD,Third Party Payments,Private Contractor Fees,73039-LANDFILL TAX-PRIV CONTRACTOR FEES,"1,516.80",Revenue,04/02/2015,Neighbourhood Services
WC53-1269,CORY ENVIRONMENTAL (CENTRAL) LTD,Third Party Payments,Private Contractor Fees,73039-LANDFILL TAX-PRIV CONTRACTOR FEES,"1,524.00",Revenue,10/02/2015,Neighbourhood Services
WC53-1270,CORY ENVIRONMENTAL (CENTRAL) LTD,Third Party Payments,Private Contractor Fees,73039-LANDFILL TAX-PRIV CONTRACTOR FEES,"1,689.60",Revenue,18/02/2015,Neighbourhood Services
WC53-1271,CORY ENVIRONMENTAL (CENTRAL) LTD,Third Party Payments,Private Contractor Fees,73039-LANDFILL TAX-PRIV CONTRACTOR FEES,"1,829.60",Revenue,24/02/2015,Neighbourhood Services
WC53-1272,CORY ENVIRONMENTAL (CENTRAL) LTD,Third Party Payments,Private Contractor Fees,73005-LANDFILL PTYS-PRIV CONTRACTOR FEES,"2,890.36",Revenue,01/02/2015,Neighbourhood Services
WC53-1273,CORY ENVIRONMENTAL (CENTRAL) LTD,Third Party Payments,Private Contractor Fees,73039-LANDFILL TAX-PRIV CONTRACTOR FEES,"15,772.80",Revenue,01/02/2015,Neighbourhood Services
WC53-1274,COTSWOLD CHINE SCHOOL,Third Party Payments,Grants to Other Orgs,66502-TOP UP FUNDING -GRANTS TO SCHOOLS,"64,133.33",Revenue,25/02/2015,Childrens
WC53-1275,COUNTRYSIDE TRAINING AND TREE MANAGEMENT,Employees,Training,30030-EXTERNAL TRAINING,"1,200.00",Revenue,25/02/2015,Neighbourhood Services
WC53-1276,COVENTRY CITY COUNCIL,Transfer Payments,Transfer Payments,78007-TRANSFER PAYMENTS TO LOCAL AUTHORITIES,"12,500.00",Revenue,01/02/2015,Resources
WC53-1277,COVENTRY CITY COUNCIL,Transfer Payments,Transfer Payments,74009-ADOPTION ALLOWANCE,"13,500.00",Revenue,23/02/2015,Childrens
WC53-1278,CRAEGMOOR,Third Party Payments,Private Contractor Fees,73373-RESIDENTIAL & NURSING CARE PLACEMENTS,"7,135.36",Revenue,17/02/2015,Social Care & Inclusion
WC53-1279,CRH FENCING & SECURITY GROUP UK LTD T/A DARFEN DURAFENCING,Premises,Premises-Repairs & Maintenance,"40000-REPAIRS,ALTERATIONS & MAINTENANCE-PREM","1,043.00",Revenue,23/02/2015,Regeneration
WC53-1280,CROMWELL HOUSE,Third Party Payments,Private Contractor Fees,73373-RESIDENTIAL & NURSING CARE PLACEMENTS,"5,903.44",Revenue,10/02/2015,Social Care & Inclusion
WC53-1281,CROMWELL HOUSE,Third Party Payments,Private Contractor Fees,73373-RESIDENTIAL & NURSING CARE PLACEMENTS,"5,903.44",Revenue,24/02/2015,Social Care & Inclusion
WC53-1282,CROSBY MANAGEMENT TRAINING LTD,Third Party Payments,Grants to Other Orgs,66500-GRANTS TO OTHER ORGS,"1,557.69",Revenue,18/02/2015,Regeneration
WC53-1283,CROSS LANE CHILDRENS HOME,Third Party Payments,Private Contractor Fees,74036-EXTERNAL RESIDENTIAL CARE-OTH AGENCY PROVISION,"8,414.00",Revenue,20/02/2015,Childrens
WC53-1284,CROSSWAYS RESIDENTIAL HOME,Third Party Payments,Private Contractor Fees,73373-RESIDENTIAL & NURSING CARE PLACEMENTS,"1,495.24",Revenue,24/02/2015,Social Care & Inclusion
WC53-1285,CROSSWAYS RESIDENTIAL HOME,Third Party Payments,Private Contractor Fees,73373-RESIDENTIAL & NURSING CARE PLACEMENTS,"1,495.24",Revenue,24/02/2015,Social Care & Inclusion
WC53-1286,CROSSWAYS RESIDENTIAL HOME,Third Party Payments,Private Contractor Fees,73373-RESIDENTIAL & NURSING CARE PLACEMENTS,"1,495.24",Revenue,24/02/2015,Social Care & Inclusion
WC53-1287,CROSSWAYS RESIDENTIAL HOME,Third Party Payments,Private Contractor Fees,73373-RESIDENTIAL & NURSING CARE PLACEMENTS,"1,534.12",Revenue,24/02/2015,Social Care & Inclusion
WC53-1288,CROSSWAYS RESIDENTIAL HOME,Third Party Payments,Private Contractor Fees,73373-RESIDENTIAL & NURSING CARE PLACEMENTS,"1,534.12",Revenue,24/02/2015,Social Care & Inclusion
WC53-1289,CROSSWAYS RESIDENTIAL HOME,Third Party Payments,Private Contractor Fees,73373-RESIDENTIAL & NURSING CARE PLACEMENTS,"1,655.44",Revenue,04/02/2015,Social Care & Inclusion
WC53-1290,CROSSWAYS RESIDENTIAL HOME,Third Party Payments,Private Contractor Fees,73373-RESIDENTIAL & NURSING CARE PLACEMENTS,"1,655.45",Revenue,04/02/2015,Social Care & Inclusion
WC53-1291,CROSSWAYS RESIDENTIAL HOME,Third Party Payments,Private Contractor Fees,73373-RESIDENTIAL & NURSING CARE PLACEMENTS,"1,681.08",Revenue,04/02/2015,Social Care & Inclusion
WC53-1292,CROSSWAYS RESIDENTIAL HOME,Third Party Payments,Private Contractor Fees,73373-RESIDENTIAL & NURSING CARE PLACEMENTS,"1,698.49",Revenue,04/02/2015,Social Care & Inclusion
WC53-1293,CROSSWAYS RESIDENTIAL HOME,Third Party Payments,Private Contractor Fees,73373-RESIDENTIAL & NURSING CARE PLACEMENTS,"2,575.13",Revenue,04/02/2015,Social Care & Inclusion
WC53-1294,CROWN COMMERCIAL SERVICE,Employees,Training,30030-EXTERNAL TRAINING,"1,000.00",Revenue,01/02/2015,Childrens
WC53-1295,CROWN FINE ART,Third Party Payments,Private Contractor Fees,73032-TRANSPORTATION-PRIV CONTRACTOR FEES,"1,955.00",Revenue,01/02/2015,Neighbourhood Services
WC53-1296,CRYOSERVICE LTD T/A AIR PRODUCTS CRYOEASE SERVICES,Supplies & Services,"Equip,Furniture & Materials",60006-NEW-FURNITURE & EQUIPMENT,300.00,Revenue,01/02/2015,Neighbourhood Services
WC53-1297,CS COMMUNICATION SERVICES LTD,Supplies & Services,Communications & Computing,63800-COMPUTER EQUIPMENT AND SUPPLIES,-475.00,Revenue,16/02/2015,Resources
WC53-1298,CS COMMUNICATION SERVICES LTD,Supplies & Services,Communications & Computing,63800-COMPUTER EQUIPMENT AND SUPPLIES,289.50,Revenue,10/02/2015,Resources
WC53-1299,CS COMMUNICATION SERVICES LTD,Supplies & Services,Communications & Computing,63800-COMPUTER EQUIPMENT AND SUPPLIES,419.50,Revenue,12/02/2015,Resources
WC53-1300,CS COMMUNICATION SERVICES LTD,Supplies & Services,Communications & Computing,63800-COMPUTER EQUIPMENT AND SUPPLIES,475.00,Revenue,03/02/2015,Resources
WC53-1301,CS COMMUNICATION SERVICES LTD,Supplies & Services,Communications & Computing,63800-COMPUTER EQUIPMENT AND SUPPLIES,495.00,Revenue,01/02/2015,Resources
WC53-1302,CS COMMUNICATION SERVICES LTD,Supplies & Services,Communications & Computing,63800-COMPUTER EQUIPMENT AND SUPPLIES,747.00,Revenue,25/02/2015,Resources
WC53-1303,CS COMMUNICATION SERVICES LTD,Supplies & Services,Communications & Computing,63800-COMPUTER EQUIPMENT AND SUPPLIES,750.00,Revenue,10/02/2015,Resources
WC53-1304,CSCA LTD,Transport,Car Allowances,53003-OTHER-TRAVEL ALLOWANCES,23.89,Revenue,25/02/2015,Childrens
WC53-1305,CSCA LTD,Transport,Car Allowances,53001-OTHER/VOLUNTEERS-CAR ALLOWANCES,29.47,Revenue,25/02/2015,Childrens
WC53-1306,CSCA LTD,Transport,Car Allowances,53001-OTHER/VOLUNTEERS-CAR ALLOWANCES,30.08,Revenue,25/02/2015,Childrens
WC53-1307,CSCA LTD,Transport,Car Allowances,53003-OTHER-TRAVEL ALLOWANCES,44.43,Revenue,25/02/2015,Childrens
WC53-1308,CSCA LTD,Transport,Car Allowances,53001-OTHER/VOLUNTEERS-CAR ALLOWANCES,48.45,Revenue,25/02/2015,Childrens
WC53-1309,CSCA LTD,Transport,Car Allowances,53001-OTHER/VOLUNTEERS-CAR ALLOWANCES,59.33,Revenue,25/02/2015,Childrens
WC53-1310,CSCA LTD,Transport,Car Allowances,53001-OTHER/VOLUNTEERS-CAR ALLOWANCES,66.88,Revenue,25/02/2015,Childrens
WC53-1311,CSCA LTD,Transport,Car Allowances,53003-OTHER-TRAVEL ALLOWANCES,76.89,Revenue,25/02/2015,Childrens
WC53-1312,CSCA LTD,Transport,Car Allowances,53001-OTHER/VOLUNTEERS-CAR ALLOWANCES,100.76,Revenue,25/02/2015,Childrens
WC53-1313,CSCA LTD,Transport,Car Allowances,53003-OTHER-TRAVEL ALLOWANCES,103.19,Revenue,25/02/2015,Childrens
WC53-1314,CSCA LTD,Transport,Car Allowances,53001-OTHER/VOLUNTEERS-CAR ALLOWANCES,105.97,Revenue,25/02/2015,Childrens
WC53-1315,CSCA LTD,Transport,Car Allowances,53003-OTHER-TRAVEL ALLOWANCES,134.21,Revenue,25/02/2015,Childrens
